BODY,BODY NAME,SUPPLIER CODE,SUPPLIER NAME,TRANSACTION NUMBER,INVOICE DATE,THEIR REF,NARR1,PAID DATE,VAT AMOUNT,EXCLUSIVE AMOUNT,INCLUSIVE AMOUNT,EXPENSE AREA,EXPENSE TYPE,EXPENSE CODE
http://statistics.data.gov.uk/id/local-authority/12UE,Huntingdonshire District Council,200149.00,CAMBRIDGE CITY COUNCIL CAMBRIDGE CITY COUNCIL,37582,06/08/2020,12048089,CENTRAL IT COSTS,14/08/2020,0.5,2.48,2.98,3CICT NON STAFF HOLDING ACCOUNT,"Clothes, Uniform And Laundry",62000
http://statistics.data.gov.uk/id/local-authority/12UE,Huntingdonshire District Council,200283.00,ESRI UK ESRI UK,38536,31/08/2020,UK-PIN100412,CONSULTANCY,24/09/2020,3226.5,16132.5,19359,3CICT NON STAFF HOLDING ACCOUNT,Consultancy Fees,62400
http://statistics.data.gov.uk/id/local-authority/12UE,Huntingdonshire District Council,200830.00,VOHKUS LIMITED VOHKUS LIMITED,38341,27/07/2020,IN30798775,ENGINEER FEES,03/09/2020,159,795,954,3CICT NON STAFF HOLDING ACCOUNT,Consultancy Fees,62400
http://statistics.data.gov.uk/id/local-authority/12UE,Huntingdonshire District Council,202365.00,REDACTED,37798,14/08/2020,PRF - AY,3CICT DIGICERT,14/08/2020,0,914.02,914.02,3CICT NON STAFF HOLDING ACCOUNT,Ict Hardware,64070
http://statistics.data.gov.uk/id/local-authority/12UE,Huntingdonshire District Council,200614.00,PHOENIX SOFTWARE LTD PHOENIX SOFTWARE LTD,37354,15/07/2020,OP/I871450,THINKPAD,06/08/2020,332.75,1663.73,1996.48,3CICT NON STAFF HOLDING ACCOUNT,Ict Hardware,64070
http://statistics.data.gov.uk/id/local-authority/12UE,Huntingdonshire District Council,200614.00,PHOENIX SOFTWARE LTD PHOENIX SOFTWARE LTD,35624,12/06/2020,OP/I869103,MICROSOFT EAS - YEAR 3,09/07/2020,60996.08,304980.41,365976.49,3CICT NON STAFF HOLDING ACCOUNT,Ict Hardware,64070
http://statistics.data.gov.uk/id/local-authority/12UE,Huntingdonshire District Council,200614.00,PHOENIX SOFTWARE LTD PHOENIX SOFTWARE LTD,35624,12/06/2020,OP/I869103,MICROSOFT EAS - YEAR 3,09/07/2020,516.93,2584.63,3101.56,3CICT NON STAFF HOLDING ACCOUNT,Ict Hardware,64070
http://statistics.data.gov.uk/id/local-authority/12UE,Huntingdonshire District Council,200614.00,PHOENIX SOFTWARE LTD PHOENIX SOFTWARE LTD,35624,12/06/2020,OP/I869103,MICROSOFT EAS - YEAR 3,09/07/2020,552.1,2760.5,3312.6,3CICT NON STAFF HOLDING ACCOUNT,Ict Hardware,64070
http://statistics.data.gov.uk/id/local-authority/12UE,Huntingdonshire District Council,200614.00,PHOENIX SOFTWARE LTD PHOENIX SOFTWARE LTD,35624,12/06/2020,OP/I869103,MICROSOFT EAS - YEAR 3,09/07/2020,349.81,1749.07,2098.88,3CICT NON STAFF HOLDING ACCOUNT,Ict Hardware,64070
http://statistics.data.gov.uk/id/local-authority/12UE,Huntingdonshire District Council,200614.00,PHOENIX SOFTWARE LTD PHOENIX SOFTWARE LTD,35624,12/06/2020,OP/I869103,MICROSOFT EAS - YEAR 3,09/07/2020,27.07,135.37,162.44,3CICT NON STAFF HOLDING ACCOUNT,Ict Hardware,64070
http://statistics.data.gov.uk/id/local-authority/12UE,Huntingdonshire District Council,200614.00,PHOENIX SOFTWARE LTD PHOENIX SOFTWARE LTD,35624,12/06/2020,OP/I869103,MICROSOFT EAS - YEAR 3,09/07/2020,246,1230,1476,3CICT NON STAFF HOLDING ACCOUNT,Ict Hardware,64070
http://statistics.data.gov.uk/id/local-authority/12UE,Huntingdonshire District Council,200614.00,PHOENIX SOFTWARE LTD PHOENIX SOFTWARE LTD,35624,12/06/2020,OP/I869103,MICROSOFT EAS - YEAR 3,09/07/2020,453.62,2268.12,2721.74,3CICT NON STAFF HOLDING ACCOUNT,Ict Hardware,64070
http://statistics.data.gov.uk/id/local-authority/12UE,Huntingdonshire District Council,200614.00,PHOENIX SOFTWARE LTD PHOENIX SOFTWARE LTD,35624,12/06/2020,OP/I869103,MICROSOFT EAS - YEAR 3,09/07/2020,23.47,117.35,140.82,3CICT NON STAFF HOLDING ACCOUNT,Ict Hardware,64070
http://statistics.data.gov.uk/id/local-authority/12UE,Huntingdonshire District Council,200614.00,PHOENIX SOFTWARE LTD PHOENIX SOFTWARE LTD,37116,23/07/2020,OP/I872210,LICENCES,14/08/2020,3588,17940,21528,3CICT NON STAFF HOLDING ACCOUNT,Ict Hardware,64070
http://statistics.data.gov.uk/id/local-authority/12UE,Huntingdonshire District Council,202383.00,MATRIX BOOKING LTD,38879,31/08/2020,MB-1025,USER SUBSCRIPTION,24/09/2020,3480,17400,20880,3CICT NON STAFF HOLDING ACCOUNT,Ict Hardware,64070
http://statistics.data.gov.uk/id/local-authority/12UE,Huntingdonshire District Council,200149.00,CAMBRIDGE CITY COUNCIL CAMBRIDGE CITY COUNCIL,37582,06/08/2020,12048089,CENTRAL IT COSTS,14/08/2020,42.6,212.98,255.58,3CICT NON STAFF HOLDING ACCOUNT,Ict Hardware,64070
http://statistics.data.gov.uk/id/local-authority/12UE,Huntingdonshire District Council,200770.00,TELEFONICA UK LTD TELEFONICA UK LTD,37660,20/07/2020,67231440,LINE RENTAL,13/08/2020,14.36,71.8,86.16,3CICT NON STAFF HOLDING ACCOUNT,Ict Hardware,64070
http://statistics.data.gov.uk/id/local-authority/12UE,Huntingdonshire District Council,200770.00,TELEFONICA UK LTD TELEFONICA UK LTD,36067,20/06/2020,64837510,LINE RENTAL,16/07/2020,29.13,145.64,174.77,3CICT NON STAFF HOLDING ACCOUNT,Ict Hardware,64070
http://statistics.data.gov.uk/id/local-authority/12UE,Huntingdonshire District Council,200732.00,SOLARWINDS SOFTWARE EUROPE LTD (IRELAND) SOLARWINDS SOFTWARE EUROPE LTD (IRELAND),38453,01/09/2020,IE310784,ICT SOFTWARE,24/09/2020,0,4616,4616,3CICT NON STAFF HOLDING ACCOUNT,Ict Hardware,64070
http://statistics.data.gov.uk/id/local-authority/12UE,Huntingdonshire District Council,200770.00,TELEFONICA UK LTD TELEFONICA UK LTD,36066,20/06/2020,64873698,LINE RENTAL,16/07/2020,97.06,485.28,582.34,3CICT NON STAFF HOLDING ACCOUNT,Ict Hardware,64070
http://statistics.data.gov.uk/id/local-authority/12UE,Huntingdonshire District Council,200770.00,TELEFONICA UK LTD TELEFONICA UK LTD,37658,20/07/2020,67270192,LINE RENTAL,13/08/2020,110.88,554.4,665.28,3CICT NON STAFF HOLDING ACCOUNT,Ict Hardware,64070
http://statistics.data.gov.uk/id/local-authority/12UE,Huntingdonshire District Council,200614.00,PHOENIX SOFTWARE LTD PHOENIX SOFTWARE LTD,38210,30/07/2020,OP/I872732,SUBSCRIPTIONS,27/08/2020,10.73,53.63,64.36,3CICT NON STAFF HOLDING ACCOUNT,Ict Hardware,64070
http://statistics.data.gov.uk/id/local-authority/12UE,Huntingdonshire District Council,200614.00,PHOENIX SOFTWARE LTD PHOENIX SOFTWARE LTD,38210,30/07/2020,OP/I872732,SUBSCRIPTIONS,27/08/2020,258.93,1294.67,1553.6,3CICT NON STAFF HOLDING ACCOUNT,Ict Hardware,64070
http://statistics.data.gov.uk/id/local-authority/12UE,Huntingdonshire District Council,200614.00,PHOENIX SOFTWARE LTD PHOENIX SOFTWARE LTD,35693,15/06/2020,OP/I869209,THINKPADS,09/07/2020,152.94,764.72,917.66,3CICT NON STAFF HOLDING ACCOUNT,Ict Hardware,64070
http://statistics.data.gov.uk/id/local-authority/12UE,Huntingdonshire District Council,201980.00,MLL TELECOM LTD,38393,31/08/2020,SI13047,TELEPHONE EQUIPMENT,24/09/2020,408.8,2044.01,2452.81,3CICT NON STAFF HOLDING ACCOUNT,Ict Hardware,64070
http://statistics.data.gov.uk/id/local-authority/12UE,Huntingdonshire District Council,200614.00,PHOENIX SOFTWARE LTD PHOENIX SOFTWARE LTD,38214,15/07/2020,OP/I871573,AZURE OVERAGE FOR JUNE 2020,27/08/2020,321.32,1606.59,1927.91,3CICT NON STAFF HOLDING ACCOUNT,Ict Hardware,64070
http://statistics.data.gov.uk/id/local-authority/12UE,Huntingdonshire District Council,200614.00,PHOENIX SOFTWARE LTD PHOENIX SOFTWARE LTD,37545,17/06/2020,OP/I869425,ICT SOFTWARE,06/08/2020,302.84,1514.2,1817.04,3CICT NON STAFF HOLDING ACCOUNT,Ict Hardware,64070
http://statistics.data.gov.uk/id/local-authority/12UE,Huntingdonshire District Council,200614.00,PHOENIX SOFTWARE LTD PHOENIX SOFTWARE LTD,36068,15/05/2020,OP/I867226,ICT SOFTWARE,02/07/2020,286.16,1430.82,1716.98,3CICT NON STAFF HOLDING ACCOUNT,Ict Hardware,64070
http://statistics.data.gov.uk/id/local-authority/12UE,Huntingdonshire District Council,202347.00,Teamviewer GBBH,37654,16/07/2020,R00278706,SUBSCRIPTION,13/08/2020,196,980,1176,3CICT NON STAFF HOLDING ACCOUNT,Ict Hardware,64070
http://statistics.data.gov.uk/id/local-authority/12UE,Huntingdonshire District Council,200614.00,PHOENIX SOFTWARE LTD PHOENIX SOFTWARE LTD,35623,11/06/2020,OP/I869027,SUBSCRIPTION,09/07/2020,6.93,34.65,41.58,3CICT NON STAFF HOLDING ACCOUNT,Ict Hardware,64070
http://statistics.data.gov.uk/id/local-authority/12UE,Huntingdonshire District Council,201988.00,Ford Motor Company T/A Parts Plus,36940,10/07/2020,13466819,ORDER 1836,06/08/2020,58.45,292.24,350.69,Active Lifestyles Gen Mng't,Vehicle Repairs And Maintenance,60904
http://statistics.data.gov.uk/id/local-authority/12UE,Huntingdonshire District Council,201358.00,SOCOTEC UK LTD,37121,13/07/2020,0000827832,DIFFUSION TUBES,06/08/2020,562.32,2811.6,3373.92,Air Quality,First Aid & Medical Supplies,61710
http://statistics.data.gov.uk/id/local-authority/12UE,Huntingdonshire District Council,202367.00,LONDON HOUSE SIGNS LTD,38015,02/08/2020,28230,SIGN,27/08/2020,91,455,546,Alms Close,Signs,60299
http://statistics.data.gov.uk/id/local-authority/12UE,Huntingdonshire District Council,202093.00,MARTIN CONTRACTING SERVICES LTD,38437,19/08/2020,007,ALMS CLOSE,10/09/2020,76761.57,383807.83,460569.4,Alms Close,Consultancy Fees,62400
http://statistics.data.gov.uk/id/local-authority/12UE,Huntingdonshire District Council,202093.00,MARTIN CONTRACTING SERVICES LTD,36982,21/07/2020,006,ALMS CLOSE,13/08/2020,39357.59,196787.94,236145.53,Alms Close,Consultancy Fees,62400
http://statistics.data.gov.uk/id/local-authority/12UE,Huntingdonshire District Council,202093.00,MARTIN CONTRACTING SERVICES LTD,35748,17/06/2020,005,ALMS CLOSE,09/07/2020,32719.22,163596.12,196315.34,Alms Close,Consultancy Fees,62400
http://statistics.data.gov.uk/id/local-authority/12UE,Huntingdonshire District Council,201967.00,PM808 INTERNATIONAL LTD,36124,29/06/2020,HDC/005/ALMS/TK,CLERK OF WORKS SERVICES,16/07/2020,0,1600,1600,Alms Close,Consultancy Fees,62400
http://statistics.data.gov.uk/id/local-authority/12UE,Huntingdonshire District Council,200682.00,RIDGE AND PARTNERS LLP RIDGE AND PARTNERS LLP,36161,30/06/2020,177548,ALMS CLOSE,16/07/2020,80,400,480,Alms Close,Consultancy Fees,62400
http://statistics.data.gov.uk/id/local-authority/12UE,Huntingdonshire District Council,200682.00,RIDGE AND PARTNERS LLP RIDGE AND PARTNERS LLP,37360,31/07/2020,178573,ALMS CLOSE,14/08/2020,80,400,480,Alms Close,Consultancy Fees,62400
http://statistics.data.gov.uk/id/local-authority/12UE,Huntingdonshire District Council,200682.00,RIDGE AND PARTNERS LLP RIDGE AND PARTNERS LLP,38412,28/08/2020,179514,ALMS CLOSE,24/09/2020,80,400,480,Alms Close,Consultancy Fees,62400
http://statistics.data.gov.uk/id/local-authority/12UE,Huntingdonshire District Council,200609.00,PENGELLY AND MIZEN PENGELLY AND MIZEN,38022,12/08/2020,672763880,RIDING SCHOOL INSPECTION,03/09/2020,125,625,750,Animal Licensing - Inspections,Consultancy Fees,62400
http://statistics.data.gov.uk/id/local-authority/12UE,Huntingdonshire District Council,200609.00,PENGELLY AND MIZEN PENGELLY AND MIZEN,36189,30/06/2020,672761154,RIDING SCHOOL INSPECTION,16/07/2020,112.5,562.5,675,Animal Licensing - Inspections,Consultancy Fees,62400
http://statistics.data.gov.uk/id/local-authority/12UE,Huntingdonshire District Council,200609.00,PENGELLY AND MIZEN PENGELLY AND MIZEN,35886,17/06/2020,672760486,RIDING SCHOOL INSPECTION,09/07/2020,107.5,537.5,645,Animal Licensing - Inspections,Consultancy Fees,62400
http://statistics.data.gov.uk/id/local-authority/12UE,Huntingdonshire District Council,200609.00,PENGELLY AND MIZEN PENGELLY AND MIZEN,35928,12/06/2020,672760298,RIDING SCHOOL INSPECTION,09/07/2020,87.5,437.5,525,Animal Licensing - Inspections,Consultancy Fees,62400
http://statistics.data.gov.uk/id/local-authority/12UE,Huntingdonshire District Council,200609.00,PENGELLY AND MIZEN PENGELLY AND MIZEN,36526,08/07/2020,672761687,RIDING SCHOOL,16/07/2020,70.83,354.17,425,Animal Licensing - Inspections,Consultancy Fees,62400
http://statistics.data.gov.uk/id/local-authority/12UE,Huntingdonshire District Council,201522.00,RED STAG TRAINING LTD,38134,07/08/2020,SI-697,LOLER X 5,27/08/2020,15,75,90,Arboricultural Team,Facilities Management,60200
http://statistics.data.gov.uk/id/local-authority/12UE,Huntingdonshire District Council,201522.00,RED STAG TRAINING LTD,38134,07/08/2020,SI-697,LOLER X 5,27/08/2020,15,75,90,Arboricultural Team,Facilities Management,60200
http://statistics.data.gov.uk/id/local-authority/12UE,Huntingdonshire District Council,201522.00,RED STAG TRAINING LTD,38134,07/08/2020,SI-697,LOLER X 5,27/08/2020,15,75,90,Arboricultural Team,Facilities Management,60200
http://statistics.data.gov.uk/id/local-authority/12UE,Huntingdonshire District Council,201522.00,RED STAG TRAINING LTD,38134,07/08/2020,SI-697,LOLER X 5,27/08/2020,15,75,90,Arboricultural Team,Facilities Management,60200
http://statistics.data.gov.uk/id/local-authority/12UE,Huntingdonshire District Council,201522.00,RED STAG TRAINING LTD,38134,07/08/2020,SI-697,LOLER X 5,27/08/2020,14.22,71.1,85.32,Arboricultural Team,Facilities Management,60200
http://statistics.data.gov.uk/id/local-authority/12UE,Huntingdonshire District Council,201360.00,GLOBAL TREE SOLUTIONS LTD,35819,17/06/2020,62425,TREE WORKS,09/07/2020,400,2000,2400,Arboricultural Team,Consultancy Fees,62400
http://statistics.data.gov.uk/id/local-authority/12UE,Huntingdonshire District Council,201360.00,GLOBAL TREE SOLUTIONS LTD,36775,26/05/2020,62395,TREE WORKS,23/07/2020,390,1950,2340,Arboricultural Team,Consultancy Fees,62400
http://statistics.data.gov.uk/id/local-authority/12UE,Huntingdonshire District Council,201360.00,GLOBAL TREE SOLUTIONS LTD,37186,23/07/2020,62479,TREE WORKS,14/08/2020,290,1450,1740,Arboricultural Team,Consultancy Fees,62400
http://statistics.data.gov.uk/id/local-authority/12UE,Huntingdonshire District Council,201360.00,GLOBAL TREE SOLUTIONS LTD,35820,17/06/2020,62424,TREE WORKS,09/07/2020,240,1200,1440,Arboricultural Team,Consultancy Fees,62400
http://statistics.data.gov.uk/id/local-authority/12UE,Huntingdonshire District Council,201360.00,GLOBAL TREE SOLUTIONS LTD,35821,17/06/2020,62423,TREE WORKS,09/07/2020,240,1200,1440,Arboricultural Team,Consultancy Fees,62400
http://statistics.data.gov.uk/id/local-authority/12UE,Huntingdonshire District Council,201843.00,THE CGM GROUP (EAST ANGLIA) LTD,38688,31/08/2020,232618,TREE WORKS,24/09/2020,240,1200,1440,Arboricultural Team,Consultancy Fees,62400
http://statistics.data.gov.uk/id/local-authority/12UE,Huntingdonshire District Council,201843.00,THE CGM GROUP (EAST ANGLIA) LTD,37185,23/07/2020,231374,TREE WORKS,14/08/2020,228,1140,1368,Arboricultural Team,Consultancy Fees,62400
http://statistics.data.gov.uk/id/local-authority/12UE,Huntingdonshire District Council,201843.00,THE CGM GROUP (EAST ANGLIA) LTD,36460,17/06/2020,231193,TREE WORKS,09/07/2020,190,950,1140,Arboricultural Team,Consultancy Fees,62400
http://statistics.data.gov.uk/id/local-authority/12UE,Huntingdonshire District Council,201360.00,GLOBAL TREE SOLUTIONS LTD,36344,25/06/2020,62432,TREE WORKS,16/07/2020,90,450,540,Arboricultural Team,Consultancy Fees,62400
http://statistics.data.gov.uk/id/local-authority/12UE,Huntingdonshire District Council,201843.00,THE CGM GROUP (EAST ANGLIA) LTD,38690,31/08/2020,232621,TREE WORKS,24/09/2020,66.2,331,397.2,Arboricultural Team,Consultancy Fees,62400
http://statistics.data.gov.uk/id/local-authority/12UE,Huntingdonshire District Council,202059.00,AQUASERVE MANAGEMENT LTD,38542,25/08/2020,AQMAIN20017,DRAIN CLEARANCE,17/09/2020,270.59,1352.95,1623.54,Barford Road Pocket Park,Refuse Collection /Skips,60500
http://statistics.data.gov.uk/id/local-authority/12UE,Huntingdonshire District Council,200060.00,ARTHUR IBBETT LTD ARTHUR IBBETT LTD,38784,31/01/2020,166333,GATE,10/09/2020,56,280,336,Barford Road Pocket Park,Hire - Equipment Furniture And Materials,61700
http://statistics.data.gov.uk/id/local-authority/12UE,Huntingdonshire District Council,200550.00,MORGAN HUNT PUBLIC UK LTD MORGAN HUNT PUBLIC UK LTD,37820,09/08/2020,1189379,REDACTED,20/08/2020,220.8,1104,1324.8,Benefits Management,Salary Cost Outside Payroll,60010
http://statistics.data.gov.uk/id/local-authority/12UE,Huntingdonshire District Council,200550.00,MORGAN HUNT PUBLIC UK LTD MORGAN HUNT PUBLIC UK LTD,37050,19/07/2020,1186731,REDACTED,30/07/2020,204.24,1021.2,1225.44,Benefits Management,Salary Cost Outside Payroll,60010
http://statistics.data.gov.uk/id/local-authority/12UE,Huntingdonshire District Council,200550.00,MORGAN HUNT PUBLIC UK LTD MORGAN HUNT PUBLIC UK LTD,37252,26/07/2020,1187689,REDACTED,06/08/2020,204.24,1021.2,1225.44,Benefits Management,Salary Cost Outside Payroll,60010
http://statistics.data.gov.uk/id/local-authority/12UE,Huntingdonshire District Council,200550.00,MORGAN HUNT PUBLIC UK LTD MORGAN HUNT PUBLIC UK LTD,37667,02/08/2020,1188537,REDACTED,13/08/2020,204.24,1021.2,1225.44,Benefits Management,Salary Cost Outside Payroll,60010
http://statistics.data.gov.uk/id/local-authority/12UE,Huntingdonshire District Council,200550.00,MORGAN HUNT PUBLIC UK LTD MORGAN HUNT PUBLIC UK LTD,37819,09/08/2020,1189377,REDACTED,20/08/2020,204.24,1021.2,1225.44,Benefits Management,Salary Cost Outside Payroll,60010
http://statistics.data.gov.uk/id/local-authority/12UE,Huntingdonshire District Council,200550.00,MORGAN HUNT PUBLIC UK LTD MORGAN HUNT PUBLIC UK LTD,38075,16/08/2020,1190213,REDACTED,27/08/2020,204.24,1021.2,1225.44,Benefits Management,Salary Cost Outside Payroll,60010
http://statistics.data.gov.uk/id/local-authority/12UE,Huntingdonshire District Council,200550.00,MORGAN HUNT PUBLIC UK LTD MORGAN HUNT PUBLIC UK LTD,38251,23/08/2020,1191057,REDACTED,03/09/2020,204.24,1021.2,1225.44,Benefits Management,Salary Cost Outside Payroll,60010
http://statistics.data.gov.uk/id/local-authority/12UE,Huntingdonshire District Council,200550.00,MORGAN HUNT PUBLIC UK LTD MORGAN HUNT PUBLIC UK LTD,39150,13/09/2020,1193833,REDACTED,24/09/2020,204.24,1021.2,1225.44,Benefits Management,Salary Cost Outside Payroll,60010
http://statistics.data.gov.uk/id/local-authority/12UE,Huntingdonshire District Council,200550.00,MORGAN HUNT PUBLIC UK LTD MORGAN HUNT PUBLIC UK LTD,38932,06/09/2020,1192873,REDACTED,17/09/2020,162.84,814.2,977.04,Benefits Management,Salary Cost Outside Payroll,60010
http://statistics.data.gov.uk/id/local-authority/12UE,Huntingdonshire District Council,200046.00,AMALGAMATED COMPUTER SUPPLIES AMALGAMATED COMPUTER SUPPLIES,36129,24/06/2020,SINV00622465,TONER CARTRIDGE,16/07/2020,87.2,436,523.2,Benefits Management,"Clothes, Uniform And Laundry",62000
http://statistics.data.gov.uk/id/local-authority/12UE,Huntingdonshire District Council,200148.00,CALLCREDIT LTD CALLCREDIT LTD,38080,01/08/2020,854998,USAGE,27/08/2020,202.65,1013.25,1215.9,Benefits Management,Enquiries,63400
http://statistics.data.gov.uk/id/local-authority/12UE,Huntingdonshire District Council,200148.00,CALLCREDIT LTD CALLCREDIT LTD,37112,01/07/2020,849661,USAGE,30/07/2020,182.49,912.45,1094.94,Benefits Management,Enquiries,63400
http://statistics.data.gov.uk/id/local-authority/12UE,Huntingdonshire District Council,200148.00,CALLCREDIT LTD CALLCREDIT LTD,38580,01/09/2020,858280,USAGE,24/09/2020,84.42,422.1,506.52,Benefits Management,Enquiries,63400
http://statistics.data.gov.uk/id/local-authority/12UE,Huntingdonshire District Council,200698.00,ROYAL MAIL GROUP LTD ROYAL MAIL GROUP LTD,36495,22/06/2020,9061085072,POSTAGE,16/07/2020,397.02,1985.12,2382.14,Benefits Management,Postage And Courier Services,64100
http://statistics.data.gov.uk/id/local-authority/12UE,Huntingdonshire District Council,200698.00,ROYAL MAIL GROUP LTD ROYAL MAIL GROUP LTD,38304,17/08/2020,9061384629,POSTAGE,10/09/2020,311.46,1557.27,1868.73,Benefits Management,Postage And Courier Services,64100
http://statistics.data.gov.uk/id/local-authority/12UE,Huntingdonshire District Council,200698.00,ROYAL MAIL GROUP LTD ROYAL MAIL GROUP LTD,38245,10/08/2020,9061350006,POSTAGE,03/09/2020,45.83,229.16,274.99,Benefits Management,Postage And Courier Services,64100
http://statistics.data.gov.uk/id/local-authority/12UE,Huntingdonshire District Council,200698.00,ROYAL MAIL GROUP LTD ROYAL MAIL GROUP LTD,37171,13/07/2020,9061195063,POSTAGE,06/08/2020,68.01,340.03,408.04,Benefits Management,Postage And Courier Services,64100
http://statistics.data.gov.uk/id/local-authority/12UE,Huntingdonshire District Council,200698.00,ROYAL MAIL GROUP LTD ROYAL MAIL GROUP LTD,37709,27/07/2020,9061267628,POSTAGE,14/08/2020,86.74,433.72,520.46,Benefits Management,Postage And Courier Services,64100
http://statistics.data.gov.uk/id/local-authority/12UE,Huntingdonshire District Council,200698.00,ROYAL MAIL GROUP LTD ROYAL MAIL GROUP LTD,37865,03/08/2020,9061299705,POSTAGE,27/08/2020,50.62,253.08,303.7,Benefits Management,Postage And Courier Services,64100
http://statistics.data.gov.uk/id/local-authority/12UE,Huntingdonshire District Council,200698.00,ROYAL MAIL GROUP LTD ROYAL MAIL GROUP LTD,35926,15/06/2020,9061052652,POSTAGE,09/07/2020,59.18,295.89,355.07,Benefits Management,Postage And Courier Services,64100
http://statistics.data.gov.uk/id/local-authority/12UE,Huntingdonshire District Council,200698.00,ROYAL MAIL GROUP LTD ROYAL MAIL GROUP LTD,35576,08/06/2020,9061017208,POSTAGE,02/07/2020,47.11,235.56,282.67,Benefits Management,Postage And Courier Services,64100
http://statistics.data.gov.uk/id/local-authority/12UE,Huntingdonshire District Council,200698.00,ROYAL MAIL GROUP LTD ROYAL MAIL GROUP LTD,37524,20/07/2020,9061227964,POSTAGE,13/08/2020,50.55,252.75,303.3,Benefits Management,Postage And Courier Services,64100
http://statistics.data.gov.uk/id/local-authority/12UE,Huntingdonshire District Council,200698.00,ROYAL MAIL GROUP LTD ROYAL MAIL GROUP LTD,36907,06/07/2020,9061159099,POSTAGE,30/07/2020,64.17,320.83,385,Benefits Management,Postage And Courier Services,64100
http://statistics.data.gov.uk/id/local-authority/12UE,Huntingdonshire District Council,201060.00,THE BENWICK INTERNAL DRAINAGE BRD,36151,17/07/2020,170620,SPECIAL LEVY 2020/21,16/07/2020,0,2044,2044,Benwick,Levies Paid,69110
http://statistics.data.gov.uk/id/local-authority/12UE,Huntingdonshire District Council,200101.00,BID HUNTINGDON BID HUNTINGDON,36534,08/07/2020,INV-1873,BID,16/07/2020,0,8077,8077,Bid Huntingdon,Grants And Contributions,64600
http://statistics.data.gov.uk/id/local-authority/12UE,Huntingdonshire District Council,200101.00,BID HUNTINGDON BID HUNTINGDON,37666,03/08/2020,INV-1875,BID LEVY JULY 2020,13/08/2020,1242.37,6211.87,7454.24,Bid Revenue Account,Interest Payable - Long Term Borrowing - Other,23000
http://statistics.data.gov.uk/id/local-authority/12UE,Huntingdonshire District Council,200101.00,BID HUNTINGDON BID HUNTINGDON,36983,09/07/2020,INV-1874,BID LEVY JUNE 2020,30/07/2020,577.12,2885.58,3462.7,Bid Revenue Account,Interest Payable - Long Term Borrowing - Other,23000
http://statistics.data.gov.uk/id/local-authority/12UE,Huntingdonshire District Council,200101.00,BID HUNTINGDON BID HUNTINGDON,38959,08/09/2020,INV-1876,BID SETTLEMENT AUGUST 20,17/09/2020,528.52,2642.59,3171.11,Bid Revenue Account,Interest Payable - Long Term Borrowing - Other,23000
http://statistics.data.gov.uk/id/local-authority/12UE,Huntingdonshire District Council,200042.00,ALFA TAIL LIFTS LTD ALFA TAIL LIFTS LTD,35856,12/06/2020,451602,ORDER 1738,09/07/2020,208.07,1040.35,1248.42,Bin Deliveries,Vehicle Maintenance - External,60921
http://statistics.data.gov.uk/id/local-authority/12UE,Huntingdonshire District Council,200181.00,CFL ESTATE SERVICES CFL ESTATE SERVICES,36489,07/03/2020,HDC113,Land check,16/07/2020,0,342,342,Bridge Place Car Park Const,Agency Staff,60011
http://statistics.data.gov.uk/id/local-authority/12UE,Huntingdonshire District Council,200655.00,QUADRANT SECURITY GROUP QUADRANT SECURITY GROUP,38686,18/08/2020,SIN091969,CCTV,10/09/2020,714.33,3571.66,4285.99,Brook Street (STN),Facilities Management,60200
http://statistics.data.gov.uk/id/local-authority/12UE,Huntingdonshire District Council,200000.00,A C COMMERCIALS A C COMMERCIALS,36885,16/07/2020,INV0006825,ORDER 1852,13/08/2020,55.82,279.12,334.94,Bulky Refuse,Vehicle Repairs And Maintenance,60904
http://statistics.data.gov.uk/id/local-authority/12UE,Huntingdonshire District Council,200278.00,E-ON ENERGY E-ON ENERGY,36743,01/07/2020,H18A5E3015,BUS SHELTER LIGHTING,23/07/2020,26.64,532.89,559.53,Bus Shelters,Signs Erecting & Removal,60300
http://statistics.data.gov.uk/id/local-authority/12UE,Huntingdonshire District Council,200634.00,PRIMESIGHT  LTD PRIMESIGHT  LTD,37065,30/04/2020,2020/032,CLEANING HUNTINGDON BUS SHELTERS,30/07/2020,115.84,579.2,695.04,Bus Shelters,Refuse Collection /Skips,60500
http://statistics.data.gov.uk/id/local-authority/12UE,Huntingdonshire District Council,200634.00,PRIMESIGHT  LTD PRIMESIGHT  LTD,37066,31/05/2020,2020/286,CLEANING HUNTINGDON BUS SHELTERS,30/07/2020,115.84,579.2,695.04,Bus Shelters,Refuse Collection /Skips,60500
http://statistics.data.gov.uk/id/local-authority/12UE,Huntingdonshire District Council,200634.00,PRIMESIGHT  LTD PRIMESIGHT  LTD,37067,30/06/2020,2020/317,CLEANING HUNTINGDON BUS SHELTERS,30/07/2020,115.84,579.2,695.04,Bus Shelters,Refuse Collection /Skips,60500
http://statistics.data.gov.uk/id/local-authority/12UE,Huntingdonshire District Council,200634.00,PRIMESIGHT  LTD PRIMESIGHT  LTD,37544,24/07/2020,2020/328,CLEANING HUNTINGDON BUS SHELTERS,14/08/2020,115.84,579.2,695.04,Bus Shelters,Refuse Collection /Skips,60500
http://statistics.data.gov.uk/id/local-authority/12UE,Huntingdonshire District Council,202256.00,EASY CLEAN CONTRACTORS LTD,36984,30/06/2020,16543,CLEANING JUNE 2020,30/07/2020,161.57,807.84,969.41,Bus Station Pc - Huntingdon,Refuse Collection /Skips,60500
http://statistics.data.gov.uk/id/local-authority/12UE,Huntingdonshire District Council,202256.00,EASY CLEAN CONTRACTORS LTD,36324,31/05/2020,16492,CLEANING APRIL 2020,09/07/2020,109.04,545.2,654.24,Bus Station Pc - Huntingdon,Refuse Collection /Skips,60500
http://statistics.data.gov.uk/id/local-authority/12UE,Huntingdonshire District Council,202256.00,EASY CLEAN CONTRACTORS LTD,36437,31/05/2020,16381,CLEANING MAY 2020,09/07/2020,104.08,520.42,624.5,Bus Station Pc - Huntingdon,Refuse Collection /Skips,60500
http://statistics.data.gov.uk/id/local-authority/12UE,Huntingdonshire District Council,200092.00,BEEBYS LIMITED BEEBYS LIMITED,37992,31/01/2020,INV-65066,HUNTINGDON BUS STATION,20/08/2020,50.44,252.21,302.65,Bus Station Pc - Huntingdon,Cleaning Materials,61300
http://statistics.data.gov.uk/id/local-authority/12UE,Huntingdonshire District Council,201836.00,CORE LEARNING SERVICES LTD,37692,05/08/2020,2438,ME LEARNING ANNUAL LICENSE,14/08/2020,300,1500,1800,Cambridge City Business Case ,Ias19 Past Service Costs,60110
http://statistics.data.gov.uk/id/local-authority/12UE,Huntingdonshire District Council,200651.00,PWM TRAINING (UK) LTD PWM TRAINING (UK) LTD,38141,04/08/2020,INV-5349,TRAINING,27/08/2020,200,1000,1200,Cambridge City Business Case ,Ias19 Past Service Costs,60110
http://statistics.data.gov.uk/id/local-authority/12UE,Huntingdonshire District Council,200651.00,PWM TRAINING (UK) LTD PWM TRAINING (UK) LTD,38328,04/03/2020,INV-5316,EXCEL TRAINING,03/09/2020,79,395,474,Cambridge City Business Case ,Ias19 Past Service Costs,60110
http://statistics.data.gov.uk/id/local-authority/12UE,Huntingdonshire District Council,200166.00,CAPITA CAPITA,38942,15/05/2020,6003986319,MAINTENANCE APRIL 20-MARCH 21,17/09/2020,728.6,3643.02,4371.62,Cambridge City Business Case ,Hire - Equipment Furniture And Materials,61700
http://statistics.data.gov.uk/id/local-authority/12UE,Huntingdonshire District Council,200468.00,KONICA MINOLTA KONICA MINOLTA,38813,30/06/2020,115101383,3CICT PRINTING,17/09/2020,3805.93,19029.66,22835.59,Cambridge City Business Case ,Hire - Equipment Furniture And Materials,61700
http://statistics.data.gov.uk/id/local-authority/12UE,Huntingdonshire District Council,200468.00,KONICA MINOLTA KONICA MINOLTA,38814,26/03/2020,1150152229,3CICT PRINTING,17/09/2020,3805.93,19029.66,22835.59,Cambridge City Business Case ,Hire - Equipment Furniture And Materials,61700
http://statistics.data.gov.uk/id/local-authority/12UE,Huntingdonshire District Council,200468.00,KONICA MINOLTA KONICA MINOLTA,38812,27/03/2020,1150184011,3CICT PRINTING,17/09/2020,1550.77,7753.86,9304.63,Cambridge City Business Case ,Hire - Equipment Furniture And Materials,61700
http://statistics.data.gov.uk/id/local-authority/12UE,Huntingdonshire District Council,200468.00,KONICA MINOLTA KONICA MINOLTA,38810,29/06/2020,1151443672,3CICT PRINTING,17/09/2020,264.26,1321.29,1585.55,Cambridge City Business Case ,Hire - Equipment Furniture And Materials,61700
http://statistics.data.gov.uk/id/local-authority/12UE,Huntingdonshire District Council,200970.00,NTA MONITOR LTD,38357,27/07/2020,1006126847,EQUIPMENT MAINTENANCE,03/09/2020,240,1200,1440,Cambridge City Business Case ,Hire - Equipment Furniture And Materials,61700
http://statistics.data.gov.uk/id/local-authority/12UE,Huntingdonshire District Council,200159.00,CAMBRIDGESHIRE COUNTY COUNCIL CAMBRIDGESHIRE COUNTY COUNCIL,36676,03/03/2020,423001364924,ADVERTISING,23/07/2020,0,1567,1567,Cambridge City Business Case ,"Clothes, Uniform And Laundry",62000
http://statistics.data.gov.uk/id/local-authority/12UE,Huntingdonshire District Council,200283.00,ESRI UK ESRI UK,38363,31/07/2020,UK-PIN004948,CONSULTANCY,03/09/2020,776.75,3883.75,4660.5,Cambridge City Business Case ,Consultancy Fees,62400
http://statistics.data.gov.uk/id/local-authority/12UE,Huntingdonshire District Council,201370.00,TRUSTED BUSINESS INTELLIGENCE LTD,36953,20/07/2020,3427,APPLICATION SUPPORT,13/08/2020,600,3000,3600,Cambridge City Business Case ,Consultancy Fees,62400
http://statistics.data.gov.uk/id/local-authority/12UE,Huntingdonshire District Council,200423.00,IRON MOUNTAIN UK LIMITED IRON MOUNTAIN UK LIMITED,38446,30/06/2020,18165484,NETWORK INFRASTRUCTURE,03/09/2020,268.63,1343.14,1611.77,Cambridge City Business Case ,Shared Service Contribution,64060
http://statistics.data.gov.uk/id/local-authority/12UE,Huntingdonshire District Council,200423.00,IRON MOUNTAIN UK LIMITED IRON MOUNTAIN UK LIMITED,38447,31/07/2020,18165758,NETWORK INFRASTRUCTURE,03/09/2020,264.5,1322.51,1587.01,Cambridge City Business Case ,Shared Service Contribution,64060
http://statistics.data.gov.uk/id/local-authority/12UE,Huntingdonshire District Council,200149.00,CAMBRIDGE CITY COUNCIL CAMBRIDGE CITY COUNCIL,36436,29/03/2020,12045134,REIMBURSEMENT RE CENTRAL IT COSTS,09/07/2020,8451.78,42258.88,50710.66,Cambridge City Business Case ,Ict Hardware,64070
http://statistics.data.gov.uk/id/local-authority/12UE,Huntingdonshire District Council,200166.00,CAPITA CAPITA,38942,15/05/2020,6003986319,MAINTENANCE APRIL 20-MARCH 21,17/09/2020,3796.78,18983.91,22780.69,Cambridge City Business Case ,Ict Hardware,64070
http://statistics.data.gov.uk/id/local-authority/12UE,Huntingdonshire District Council,200593.00,ORCHARD INFORMATION SYSTEMS LTD ORCHARD INFORMATION SYSTEMS LTD,36500,01/06/2020,SLMR/00013629,ANNUAL RENEWALS,16/07/2020,2915.59,14577.96,17493.55,Cambridge City Business Case ,Ict Hardware,64070
http://statistics.data.gov.uk/id/local-authority/12UE,Huntingdonshire District Council,200811.00,ATOS IT SERVICES UK LTD UNIFY,38464,25/08/2020,5584343751,LAND LINE RENTAL,17/09/2020,2179.83,10899.17,13079,Cambridge City Business Case ,Ict Hardware,64070
http://statistics.data.gov.uk/id/local-authority/12UE,Huntingdonshire District Council,200811.00,ATOS IT SERVICES UK LTD UNIFY,38463,24/07/2020,5584341806,LAND LINE RENTAL,03/09/2020,2179.33,10896.67,13076,Cambridge City Business Case ,Ict Hardware,64070
http://statistics.data.gov.uk/id/local-authority/12UE,Huntingdonshire District Council,200811.00,ATOS IT SERVICES UK LTD UNIFY,37046,25/06/2020,5584339498,LAND LINE RENTAL,30/07/2020,2177.85,10889.26,13067.11,Cambridge City Business Case ,Ict Hardware,64070
http://statistics.data.gov.uk/id/local-authority/12UE,Huntingdonshire District Council,200811.00,ATOS IT SERVICES UK LTD UNIFY,37043,19/06/2020,5584339114,LAND LINE RENTAL,30/07/2020,2173.35,10866.75,13040.1,Cambridge City Business Case ,Ict Hardware,64070
http://statistics.data.gov.uk/id/local-authority/12UE,Huntingdonshire District Council,200149.00,CAMBRIDGE CITY COUNCIL CAMBRIDGE CITY COUNCIL,36435,04/03/2020,12043253,REIMBURSEMENT RE CENTRAL IT COSTS,09/07/2020,1507.4,7537,9044.4,Cambridge City Business Case ,Ict Hardware,64070
http://statistics.data.gov.uk/id/local-authority/12UE,Huntingdonshire District Council,200149.00,CAMBRIDGE CITY COUNCIL CAMBRIDGE CITY COUNCIL,37582,06/08/2020,12048089,CENTRAL IT COSTS,14/08/2020,1638.35,8191.74,9830.09,Cambridge City Business Case ,Ict Hardware,64070
http://statistics.data.gov.uk/id/local-authority/12UE,Huntingdonshire District Council,200770.00,TELEFONICA UK LTD TELEFONICA UK LTD,37660,20/07/2020,67231440,LINE RENTAL,13/08/2020,1660,8300.01,9960.01,Cambridge City Business Case ,Ict Hardware,64070
http://statistics.data.gov.uk/id/local-authority/12UE,Huntingdonshire District Council,200770.00,TELEFONICA UK LTD TELEFONICA UK LTD,36067,20/06/2020,64837510,LINE RENTAL,16/07/2020,1611,8055.02,9666.02,Cambridge City Business Case ,Ict Hardware,64070
http://statistics.data.gov.uk/id/local-authority/12UE,Huntingdonshire District Council,200770.00,TELEFONICA UK LTD TELEFONICA UK LTD,36065,20/06/2020,64873721,LINE RENTAL,16/07/2020,199.87,999.37,1199.24,Cambridge City Business Case ,Ict Hardware,64070
http://statistics.data.gov.uk/id/local-authority/12UE,Huntingdonshire District Council,200770.00,TELEFONICA UK LTD TELEFONICA UK LTD,37659,20/07/2020,67270358,RENTAL & LEASE,13/08/2020,199.87,999.37,1199.24,Cambridge City Business Case ,Ict Hardware,64070
http://statistics.data.gov.uk/id/local-authority/12UE,Huntingdonshire District Council,200985.00,VUELIO,35939,22/06/2020,INV13234,SUBSCRIPTION,16/07/2020,657.45,3287.25,3944.7,Cambridge City Business Case ,Ict Hardware,64070
http://statistics.data.gov.uk/id/local-authority/12UE,Huntingdonshire District Council,200593.00,ORCHARD INFORMATION SYSTEMS LTD ORCHARD INFORMATION SYSTEMS LTD,38178,30/06/2020,SLIN/00048118,ICT SOFTWARE,27/08/2020,1200,6000,7200,Cambridge City Business Case ,Ict Hardware,64070
http://statistics.data.gov.uk/id/local-authority/12UE,Huntingdonshire District Council,200770.00,TELEFONICA UK LTD TELEFONICA UK LTD,36066,20/06/2020,64873698,LINE RENTAL,16/07/2020,57.48,287.41,344.89,Cambridge City Business Case ,Ict Hardware,64070
http://statistics.data.gov.uk/id/local-authority/12UE,Huntingdonshire District Council,200770.00,TELEFONICA UK LTD TELEFONICA UK LTD,37658,20/07/2020,67270192,LINE RENTAL,13/08/2020,60.3,301.48,361.78,Cambridge City Business Case ,Ict Hardware,64070
http://statistics.data.gov.uk/id/local-authority/12UE,Huntingdonshire District Council,200614.00,PHOENIX SOFTWARE LTD PHOENIX SOFTWARE LTD,37363,10/07/2020,OP/I871207,LICENCES,06/08/2020,306.39,1531.95,1838.34,Cambridge City Business Case ,Ict Hardware,64070
http://statistics.data.gov.uk/id/local-authority/12UE,Huntingdonshire District Council,200591.00,ORACLE CORPORATION UK LTD ORACLE CORPORATION UK LTD,37760,28/07/2020,1770729,SOFTWARE UPDATE,14/08/2020,234.03,1170.15,1404.18,Cambridge City Business Case ,Ict Hardware,64070
http://statistics.data.gov.uk/id/local-authority/12UE,Huntingdonshire District Council,200869.00,REDCENTRIC SOLUTIONS LTD REDCENTRIC SOLUTIONS LTD,38454,06/08/2020,293733,LAND LINE RENTAL,03/09/2020,119.38,596.9,716.28,Cambridge City Business Case ,Ict Hardware,64070
http://statistics.data.gov.uk/id/local-authority/12UE,Huntingdonshire District Council,200869.00,REDCENTRIC SOLUTIONS LTD REDCENTRIC SOLUTIONS LTD,38455,06/07/2020,291930,LAND LINE RENTAL,03/09/2020,119.38,596.9,716.28,Cambridge City Business Case ,Ict Hardware,64070
http://statistics.data.gov.uk/id/local-authority/12UE,Huntingdonshire District Council,200869.00,REDCENTRIC SOLUTIONS LTD REDCENTRIC SOLUTIONS LTD,38456,06/06/2020,290057,LAND LINE RENTAL,03/09/2020,119.38,596.9,716.28,Cambridge City Business Case ,Ict Hardware,64070
http://statistics.data.gov.uk/id/local-authority/12UE,Huntingdonshire District Council,200968.00,NORTHGATE PUBLIC SERVICES UK LTD,35390,06/06/2020,91435162,LICENCE,02/07/2020,69.56,347.8,417.36,Cambridge City Business Case ,Ict Hardware,64070
http://statistics.data.gov.uk/id/local-authority/12UE,Huntingdonshire District Council,200605.00,PCF PCF,36303,30/06/2020,144107,BACS SOFTWARE,16/07/2020,68.5,342.5,411,Cambridge City Business Case ,Ict Hardware,64070
http://statistics.data.gov.uk/id/local-authority/12UE,Huntingdonshire District Council,200605.00,PCF PCF,36304,02/07/2020,144125,BACS SOFTWARE,16/07/2020,68.5,342.5,411,Cambridge City Business Case ,Ict Hardware,64070
http://statistics.data.gov.uk/id/local-authority/12UE,Huntingdonshire District Council,200605.00,PCF PCF,38449,05/08/2020,144400,BACS SOFTWARE,03/09/2020,68.5,342.5,411,Cambridge City Business Case ,Ict Hardware,64070
http://statistics.data.gov.uk/id/local-authority/12UE,Huntingdonshire District Council,202143.00,APT SKIDATA LTD,36645,29/06/2020,INV000002314,ICT SOFTWARE,23/07/2020,63.65,318.27,381.92,Cambridge City Business Case ,Ict Hardware,64070
http://statistics.data.gov.uk/id/local-authority/12UE,Huntingdonshire District Council,200828.00,VODAFONE CABLE & WIRELESS VODAFONE CABLE & WIRELESS,38183,15/06/2020,UK10/062020/1562,BROADBAND LINE RENTAL,27/08/2020,422.4,2111.99,2534.39,Cambridge City Business Case ,Broadband Line Rental,64080
http://statistics.data.gov.uk/id/local-authority/12UE,Huntingdonshire District Council,200828.00,VODAFONE CABLE & WIRELESS VODAFONE CABLE & WIRELESS,38203,01/07/2020,UK10/072020/2625,BROADBAND LINE RENTAL,27/08/2020,271.15,1355.74,1626.89,Cambridge City Business Case ,Broadband Line Rental,64080
http://statistics.data.gov.uk/id/local-authority/12UE,Huntingdonshire District Council,200951.00,ENTANET INTERNATIONAL LTD,36113,01/04/2020,EIL0029659,BROADBAND LINE RENTAL,02/07/2020,180,900,1080,Cambridge City Business Case ,Broadband Line Rental,64080
http://statistics.data.gov.uk/id/local-authority/12UE,Huntingdonshire District Council,200951.00,ENTANET INTERNATIONAL LTD,38113,01/07/2020,EIL0057021,BROADBAND LINE RENTAL,27/08/2020,180,900,1080,Cambridge City Business Case ,Broadband Line Rental,64080
http://statistics.data.gov.uk/id/local-authority/12UE,Huntingdonshire District Council,200951.00,ENTANET INTERNATIONAL LTD,38114,01/06/2020,EIL0047287,BROADBAND LINE RENTAL,27/08/2020,180,900,1080,Cambridge City Business Case ,Broadband Line Rental,64080
http://statistics.data.gov.uk/id/local-authority/12UE,Huntingdonshire District Council,200951.00,ENTANET INTERNATIONAL LTD,38115,01/05/2020,EIL0038531,BROADBAND LINE RENTAL,27/08/2020,180,900,1080,Cambridge City Business Case ,Broadband Line Rental,64080
http://statistics.data.gov.uk/id/local-authority/12UE,Huntingdonshire District Council,200614.00,PHOENIX SOFTWARE LTD PHOENIX SOFTWARE LTD,37527,01/06/2020,OP/I868265,SUBSCRIPTIONS,06/08/2020,133.8,668.99,802.79,Cambridge Live ,Ict Hardware,64070
http://statistics.data.gov.uk/id/local-authority/12UE,Huntingdonshire District Council,200614.00,PHOENIX SOFTWARE LTD PHOENIX SOFTWARE LTD,37528,30/06/2020,OP/I870367,SUBSCRIPTIONS,06/08/2020,133.8,668.99,802.79,Cambridge Live ,Ict Hardware,64070
http://statistics.data.gov.uk/id/local-authority/12UE,Huntingdonshire District Council,200614.00,PHOENIX SOFTWARE LTD PHOENIX SOFTWARE LTD,38212,30/07/2020,OP/I872780,SUBSCRIPTION,27/08/2020,133.8,668.99,802.79,Cambridge Live ,Ict Hardware,64070
http://statistics.data.gov.uk/id/local-authority/12UE,Huntingdonshire District Council,201138.00,BORNEY UK LTD,38364,26/08/2020,51801,CORREX PANELS,17/09/2020,101.2,506,607.2,Car Park Management,Signs,60299
http://statistics.data.gov.uk/id/local-authority/12UE,Huntingdonshire District Council,201138.00,BORNEY UK LTD,38364,26/08/2020,51801,CORREX PANELS,17/09/2020,418,2090,2508,Car Park Management,Signs,60299
http://statistics.data.gov.uk/id/local-authority/12UE,Huntingdonshire District Council,201138.00,BORNEY UK LTD,35628,15/06/2020,51373,SIGNS,09/07/2020,465.6,2328,2793.6,Car Park Management,Signs,60299
http://statistics.data.gov.uk/id/local-authority/12UE,Huntingdonshire District Council,201138.00,BORNEY UK LTD,38365,26/08/2020,51800,STICKERS,17/09/2020,51.92,259.6,311.52,Car Park Management,Signs,60299
http://statistics.data.gov.uk/id/local-authority/12UE,Huntingdonshire District Council,202256.00,EASY CLEAN CONTRACTORS LTD,36984,30/06/2020,16543,CLEANING JUNE 2020,30/07/2020,67.74,338.71,406.45,Car Park Management,Refuse Collection /Skips,60500
http://statistics.data.gov.uk/id/local-authority/12UE,Huntingdonshire District Council,202256.00,EASY CLEAN CONTRACTORS LTD,36324,31/05/2020,16492,CLEANING APRIL 2020,09/07/2020,67.74,338.71,406.45,Car Park Management,Refuse Collection /Skips,60500
http://statistics.data.gov.uk/id/local-authority/12UE,Huntingdonshire District Council,202256.00,EASY CLEAN CONTRACTORS LTD,36437,31/05/2020,16381,CLEANING MAY 2020,09/07/2020,64.66,323.32,387.98,Car Park Management,Refuse Collection /Skips,60500
http://statistics.data.gov.uk/id/local-authority/12UE,Huntingdonshire District Council,200434.00,JADE SECURITY SERVICES LTD JADE SECURITY SERVICES LTD,38985,31/08/2020,0000000422,CASH COLLECTION - PARKING,24/09/2020,81.6,408,489.6,Car Park Management,Contract Charges ,61800
http://statistics.data.gov.uk/id/local-authority/12UE,Huntingdonshire District Council,200526.00,MASKEARAID LTD MASKEARAID LTD,37135,09/07/2020,71921,WIPES,06/08/2020,204,1020,1224,Car Park Management,"Clothes, Uniform And Laundry",62000
http://statistics.data.gov.uk/id/local-authority/12UE,Huntingdonshire District Council,200148.00,CALLCREDIT LTD CALLCREDIT LTD,38080,01/08/2020,854998,USAGE,27/08/2020,0.21,1.05,1.26,Car Park Management,Enquiries,63400
http://statistics.data.gov.uk/id/local-authority/12UE,Huntingdonshire District Council,200148.00,CALLCREDIT LTD CALLCREDIT LTD,37112,01/07/2020,849661,USAGE,30/07/2020,0.63,3.15,3.78,Car Park Management,Enquiries,63400
http://statistics.data.gov.uk/id/local-authority/12UE,Huntingdonshire District Council,200190.00,CHIPSIDE CHIPSIDE,38314,27/08/2020,S203946,ZEBRA - TC56,24/09/2020,117.14,585.72,702.86,Car Park Management,Ict Hardware,64070
http://statistics.data.gov.uk/id/local-authority/12UE,Huntingdonshire District Council,200190.00,CHIPSIDE CHIPSIDE,38314,27/08/2020,S203946,ZEBRA - TC56,24/09/2020,2,10,12,Car Park Management,Ict Hardware,64070
http://statistics.data.gov.uk/id/local-authority/12UE,Huntingdonshire District Council,202343.00,Polygon UK,36531,03/07/2020,PROFORMA 465652,CLEANING OPS,16/07/2020,0,699.1,699.1,Cctv Huntingdonshire,Refuse Collection /Skips,60500
http://statistics.data.gov.uk/id/local-authority/12UE,Huntingdonshire District Council,202343.00,Polygon UK,36556,03/07/2020,465652 PRO FORMA,ops  cleaning,16/07/2020,0,699.1,699.1,Cctv Huntingdonshire,Refuse Collection /Skips,60500
http://statistics.data.gov.uk/id/local-authority/12UE,Huntingdonshire District Council,202343.00,Polygon UK,37118,14/07/2020,750770,CLEANING SERVICES,06/08/2020,116.52,582.58,699.1,Cctv Huntingdonshire,Refuse Collection /Skips,60500
http://statistics.data.gov.uk/id/local-authority/12UE,Huntingdonshire District Council,200655.00,QUADRANT SECURITY GROUP QUADRANT SECURITY GROUP,36597,14/07/2020,SIN091769,CAMERA,16/07/2020,578.98,2894.91,3473.89,Cctv Huntingdonshire,Hire - Equipment Furniture And Materials,61700
http://statistics.data.gov.uk/id/local-authority/12UE,Huntingdonshire District Council,201155.00,BALFOUR BEATTY LIVING PLACES LTD,35558,05/06/2020,CSUK OU/INV/90378,CCTV,02/07/2020,127.59,637.95,765.54,Cctv Huntingdonshire,Hire - Equipment Furniture And Materials,61700
http://statistics.data.gov.uk/id/local-authority/12UE,Huntingdonshire District Council,202232.00,KLAXON LTD,36096,15/06/2020,KL2153,CCTV,02/07/2020,200,1000,1200,Cctv Huntingdonshire,Consultancy Fees,62400
http://statistics.data.gov.uk/id/local-authority/12UE,Huntingdonshire District Council,202232.00,KLAXON LTD,36357,29/06/2020,KL2155,CONSULTANCY,09/07/2020,100,500,600,Cctv Huntingdonshire,Consultancy Fees,62400
http://statistics.data.gov.uk/id/local-authority/12UE,Huntingdonshire District Council,202232.00,KLAXON LTD,37599,03/08/2020,KL2171,CONSULTANCY,13/08/2020,50,250,300,Cctv Huntingdonshire,Consultancy Fees,62400
http://statistics.data.gov.uk/id/local-authority/12UE,Huntingdonshire District Council,200655.00,QUADRANT SECURITY GROUP QUADRANT SECURITY GROUP,36785,19/05/2020,SIN091380,CCTV INTEGRATION,23/07/2020,1999,9995,11994,Cctv PFH Resilience,Equipment,61713
http://statistics.data.gov.uk/id/local-authority/12UE,Huntingdonshire District Council,200655.00,QUADRANT SECURITY GROUP QUADRANT SECURITY GROUP,36637,02/07/2020,SIN091695,CCTV MAINTENANCE - CAMBRIDGE,30/07/2020,653.4,3267,3920.4,Cctv Shared Service - City,Hire - Equipment Furniture And Materials,61700
http://statistics.data.gov.uk/id/local-authority/12UE,Huntingdonshire District Council,200655.00,QUADRANT SECURITY GROUP QUADRANT SECURITY GROUP,37598,29/07/2020,SIN091852,CCTV MAINTENANCE - CAMBRIDGE,14/08/2020,653.4,3267,3920.4,Cctv Shared Service - City,Hire - Equipment Furniture And Materials,61700
http://statistics.data.gov.uk/id/local-authority/12UE,Huntingdonshire District Council,200825.00,VIRGIN MEDIA BUSINESS VIRGIN MEDIA BUSINESS,37021,04/07/2020,242160-162,CCTV CAMERAS,30/07/2020,402.71,2013.55,2416.26,Cctv Shared Service - City,Ict Hardware,64070
http://statistics.data.gov.uk/id/local-authority/12UE,Huntingdonshire District Council,200655.00,QUADRANT SECURITY GROUP QUADRANT SECURITY GROUP,38293,27/05/2020,SIN91460,UPDATE TO HUNTS CCTV,03/09/2020,18288.43,91442.15,109730.58,Cctv Shared Service - HDC,Hire - Equipment Furniture And Materials,61700
http://statistics.data.gov.uk/id/local-authority/12UE,Huntingdonshire District Council,200655.00,QUADRANT SECURITY GROUP QUADRANT SECURITY GROUP,36636,02/07/2020,SIN091694,CCTV MAINTENANCE - HUNTS,30/07/2020,322.5,1612.5,1935,Cctv Shared Service - HDC,Hire - Equipment Furniture And Materials,61700
http://statistics.data.gov.uk/id/local-authority/12UE,Huntingdonshire District Council,200655.00,QUADRANT SECURITY GROUP QUADRANT SECURITY GROUP,37597,29/07/2020,SIN091851,CCTV MAINTENANCE - HUNTS,14/08/2020,322.5,1612.5,1935,Cctv Shared Service - HDC,Hire - Equipment Furniture And Materials,61700
http://statistics.data.gov.uk/id/local-authority/12UE,Huntingdonshire District Council,200278.00,E-ON ENERGY E-ON ENERGY,36742,01/07/2020,H18A5E2F23,UNMETERED CCTV,23/07/2020,310.23,1551.16,1861.39,Cctv Shared Service Hosting,General Fund Balances,30000
http://statistics.data.gov.uk/id/local-authority/12UE,Huntingdonshire District Council,200542.00,MIRAMAR ENGINEERING LTD MIRAMAR ENGINEERING LTD,37916,10/07/2020,004259,CCTV,20/08/2020,115,575,690,Cctv Shared Service Hosting,Facilities Management,60200
http://statistics.data.gov.uk/id/local-authority/12UE,Huntingdonshire District Council,200149.00,CAMBRIDGE CITY COUNCIL CAMBRIDGE CITY COUNCIL,38928,13/08/2020,12048174,BUILDING CONTROL FEES - EFH,17/09/2020,0,510,510,Cctv Shared Service Hosting,R & M Voids,60270
http://statistics.data.gov.uk/id/local-authority/12UE,Huntingdonshire District Council,201155.00,BALFOUR BEATTY LIVING PLACES LTD,37930,17/08/2020,CSUK OU/INV/93364,CCTV,10/09/2020,62.83,314.14,376.97,Cctv Shared Service Hosting,Payroll,69310
http://statistics.data.gov.uk/id/local-authority/12UE,Huntingdonshire District Council,201155.00,BALFOUR BEATTY LIVING PLACES LTD,37930,17/08/2020,CSUK OU/INV/93364,CCTV,10/09/2020,182.21,911.04,1093.25,Cctv Shared Service Hosting,Payroll,69310
http://statistics.data.gov.uk/id/local-authority/12UE,Huntingdonshire District Council,200210.00,COMPUTERSHARE VOUCHERS LTD COMPUTERSHARE VOUCHERS LTD,37069,27/07/2020,C-0003094011,TAX FREE VOUCHERS,30/07/2020,11.89,59.43,71.32,Child Care Vouchers - Payroll,Tax Deduction (Interest),23010
http://statistics.data.gov.uk/id/local-authority/12UE,Huntingdonshire District Council,200210.00,COMPUTERSHARE VOUCHERS LTD COMPUTERSHARE VOUCHERS LTD,38211,27/08/2020,C-0003106174,TAX FREE VOUCHERS,27/08/2020,11.59,57.93,69.52,Child Care Vouchers - Payroll,Tax Deduction (Interest),23010
http://statistics.data.gov.uk/id/local-authority/12UE,Huntingdonshire District Council,200210.00,COMPUTERSHARE VOUCHERS LTD COMPUTERSHARE VOUCHERS LTD,39315,24/09/2020,C-0003117350,CHILDCARE VOUCHERS,24/09/2020,10.02,50.1,60.12,Child Care Vouchers - Payroll,Pension Deficit Funding,60100
http://statistics.data.gov.uk/id/local-authority/12UE,Huntingdonshire District Council,200026.00,ADVANTAGE ADVANTAGE,37416,29/07/2020,133400,REDACTED,14/08/2020,205,1025,1230,City Digital Extra,Salary Cost Outside Payroll,60010
http://statistics.data.gov.uk/id/local-authority/12UE,Huntingdonshire District Council,200026.00,ADVANTAGE ADVANTAGE,38467,03/08/2020,133416,REDACTED,03/09/2020,205,1025,1230,City Digital Extra,Salary Cost Outside Payroll,60010
http://statistics.data.gov.uk/id/local-authority/12UE,Huntingdonshire District Council,200026.00,ADVANTAGE ADVANTAGE,38468,10/08/2020,133453,REDACTED,03/09/2020,205,1025,1230,City Digital Extra,Salary Cost Outside Payroll,60010
http://statistics.data.gov.uk/id/local-authority/12UE,Huntingdonshire District Council,200026.00,ADVANTAGE ADVANTAGE,38469,17/08/2020,133491,REDACTED,10/09/2020,205,1025,1230,City Digital Extra,Salary Cost Outside Payroll,60010
http://statistics.data.gov.uk/id/local-authority/12UE,Huntingdonshire District Council,200026.00,ADVANTAGE ADVANTAGE,38712,26/08/2020,133551,REDACTED,10/09/2020,205,1025,1230,City Digital Extra,Salary Cost Outside Payroll,60010
http://statistics.data.gov.uk/id/local-authority/12UE,Huntingdonshire District Council,200026.00,ADVANTAGE ADVANTAGE,38713,01/09/2020,133564,REDACTED,10/09/2020,205,1025,1230,City Digital Extra,Salary Cost Outside Payroll,60010
http://statistics.data.gov.uk/id/local-authority/12UE,Huntingdonshire District Council,200026.00,ADVANTAGE ADVANTAGE,37415,22/07/2020,133361,REDACTED,13/08/2020,194.75,973.75,1168.5,City Digital Extra,Salary Cost Outside Payroll,60010
http://statistics.data.gov.uk/id/local-authority/12UE,Huntingdonshire District Council,200980.00,SNELLING BUSINESS SYSTEMS LTD,37119,15/07/2020,SL17085,EQUIPMENT MAINTENANCE,06/08/2020,869.82,4349.1,5218.92,City Recoverable,Hire - Equipment Furniture And Materials,61700
http://statistics.data.gov.uk/id/local-authority/12UE,Huntingdonshire District Council,200401.00,IDOX IDOX,36462,08/07/2020,7029720,CONSULTANCY,16/07/2020,575,2875,3450,City Recoverable,Consultancy Fees,62400
http://statistics.data.gov.uk/id/local-authority/12UE,Huntingdonshire District Council,200968.00,NORTHGATE PUBLIC SERVICES UK LTD,39054,02/09/2020,91437902,PROFESSIONAL SERVICES,24/09/2020,510,2550,3060,City Recoverable,Consultancy Fees,62400
http://statistics.data.gov.uk/id/local-authority/12UE,Huntingdonshire District Council,200614.00,PHOENIX SOFTWARE LTD PHOENIX SOFTWARE LTD,35624,12/06/2020,OP/I869103,MICROSOFT EAS - YEAR 3,09/07/2020,187.97,939.87,1127.84,City Recoverable,Ict Hardware,64070
http://statistics.data.gov.uk/id/local-authority/12UE,Huntingdonshire District Council,200614.00,PHOENIX SOFTWARE LTD PHOENIX SOFTWARE LTD,35624,12/06/2020,OP/I869103,MICROSOFT EAS - YEAR 3,09/07/2020,46.01,230.04,276.05,City Recoverable,Ict Hardware,64070
http://statistics.data.gov.uk/id/local-authority/12UE,Huntingdonshire District Council,200614.00,PHOENIX SOFTWARE LTD PHOENIX SOFTWARE LTD,35624,12/06/2020,OP/I869103,MICROSOFT EAS - YEAR 3,09/07/2020,87.45,437.27,524.72,City Recoverable,Ict Hardware,64070
http://statistics.data.gov.uk/id/local-authority/12UE,Huntingdonshire District Council,200614.00,PHOENIX SOFTWARE LTD PHOENIX SOFTWARE LTD,35624,12/06/2020,OP/I869103,MICROSOFT EAS - YEAR 3,09/07/2020,33.84,169.21,203.05,City Recoverable,Ict Hardware,64070
http://statistics.data.gov.uk/id/local-authority/12UE,Huntingdonshire District Council,200614.00,PHOENIX SOFTWARE LTD PHOENIX SOFTWARE LTD,35624,12/06/2020,OP/I869103,MICROSOFT EAS - YEAR 3,09/07/2020,39.12,195.58,234.7,City Recoverable,Ict Hardware,64070
http://statistics.data.gov.uk/id/local-authority/12UE,Huntingdonshire District Council,200620.00,PLAYFORDS LTD PLAYFORDS LTD,36972,30/06/2020,19647,ICT HARDWARE,23/07/2020,1510.01,7550.06,9060.07,City Recoverable,Ict Hardware,64070
http://statistics.data.gov.uk/id/local-authority/12UE,Huntingdonshire District Council,200614.00,PHOENIX SOFTWARE LTD PHOENIX SOFTWARE LTD,38210,30/07/2020,OP/I872732,SUBSCRIPTIONS,27/08/2020,217.95,1089.73,1307.68,City Recoverable,Ict Hardware,64070
http://statistics.data.gov.uk/id/local-authority/12UE,Huntingdonshire District Council,200614.00,PHOENIX SOFTWARE LTD PHOENIX SOFTWARE LTD,38210,30/07/2020,OP/I872732,SUBSCRIPTIONS,27/08/2020,24.33,121.64,145.97,City Recoverable,Ict Hardware,64070
http://statistics.data.gov.uk/id/local-authority/12UE,Huntingdonshire District Council,200614.00,PHOENIX SOFTWARE LTD PHOENIX SOFTWARE LTD,35693,15/06/2020,OP/I869209,THINKPADS,09/07/2020,176.98,884.92,1061.9,City Recoverable,Ict Hardware,64070
http://statistics.data.gov.uk/id/local-authority/12UE,Huntingdonshire District Council,201980.00,MLL TELECOM LTD,38442,31/07/2020,SI12543,INSTALLATION FEES,03/09/2020,425.94,2129.7,2555.64,City Recoverable,Ict Hardware,64070
http://statistics.data.gov.uk/id/local-authority/12UE,Huntingdonshire District Council,200413.00,INSIGHT DIRECT UK LTD INSIGHT DIRECT UK LTD,37430,05/06/2020,4863041,CONFERENCE PHONES,06/08/2020,306.64,1533.18,1839.82,City Recoverable,Ict Hardware,64070
http://statistics.data.gov.uk/id/local-authority/12UE,Huntingdonshire District Council,200614.00,PHOENIX SOFTWARE LTD PHOENIX SOFTWARE LTD,37373,13/07/2020,OP/I871344,LICENCES,06/08/2020,23.5,117.48,140.98,City Recoverable,Ict Hardware,64070
http://statistics.data.gov.uk/id/local-authority/12UE,Huntingdonshire District Council,202052.00,KEY TERRA-FIRMA LTD,36644,11/06/2020,22259,ICT SOFTWARE,23/07/2020,63,315,378,City Recoverable,Ict Hardware,64070
http://statistics.data.gov.uk/id/local-authority/12UE,Huntingdonshire District Council,202052.00,KEY TERRA-FIRMA LTD,36644,11/06/2020,22259,ICT SOFTWARE,23/07/2020,210,1050,1260,City Recoverable,Ict Hardware,64070
http://statistics.data.gov.uk/id/local-authority/12UE,Huntingdonshire District Council,200413.00,INSIGHT DIRECT UK LTD INSIGHT DIRECT UK LTD,37743,06/08/2020,4935952,3CICT Polycom conference phone,14/08/2020,142.18,710.89,853.07,City Recoverable,Ict Hardware,64070
http://statistics.data.gov.uk/id/local-authority/12UE,Huntingdonshire District Council,200770.00,TELEFONICA UK LTD TELEFONICA UK LTD,35650,09/06/2020,63909271,IPHONE X 2,02/07/2020,136.8,684,820.8,City Recoverable,Ict Hardware,64070
http://statistics.data.gov.uk/id/local-authority/12UE,Huntingdonshire District Council,200968.00,NORTHGATE PUBLIC SERVICES UK LTD,39055,02/09/2020,91437901,ICT SOFTWARE,24/09/2020,120,600,720,City Recoverable,Ict Hardware,64070
http://statistics.data.gov.uk/id/local-authority/12UE,Huntingdonshire District Council,200614.00,PHOENIX SOFTWARE LTD PHOENIX SOFTWARE LTD,37356,22/07/2020,OP/I872018,ICT HARDWARE,13/08/2020,107.64,538.2,645.84,City Recoverable,Ict Hardware,64070
http://statistics.data.gov.uk/id/local-authority/12UE,Huntingdonshire District Council,200614.00,PHOENIX SOFTWARE LTD PHOENIX SOFTWARE LTD,37375,29/07/2020,OP/I872568,LICENCES,14/08/2020,21.86,109.32,131.18,City Recoverable,Ict Hardware,64070
http://statistics.data.gov.uk/id/local-authority/12UE,Huntingdonshire District Council,200614.00,PHOENIX SOFTWARE LTD PHOENIX SOFTWARE LTD,36131,29/06/2020,OP/I870119,LICENSING SUBSCRIPTIONS,16/07/2020,13.86,69.3,83.16,City Recoverable,Ict Hardware,64070
http://statistics.data.gov.uk/id/local-authority/12UE,Huntingdonshire District Council,200614.00,PHOENIX SOFTWARE LTD PHOENIX SOFTWARE LTD,35623,11/06/2020,OP/I869027,SUBSCRIPTION,09/07/2020,27.72,138.6,166.32,City Recoverable,Ict Hardware,64070
http://statistics.data.gov.uk/id/local-authority/12UE,Huntingdonshire District Council,200614.00,PHOENIX SOFTWARE LTD PHOENIX SOFTWARE LTD,35452,08/06/2020,OP/I868722,LICENCE,02/07/2020,74.59,372.93,447.52,City Recoverable,Ict Hardware,64070
http://statistics.data.gov.uk/id/local-authority/12UE,Huntingdonshire District Council,200770.00,TELEFONICA UK LTD TELEFONICA UK LTD,35648,05/06/2020,63588836,IPHONE,02/07/2020,68.4,342,410.4,City Recoverable,Ict Hardware,64070
http://statistics.data.gov.uk/id/local-authority/12UE,Huntingdonshire District Council,200770.00,TELEFONICA UK LTD TELEFONICA UK LTD,35987,13/06/2020,64233378,IPHONE,09/07/2020,68.4,342,410.4,City Recoverable,Ict Hardware,64070
http://statistics.data.gov.uk/id/local-authority/12UE,Huntingdonshire District Council,200770.00,TELEFONICA UK LTD TELEFONICA UK LTD,37245,21/07/2020,67275451,IPHONE,13/08/2020,68.4,342,410.4,City Recoverable,Ict Hardware,64070
http://statistics.data.gov.uk/id/local-authority/12UE,Huntingdonshire District Council,200770.00,TELEFONICA UK LTD TELEFONICA UK LTD,37247,29/07/2020,67820707,IPHONE,14/08/2020,68.4,342,410.4,City Recoverable,Ict Hardware,64070
http://statistics.data.gov.uk/id/local-authority/12UE,Huntingdonshire District Council,200770.00,TELEFONICA UK LTD TELEFONICA UK LTD,38274,30/07/2020,67884797,IPHONE,03/09/2020,68.4,342,410.4,City Recoverable,Ict Hardware,64070
http://statistics.data.gov.uk/id/local-authority/12UE,Huntingdonshire District Council,200770.00,TELEFONICA UK LTD TELEFONICA UK LTD,38275,05/08/2020,68239290,IPHONE,03/09/2020,68.4,342,410.4,City Recoverable,Ict Hardware,64070
http://statistics.data.gov.uk/id/local-authority/12UE,Huntingdonshire District Council,200770.00,TELEFONICA UK LTD TELEFONICA UK LTD,38289,12/08/2020,68754580,IPHONE,03/09/2020,68.4,342,410.4,City Recoverable,Ict Hardware,64070
http://statistics.data.gov.uk/id/local-authority/12UE,Huntingdonshire District Council,200770.00,TELEFONICA UK LTD TELEFONICA UK LTD,38338,06/08/2020,68345428,IPHONE,03/09/2020,68.4,342,410.4,City Recoverable,Ict Hardware,64070
http://statistics.data.gov.uk/id/local-authority/12UE,Huntingdonshire District Council,200770.00,TELEFONICA UK LTD TELEFONICA UK LTD,38613,18/07/2020,67029477,IPHONE,10/09/2020,68.4,342,410.4,City Recoverable,Ict Hardware,64070
http://statistics.data.gov.uk/id/local-authority/12UE,Huntingdonshire District Council,200614.00,PHOENIX SOFTWARE LTD PHOENIX SOFTWARE LTD,37584,30/07/2020,OP/I872621,LICENCE,14/08/2020,61.98,309.89,371.87,City Recoverable,Ict Hardware,64070
http://statistics.data.gov.uk/id/local-authority/12UE,Huntingdonshire District Council,200614.00,PHOENIX SOFTWARE LTD PHOENIX SOFTWARE LTD,35621,10/06/2020,OP/I868937,LICENCE,02/07/2020,60.27,301.35,361.62,City Recoverable,Ict Hardware,64070
http://statistics.data.gov.uk/id/local-authority/12UE,Huntingdonshire District Council,200987.00,YOTTA,36063,28/01/2020,12105,WASTE MANAGEMENT SOFTWARE,02/07/2020,1558.78,7793.88,9352.66,City Recoverable,Ict Hardware,64070
http://statistics.data.gov.uk/id/local-authority/12UE,Huntingdonshire District Council,201584.00,RAM MOUNT UK LTD,37107,17/06/2020,RM 25170,ICT HARDWARE,30/07/2020,14,69.98,83.98,City Recoverable,Ict Hardware,64070
http://statistics.data.gov.uk/id/local-authority/12UE,Huntingdonshire District Council,201584.00,RAM MOUNT UK LTD,37107,17/06/2020,RM 25170,ICT HARDWARE,30/07/2020,39.43,197.16,236.59,City Recoverable,Ict Hardware,64070
http://statistics.data.gov.uk/id/local-authority/12UE,Huntingdonshire District Council,201584.00,RAM MOUNT UK LTD,37107,17/06/2020,RM 25170,ICT HARDWARE,30/07/2020,8.5,42.48,50.98,City Recoverable,Ict Hardware,64070
http://statistics.data.gov.uk/id/local-authority/12UE,Huntingdonshire District Council,201584.00,RAM MOUNT UK LTD,37107,17/06/2020,RM 25170,ICT HARDWARE,30/07/2020,3.96,19.82,23.78,City Recoverable,Ict Hardware,64070
http://statistics.data.gov.uk/id/local-authority/12UE,Huntingdonshire District Council,201584.00,RAM MOUNT UK LTD,37107,17/06/2020,RM 25170,ICT HARDWARE,30/07/2020,7.93,39.66,47.59,City Recoverable,Ict Hardware,64070
http://statistics.data.gov.uk/id/local-authority/12UE,Huntingdonshire District Council,201584.00,RAM MOUNT UK LTD,37107,17/06/2020,RM 25170,ICT HARDWARE,30/07/2020,0.27,1.32,1.59,City Recoverable,Ict Hardware,64070
http://statistics.data.gov.uk/id/local-authority/12UE,Huntingdonshire District Council,201584.00,RAM MOUNT UK LTD,37107,17/06/2020,RM 25170,ICT HARDWARE,30/07/2020,0.75,3.74,4.49,City Recoverable,Ict Hardware,64070
http://statistics.data.gov.uk/id/local-authority/12UE,Huntingdonshire District Council,201584.00,RAM MOUNT UK LTD,37107,17/06/2020,RM 25170,ICT HARDWARE,30/07/2020,0.16,0.81,0.97,City Recoverable,Ict Hardware,64070
http://statistics.data.gov.uk/id/local-authority/12UE,Huntingdonshire District Council,201584.00,RAM MOUNT UK LTD,37107,17/06/2020,RM 25170,ICT HARDWARE,30/07/2020,0.08,0.37,0.45,City Recoverable,Ict Hardware,64070
http://statistics.data.gov.uk/id/local-authority/12UE,Huntingdonshire District Council,201584.00,RAM MOUNT UK LTD,37107,17/06/2020,RM 25170,ICT HARDWARE,30/07/2020,0.15,0.75,0.9,City Recoverable,Ict Hardware,64070
http://statistics.data.gov.uk/id/local-authority/12UE,Huntingdonshire District Council,202366.00,REDACTED,38131,25/08/2020,REDACTED,refund against agreed electrical works,17/09/2020,0,1014,1014,Commercial Investment Strategy,Facilities Management,60200
http://statistics.data.gov.uk/id/local-authority/12UE,Huntingdonshire District Council,200894.00,Workman,38221,24/08/2020,835580/171,REDACTED,03/09/2020,369.82,1849.11,2218.93,Commercial Investment Strategy,Rents Payable,60400
http://statistics.data.gov.uk/id/local-authority/12UE,Huntingdonshire District Council,200894.00,Workman,38222,24/08/2020,835580/176,REDACTED,03/09/2020,338.3,1691.51,2029.81,Commercial Investment Strategy,Rents Payable,60400
http://statistics.data.gov.uk/id/local-authority/12UE,Huntingdonshire District Council,200894.00,Workman,38215,24/08/2020,809900/739,REDACTED,03/09/2020,151.41,757.07,908.48,Commercial Investment Strategy,Rents Payable,60400
http://statistics.data.gov.uk/id/local-authority/12UE,Huntingdonshire District Council,200894.00,Workman,38216,24/08/2020,809900/734,REDACTED,03/09/2020,151.41,757.07,908.48,Commercial Investment Strategy,Rents Payable,60400
http://statistics.data.gov.uk/id/local-authority/12UE,Huntingdonshire District Council,200894.00,Workman,37074,29/06/2020,809900/690,BALANCING SERVICE CHARGE,03/09/2020,-54.4,-271.99,-326.39,Commercial Investment Strategy,Rents Payable,60400
http://statistics.data.gov.uk/id/local-authority/12UE,Huntingdonshire District Council,200894.00,Workman,37076,29/06/2020,809900/685,BALANCING SERVICE CHARGE,03/09/2020,-54.4,-271.99,-326.39,Commercial Investment Strategy,Rents Payable,60400
http://statistics.data.gov.uk/id/local-authority/12UE,Huntingdonshire District Council,200894.00,Workman,37078,29/06/2020,835580/165,BALANCING SERVICE CHARGE,03/09/2020,-348.57,-1742.83,-2091.4,Commercial Investment Strategy,Rents Payable,60400
http://statistics.data.gov.uk/id/local-authority/12UE,Huntingdonshire District Council,200894.00,Workman,37077,29/06/2020,835580/160,BALANCING SERVICE CHARGE,03/09/2020,-381.04,-1905.18,-2286.22,Commercial Investment Strategy,Rents Payable,60400
http://statistics.data.gov.uk/id/local-authority/12UE,Huntingdonshire District Council,200682.00,RIDGE AND PARTNERS LLP RIDGE AND PARTNERS LLP,38411,28/08/2020,179444,CONSULTANCY,24/09/2020,156.5,782.5,939,Commercial Investment Strategy,Consultancy Fees,62400
http://statistics.data.gov.uk/id/local-authority/12UE,Huntingdonshire District Council,200682.00,RIDGE AND PARTNERS LLP RIDGE AND PARTNERS LLP,38411,28/08/2020,179444,CONSULTANCY,24/09/2020,130,650,780,Commercial Investment Strategy,Consultancy Fees,62400
http://statistics.data.gov.uk/id/local-authority/12UE,Huntingdonshire District Council,200891.00,RAFFERTY LIGHTNING PROTECTION LTD,36791,16/07/2020,1357,TEST & INSPECTION OF LIGHTNING,13/08/2020,24,120,144,Commercial Properties,Facilities Management,60200
http://statistics.data.gov.uk/id/local-authority/12UE,Huntingdonshire District Council,200075.00,B S GRAVES ELECTRICAL LTD B S GRAVES ELECTRICAL LTD,37340,30/07/2020,29254,REMEDIAL WORKS,14/08/2020,16.8,84,100.8,Commercial Properties,Facilities Management,60200
http://statistics.data.gov.uk/id/local-authority/12UE,Huntingdonshire District Council,200075.00,B S GRAVES ELECTRICAL LTD B S GRAVES ELECTRICAL LTD,37340,30/07/2020,29254,REMEDIAL WORKS,14/08/2020,21.6,108,129.6,Commercial Properties,Facilities Management,60200
http://statistics.data.gov.uk/id/local-authority/12UE,Huntingdonshire District Council,200075.00,B S GRAVES ELECTRICAL LTD B S GRAVES ELECTRICAL LTD,37340,30/07/2020,29254,REMEDIAL WORKS,14/08/2020,90,450,540,Commercial Properties,Facilities Management,60200
http://statistics.data.gov.uk/id/local-authority/12UE,Huntingdonshire District Council,200393.00,HUNTS FORUM OF VOLUNTARY ORGANISATIONS HUNTS FORUM OF VOLUNTARY ORGANISATIONS,36430,03/10/2019,6847,FIRE SYSTEM MAINTENANCE,09/07/2020,0,404.24,404.24,Commercial Properties,Facilities Management,60200
http://statistics.data.gov.uk/id/local-authority/12UE,Huntingdonshire District Council,200393.00,HUNTS FORUM OF VOLUNTARY ORGANISATIONS HUNTS FORUM OF VOLUNTARY ORGANISATIONS,36431,06/01/2020,6912,FIRE SYSTEM MAINTENANCE,09/07/2020,0,404.24,404.24,Commercial Properties,Facilities Management,60200
http://statistics.data.gov.uk/id/local-authority/12UE,Huntingdonshire District Council,200126.00,BRITISH GAS BUSINESS BRITISH GAS BUSINESS,38917,02/09/2020,997326300,EASTFIELD HOUSE,17/09/2020,79.34,396.72,476.06,Commercial Properties,Signs Erecting & Removal,60300
http://statistics.data.gov.uk/id/local-authority/12UE,Huntingdonshire District Council,201078.00,CHARTERED INSTITUTE OF ENVIRONMENTAL HEALTH,38538,26/08/2020,207516,CDP PROGRAMME,17/09/2020,0,650,650,Commercial Team,Ias19 Past Service Costs,60110
http://statistics.data.gov.uk/id/local-authority/12UE,Huntingdonshire District Council,200827.00,VIVID RESOURCING LIMITED VIVID RESOURCING LIMITED,35887,10/06/2020,47447,REDACTED,02/07/2020,427.5,2137.5,2565,Commercial Team,Consultancy Fees,62400
http://statistics.data.gov.uk/id/local-authority/12UE,Huntingdonshire District Council,200827.00,VIVID RESOURCING LIMITED VIVID RESOURCING LIMITED,37948,05/08/2020,48989,REDACTED,27/08/2020,387,1935,2322,Commercial Team,Consultancy Fees,62400
http://statistics.data.gov.uk/id/local-authority/12UE,Huntingdonshire District Council,200827.00,VIVID RESOURCING LIMITED VIVID RESOURCING LIMITED,36514,08/07/2020,48202,community staff,16/07/2020,382.5,1912.5,2295,Commercial Team,Consultancy Fees,62400
http://statistics.data.gov.uk/id/local-authority/12UE,Huntingdonshire District Council,200827.00,VIVID RESOURCING LIMITED VIVID RESOURCING LIMITED,37052,22/07/2020,48567,REDACTED,13/08/2020,378,1890,2268,Commercial Team,Consultancy Fees,62400
http://statistics.data.gov.uk/id/local-authority/12UE,Huntingdonshire District Council,200827.00,VIVID RESOURCING LIMITED VIVID RESOURCING LIMITED,38042,19/08/2020,49396,REDACTED,10/09/2020,375.75,1878.75,2254.5,Commercial Team,Consultancy Fees,62400
http://statistics.data.gov.uk/id/local-authority/12UE,Huntingdonshire District Council,200827.00,VIVID RESOURCING LIMITED VIVID RESOURCING LIMITED,36108,24/06/2020,47760,REDACTED,16/07/2020,373.5,1867.5,2241,Commercial Team,Consultancy Fees,62400
http://statistics.data.gov.uk/id/local-authority/12UE,Huntingdonshire District Council,200827.00,VIVID RESOURCING LIMITED VIVID RESOURCING LIMITED,36299,02/07/2020,47951,REDACTED,16/07/2020,364.5,1822.5,2187,Commercial Team,Consultancy Fees,62400
http://statistics.data.gov.uk/id/local-authority/12UE,Huntingdonshire District Council,200827.00,VIVID RESOURCING LIMITED VIVID RESOURCING LIMITED,38269,26/08/2020,49574,REDACTED,17/09/2020,362.25,1811.25,2173.5,Commercial Team,Consultancy Fees,62400
http://statistics.data.gov.uk/id/local-authority/12UE,Huntingdonshire District Council,200827.00,VIVID RESOURCING LIMITED VIVID RESOURCING LIMITED,37902,12/08/2020,49217,REDACTED,03/09/2020,355.5,1777.5,2133,Commercial Team,Consultancy Fees,62400
http://statistics.data.gov.uk/id/local-authority/12UE,Huntingdonshire District Council,200827.00,VIVID RESOURCING LIMITED VIVID RESOURCING LIMITED,36781,15/07/2020,48396,REDACTED,06/08/2020,346.5,1732.5,2079,Commercial Team,Consultancy Fees,62400
http://statistics.data.gov.uk/id/local-authority/12UE,Huntingdonshire District Council,200827.00,VIVID RESOURCING LIMITED VIVID RESOURCING LIMITED,38593,02/09/2020,49804,REDACTED,24/09/2020,346.5,1732.5,2079,Commercial Team,Consultancy Fees,62400
http://statistics.data.gov.uk/id/local-authority/12UE,Huntingdonshire District Council,200827.00,VIVID RESOURCING LIMITED VIVID RESOURCING LIMITED,35929,17/06/2020,47601,REDACTED,09/07/2020,333,1665,1998,Commercial Team,Consultancy Fees,62400
http://statistics.data.gov.uk/id/local-authority/12UE,Huntingdonshire District Council,200827.00,VIVID RESOURCING LIMITED VIVID RESOURCING LIMITED,37423,29/07/2020,48726,REDACTED,14/08/2020,333,1665,1998,Commercial Team,Consultancy Fees,62400
http://statistics.data.gov.uk/id/local-authority/12UE,Huntingdonshire District Council,200215.00,CORNERSTONE BARRISTERS CORNERSTONE BARRISTERS,38058,20/08/2020,148752,CODE OF CONDUCT COMPLAINT,17/09/2020,60,300,360,Committee Management,Enquiries,63400
http://statistics.data.gov.uk/id/local-authority/12UE,Huntingdonshire District Council,202279.00,HICKS GROUP PRACTICE,38638,26/05/2020,12525,CIL GRANT,10/09/2020,0,32341,32341,Community Infrastructure,Grants And Contributions,64600
http://statistics.data.gov.uk/id/local-authority/12UE,Huntingdonshire District Council,201254.00,St Neots Town Council,37150,30/04/2020,INV386,CIL GRANT STREETS,30/07/2020,0,10000,10000,Community Infrastructure,Grants And Contributions,64600
http://statistics.data.gov.uk/id/local-authority/12UE,Huntingdonshire District Council,200234.00,DELOITTE DELOITTE,35891,11/06/2020,8001230583,HUNTINGDON LINK ROAD PROJECT,09/07/2020,2254.36,11271.8,13526.16,Community Infrastructure,Grants And Contributions,64600
http://statistics.data.gov.uk/id/local-authority/12UE,Huntingdonshire District Council,202356.00,CHRISTINE GRAHAM CONSULTANCY LTD,37804,06/08/2020,2020-008,DOMESTIC HOMICIDE REVIEW,03/09/2020,350,1750,2100,Community Safety,Grants And Contributions,64600
http://statistics.data.gov.uk/id/local-authority/12UE,Huntingdonshire District Council,200354.00,HACT HACT,38395,31/03/2020,INV-0254,COMMUNITY TRANSPORT,03/09/2020,0,916.13,916.13,Concessionary Fares,Grants And Contributions,64600
http://statistics.data.gov.uk/id/local-authority/12UE,Huntingdonshire District Council,200769.00,TECHNOLOGY ONE LTD TECHNOLOGY ONE LTD,38391,28/08/2020,U003587,CONSULTANCY,24/09/2020,195,975,1170,Corporate Finance,Consultancy Fees,62400
http://statistics.data.gov.uk/id/local-authority/12UE,Huntingdonshire District Council,200769.00,TECHNOLOGY ONE LTD TECHNOLOGY ONE LTD,37137,26/06/2020,U003484,CONSULTANCY,30/07/2020,97.5,487.5,585,Corporate Finance,Consultancy Fees,62400
http://statistics.data.gov.uk/id/local-authority/12UE,Huntingdonshire District Council,200500.00,LOCAL GOVERNMENT ASSOCIATION LOCAL GOVERNMENT ASSOCIATION,38835,01/09/2020,41103650,PROJECT DELIVERY INCOME,24/09/2020,3318.58,16592.88,19911.46,Corporate Team,Consultancy Fees,62400
http://statistics.data.gov.uk/id/local-authority/12UE,Huntingdonshire District Council,201137.00,REDACTED,32475,12/03/2020,PRF120320,EXPENSES,27/08/2020,9.83,49.16,58.99,Countryside Service Management,Party Hire,55010
http://statistics.data.gov.uk/id/local-authority/12UE,Huntingdonshire District Council,200156.00,CAMBRIDGE VENDING LTD T/A THE VENDING PEOPLE CAMBRIDGE VENDING,37607,24/07/2020,210347,VENDING MACHINES,14/08/2020,36.48,182.39,218.87,Covid-19,Memorial Sales Income,51200
http://statistics.data.gov.uk/id/local-authority/12UE,Huntingdonshire District Council,200156.00,CAMBRIDGE VENDING LTD T/A THE VENDING PEOPLE CAMBRIDGE VENDING,37607,24/07/2020,210347,VENDING MACHINES,14/08/2020,54.27,271.34,325.61,Covid-19,Memorial Sales Income,51200
http://statistics.data.gov.uk/id/local-authority/12UE,Huntingdonshire District Council,201114.00,XP RECRUITMENT LTD,36714,08/07/2020,9629,WAREHOUSE W/E 04/07/20,30/07/2020,1027.83,5139.15,6166.98,Covid-19,Salary Cost Outside Payroll,60010
http://statistics.data.gov.uk/id/local-authority/12UE,Huntingdonshire District Council,201114.00,XP RECRUITMENT LTD,37508,22/07/2020,9673,WAREHOUSE W/E 18/07/20,13/08/2020,1026.77,5133.85,6160.62,Covid-19,Salary Cost Outside Payroll,60010
http://statistics.data.gov.uk/id/local-authority/12UE,Huntingdonshire District Council,201114.00,XP RECRUITMENT LTD,36286,13/06/2020,9581,WAREHOUSE W/E 13/06/20,09/07/2020,909.08,4545.4,5454.48,Covid-19,Salary Cost Outside Payroll,60010
http://statistics.data.gov.uk/id/local-authority/12UE,Huntingdonshire District Council,201114.00,XP RECRUITMENT LTD,36378,01/07/2020,9612,WAREHOUSE W/E 27/06/20,16/07/2020,899.59,4497.95,5397.54,Covid-19,Salary Cost Outside Payroll,60010
http://statistics.data.gov.uk/id/local-authority/12UE,Huntingdonshire District Council,201114.00,XP RECRUITMENT LTD,36238,10/06/2020,9566,WAREHOUSE W/E 06/06/20,09/07/2020,870.38,4351.9,5222.28,Covid-19,Salary Cost Outside Payroll,60010
http://statistics.data.gov.uk/id/local-authority/12UE,Huntingdonshire District Council,201114.00,XP RECRUITMENT LTD,36883,15/07/2020,9661,WAREHOUSE W/E 11/07/20,06/08/2020,853.68,4268.4,5122.08,Covid-19,Salary Cost Outside Payroll,60010
http://statistics.data.gov.uk/id/local-authority/12UE,Huntingdonshire District Council,200743.00,STAFFLINE GROUP STAFFLINE GROUP,36292,01/07/2020,73879,GARDEN WASTE W/C 21/06/20,16/07/2020,436.56,2182.8,2619.36,Covid-19,Salary Cost Outside Payroll,60010
http://statistics.data.gov.uk/id/local-authority/12UE,Huntingdonshire District Council,200743.00,STAFFLINE GROUP STAFFLINE GROUP,38790,15/07/2020,75423,REFUSE W/C 05/07/20,10/09/2020,380.06,1900.32,2280.38,Covid-19,Salary Cost Outside Payroll,60010
http://statistics.data.gov.uk/id/local-authority/12UE,Huntingdonshire District Council,200743.00,STAFFLINE GROUP STAFFLINE GROUP,37878,08/07/2020,74667,GARDEN WASTE W/C 28/06/20,20/08/2020,265.79,1328.94,1594.73,Covid-19,Salary Cost Outside Payroll,60010
http://statistics.data.gov.uk/id/local-authority/12UE,Huntingdonshire District Council,200550.00,MORGAN HUNT PUBLIC UK LTD MORGAN HUNT PUBLIC UK LTD,36055,21/06/2020,1183043,REDACTED,02/07/2020,257.14,1285.7,1542.84,Covid-19,Salary Cost Outside Payroll,60010
http://statistics.data.gov.uk/id/local-authority/12UE,Huntingdonshire District Council,200550.00,MORGAN HUNT PUBLIC UK LTD MORGAN HUNT PUBLIC UK LTD,36263,28/06/2020,1184108,REDACTED,09/07/2020,257.14,1285.7,1542.84,Covid-19,Salary Cost Outside Payroll,60010
http://statistics.data.gov.uk/id/local-authority/12UE,Huntingdonshire District Council,200550.00,MORGAN HUNT PUBLIC UK LTD MORGAN HUNT PUBLIC UK LTD,36527,05/07/2020,1185025,BENEFITS STAFF,16/07/2020,257.14,1285.7,1542.84,Covid-19,Salary Cost Outside Payroll,60010
http://statistics.data.gov.uk/id/local-authority/12UE,Huntingdonshire District Council,200550.00,MORGAN HUNT PUBLIC UK LTD MORGAN HUNT PUBLIC UK LTD,36706,12/07/2020,1185904,REDACTED,23/07/2020,257.14,1285.7,1542.84,Covid-19,Salary Cost Outside Payroll,60010
http://statistics.data.gov.uk/id/local-authority/12UE,Huntingdonshire District Council,200550.00,MORGAN HUNT PUBLIC UK LTD MORGAN HUNT PUBLIC UK LTD,37251,26/07/2020,1187690,REDACTED,06/08/2020,257.14,1285.7,1542.84,Covid-19,Salary Cost Outside Payroll,60010
http://statistics.data.gov.uk/id/local-authority/12UE,Huntingdonshire District Council,200550.00,MORGAN HUNT PUBLIC UK LTD MORGAN HUNT PUBLIC UK LTD,37665,02/08/2020,1188538,REDACTED,13/08/2020,257.14,1285.7,1542.84,Covid-19,Salary Cost Outside Payroll,60010
http://statistics.data.gov.uk/id/local-authority/12UE,Huntingdonshire District Council,200550.00,MORGAN HUNT PUBLIC UK LTD MORGAN HUNT PUBLIC UK LTD,37737,14/06/2020,1181926,REDACTED,13/08/2020,257.14,1285.7,1542.84,Covid-19,Salary Cost Outside Payroll,60010
http://statistics.data.gov.uk/id/local-authority/12UE,Huntingdonshire District Council,200550.00,MORGAN HUNT PUBLIC UK LTD MORGAN HUNT PUBLIC UK LTD,37818,09/08/2020,1189378,REDACTED,20/08/2020,257.14,1285.7,1542.84,Covid-19,Salary Cost Outside Payroll,60010
http://statistics.data.gov.uk/id/local-authority/12UE,Huntingdonshire District Council,200550.00,MORGAN HUNT PUBLIC UK LTD MORGAN HUNT PUBLIC UK LTD,38074,16/08/2020,1190212,REDACTED,27/08/2020,257.14,1285.7,1542.84,Covid-19,Salary Cost Outside Payroll,60010
http://statistics.data.gov.uk/id/local-authority/12UE,Huntingdonshire District Council,200550.00,MORGAN HUNT PUBLIC UK LTD MORGAN HUNT PUBLIC UK LTD,38250,23/08/2020,1191054,REDACTED,03/09/2020,257.14,1285.7,1542.84,Covid-19,Salary Cost Outside Payroll,60010
http://statistics.data.gov.uk/id/local-authority/12UE,Huntingdonshire District Council,200550.00,MORGAN HUNT PUBLIC UK LTD MORGAN HUNT PUBLIC UK LTD,38579,30/08/2020,1191929,REDACTED,10/09/2020,257.14,1285.7,1542.84,Covid-19,Salary Cost Outside Payroll,60010
http://statistics.data.gov.uk/id/local-authority/12UE,Huntingdonshire District Council,200550.00,MORGAN HUNT PUBLIC UK LTD MORGAN HUNT PUBLIC UK LTD,39149,13/09/2020,1193831,REDACTED,24/09/2020,254.15,1270.75,1524.9,Covid-19,Salary Cost Outside Payroll,60010
http://statistics.data.gov.uk/id/local-authority/12UE,Huntingdonshire District Council,200550.00,MORGAN HUNT PUBLIC UK LTD MORGAN HUNT PUBLIC UK LTD,38929,06/09/2020,1192871,REDACTED,17/09/2020,251.16,1255.8,1506.96,Covid-19,Salary Cost Outside Payroll,60010
http://statistics.data.gov.uk/id/local-authority/12UE,Huntingdonshire District Council,200743.00,STAFFLINE GROUP STAFFLINE GROUP,36290,07/06/2020,72376,RECYCLING W/C 07/06/20,23/07/2020,243.52,1217.6,1461.12,Covid-19,Salary Cost Outside Payroll,60010
http://statistics.data.gov.uk/id/local-authority/12UE,Huntingdonshire District Council,200550.00,MORGAN HUNT PUBLIC UK LTD MORGAN HUNT PUBLIC UK LTD,37047,19/07/2020,1186730,REDACTED,30/07/2020,242.19,1210.95,1453.14,Covid-19,Salary Cost Outside Payroll,60010
http://statistics.data.gov.uk/id/local-authority/12UE,Huntingdonshire District Council,200743.00,STAFFLINE GROUP STAFFLINE GROUP,36947,05/06/2020,71644,RECYCLING W/C 31/05/20,23/07/2020,223.79,1118.96,1342.75,Covid-19,Salary Cost Outside Payroll,60010
http://statistics.data.gov.uk/id/local-authority/12UE,Huntingdonshire District Council,200550.00,MORGAN HUNT PUBLIC UK LTD MORGAN HUNT PUBLIC UK LTD,36054,21/06/2020,1183044,REDACTED,02/07/2020,220.8,1104,1324.8,Covid-19,Salary Cost Outside Payroll,60010
http://statistics.data.gov.uk/id/local-authority/12UE,Huntingdonshire District Council,200550.00,MORGAN HUNT PUBLIC UK LTD MORGAN HUNT PUBLIC UK LTD,36261,28/06/2020,1184111,REDACTED,09/07/2020,220.8,1104,1324.8,Covid-19,Salary Cost Outside Payroll,60010
http://statistics.data.gov.uk/id/local-authority/12UE,Huntingdonshire District Council,200550.00,MORGAN HUNT PUBLIC UK LTD MORGAN HUNT PUBLIC UK LTD,36528,05/07/2020,1185027,BENEFITS STAFF,16/07/2020,220.8,1104,1324.8,Covid-19,Salary Cost Outside Payroll,60010
http://statistics.data.gov.uk/id/local-authority/12UE,Huntingdonshire District Council,200550.00,MORGAN HUNT PUBLIC UK LTD MORGAN HUNT PUBLIC UK LTD,36705,12/07/2020,1185905,REDACTED,23/07/2020,220.8,1104,1324.8,Covid-19,Salary Cost Outside Payroll,60010
http://statistics.data.gov.uk/id/local-authority/12UE,Huntingdonshire District Council,200550.00,MORGAN HUNT PUBLIC UK LTD MORGAN HUNT PUBLIC UK LTD,37049,19/07/2020,1186733,REDACTED,30/07/2020,220.8,1104,1324.8,Covid-19,Salary Cost Outside Payroll,60010
http://statistics.data.gov.uk/id/local-authority/12UE,Huntingdonshire District Council,200550.00,MORGAN HUNT PUBLIC UK LTD MORGAN HUNT PUBLIC UK LTD,37250,26/07/2020,1187692,REDACTED,06/08/2020,220.8,1104,1324.8,Covid-19,Salary Cost Outside Payroll,60010
http://statistics.data.gov.uk/id/local-authority/12UE,Huntingdonshire District Council,200550.00,MORGAN HUNT PUBLIC UK LTD MORGAN HUNT PUBLIC UK LTD,37663,02/08/2020,1188540,REDACTED,13/08/2020,220.8,1104,1324.8,Covid-19,Salary Cost Outside Payroll,60010
http://statistics.data.gov.uk/id/local-authority/12UE,Huntingdonshire District Council,200550.00,MORGAN HUNT PUBLIC UK LTD MORGAN HUNT PUBLIC UK LTD,38249,23/08/2020,1191056,REDACTED,03/09/2020,220.8,1104,1324.8,Covid-19,Salary Cost Outside Payroll,60010
http://statistics.data.gov.uk/id/local-authority/12UE,Huntingdonshire District Council,200550.00,MORGAN HUNT PUBLIC UK LTD MORGAN HUNT PUBLIC UK LTD,38582,30/08/2020,1191931,REDACTED,10/09/2020,220.8,1104,1324.8,Covid-19,Salary Cost Outside Payroll,60010
http://statistics.data.gov.uk/id/local-authority/12UE,Huntingdonshire District Council,200550.00,MORGAN HUNT PUBLIC UK LTD MORGAN HUNT PUBLIC UK LTD,38930,06/09/2020,1192874,REDACTED,17/09/2020,220.8,1104,1324.8,Covid-19,Salary Cost Outside Payroll,60010
http://statistics.data.gov.uk/id/local-authority/12UE,Huntingdonshire District Council,200550.00,MORGAN HUNT PUBLIC UK LTD MORGAN HUNT PUBLIC UK LTD,39152,13/09/2020,113834,REDACTED,24/09/2020,220.8,1104,1324.8,Covid-19,Salary Cost Outside Payroll,60010
http://statistics.data.gov.uk/id/local-authority/12UE,Huntingdonshire District Council,200743.00,STAFFLINE GROUP STAFFLINE GROUP,37879,08/07/2020,75668,REFUSE W/C 28/06/20,20/08/2020,209.29,1046.46,1255.75,Covid-19,Salary Cost Outside Payroll,60010
http://statistics.data.gov.uk/id/local-authority/12UE,Huntingdonshire District Council,200550.00,MORGAN HUNT PUBLIC UK LTD MORGAN HUNT PUBLIC UK LTD,36057,21/06/2020,1183042,REDACTED,02/07/2020,204.24,1021.2,1225.44,Covid-19,Salary Cost Outside Payroll,60010
http://statistics.data.gov.uk/id/local-authority/12UE,Huntingdonshire District Council,200550.00,MORGAN HUNT PUBLIC UK LTD MORGAN HUNT PUBLIC UK LTD,36264,28/06/2020,1184109,REDACTED,09/07/2020,204.24,1021.2,1225.44,Covid-19,Salary Cost Outside Payroll,60010
http://statistics.data.gov.uk/id/local-authority/12UE,Huntingdonshire District Council,200550.00,MORGAN HUNT PUBLIC UK LTD MORGAN HUNT PUBLIC UK LTD,36530,05/07/2020,1185026,BENEFITS STAFF,16/07/2020,204.24,1021.2,1225.44,Covid-19,Salary Cost Outside Payroll,60010
http://statistics.data.gov.uk/id/local-authority/12UE,Huntingdonshire District Council,200550.00,MORGAN HUNT PUBLIC UK LTD MORGAN HUNT PUBLIC UK LTD,36703,12/07/2020,1185903,REDACTED,23/07/2020,204.24,1021.2,1225.44,Covid-19,Salary Cost Outside Payroll,60010
http://statistics.data.gov.uk/id/local-authority/12UE,Huntingdonshire District Council,200550.00,MORGAN HUNT PUBLIC UK LTD MORGAN HUNT PUBLIC UK LTD,37134,14/06/2020,1181925,REDACTED,30/07/2020,204.24,1021.2,1225.44,Covid-19,Salary Cost Outside Payroll,60010
http://statistics.data.gov.uk/id/local-authority/12UE,Huntingdonshire District Council,200550.00,MORGAN HUNT PUBLIC UK LTD MORGAN HUNT PUBLIC UK LTD,38076,16/08/2020,1190215,REDACTED,27/08/2020,204.24,1021.2,1225.44,Covid-19,Salary Cost Outside Payroll,60010
http://statistics.data.gov.uk/id/local-authority/12UE,Huntingdonshire District Council,200550.00,MORGAN HUNT PUBLIC UK LTD MORGAN HUNT PUBLIC UK LTD,38578,30/08/2020,1191930,REDACTED,10/09/2020,204.24,1021.2,1225.44,Covid-19,Salary Cost Outside Payroll,60010
http://statistics.data.gov.uk/id/local-authority/12UE,Huntingdonshire District Council,200550.00,MORGAN HUNT PUBLIC UK LTD MORGAN HUNT PUBLIC UK LTD,39151,13/09/2020,1193832,REDACTED,24/09/2020,204.24,1021.2,1225.44,Covid-19,Salary Cost Outside Payroll,60010
http://statistics.data.gov.uk/id/local-authority/12UE,Huntingdonshire District Council,200550.00,MORGAN HUNT PUBLIC UK LTD MORGAN HUNT PUBLIC UK LTD,38252,23/08/2020,1191055,REDACTED,03/09/2020,201.48,1007.4,1208.88,Covid-19,Salary Cost Outside Payroll,60010
http://statistics.data.gov.uk/id/local-authority/12UE,Huntingdonshire District Council,200550.00,MORGAN HUNT PUBLIC UK LTD MORGAN HUNT PUBLIC UK LTD,36262,28/06/2020,1184110,REDACTED,09/07/2020,190.44,952.2,1142.64,Covid-19,Salary Cost Outside Payroll,60010
http://statistics.data.gov.uk/id/local-authority/12UE,Huntingdonshire District Council,200550.00,MORGAN HUNT PUBLIC UK LTD MORGAN HUNT PUBLIC UK LTD,36529,05/07/2020,1185028,BENEFITS STAFF,16/07/2020,190.44,952.2,1142.64,Covid-19,Salary Cost Outside Payroll,60010
http://statistics.data.gov.uk/id/local-authority/12UE,Huntingdonshire District Council,200550.00,MORGAN HUNT PUBLIC UK LTD MORGAN HUNT PUBLIC UK LTD,37048,19/07/2020,1186732,REDACTED,30/07/2020,190.44,952.2,1142.64,Covid-19,Salary Cost Outside Payroll,60010
http://statistics.data.gov.uk/id/local-authority/12UE,Huntingdonshire District Council,200550.00,MORGAN HUNT PUBLIC UK LTD MORGAN HUNT PUBLIC UK LTD,37253,26/07/2020,1187691,REDACTED,06/08/2020,190.44,952.2,1142.64,Covid-19,Salary Cost Outside Payroll,60010
http://statistics.data.gov.uk/id/local-authority/12UE,Huntingdonshire District Council,200550.00,MORGAN HUNT PUBLIC UK LTD MORGAN HUNT PUBLIC UK LTD,37680,02/08/2020,1188539,REDACTED,13/08/2020,190.44,952.2,1142.64,Covid-19,Salary Cost Outside Payroll,60010
http://statistics.data.gov.uk/id/local-authority/12UE,Huntingdonshire District Council,200550.00,MORGAN HUNT PUBLIC UK LTD MORGAN HUNT PUBLIC UK LTD,38077,16/08/2020,1190214,REDACTED,27/08/2020,190.44,952.2,1142.64,Covid-19,Salary Cost Outside Payroll,60010
http://statistics.data.gov.uk/id/local-authority/12UE,Huntingdonshire District Council,200550.00,MORGAN HUNT PUBLIC UK LTD MORGAN HUNT PUBLIC UK LTD,38254,09/08/2020,1189380,REDACTED,03/09/2020,190.44,952.2,1142.64,Covid-19,Salary Cost Outside Payroll,60010
http://statistics.data.gov.uk/id/local-authority/12UE,Huntingdonshire District Council,200550.00,MORGAN HUNT PUBLIC UK LTD MORGAN HUNT PUBLIC UK LTD,36704,12/07/2020,1185906,REDACTED,23/07/2020,187.68,938.4,1126.08,Covid-19,Salary Cost Outside Payroll,60010
http://statistics.data.gov.uk/id/local-authority/12UE,Huntingdonshire District Council,200550.00,MORGAN HUNT PUBLIC UK LTD MORGAN HUNT PUBLIC UK LTD,36056,21/06/2020,1183045,REDACTED,02/07/2020,185.42,927.08,1112.5,Covid-19,Salary Cost Outside Payroll,60010
http://statistics.data.gov.uk/id/local-authority/12UE,Huntingdonshire District Council,200743.00,STAFFLINE GROUP STAFFLINE GROUP,36291,17/06/2020,72375,GARDEN WASTE W/C 07/06/20,23/07/2020,166.53,832.66,999.19,Covid-19,Salary Cost Outside Payroll,60010
http://statistics.data.gov.uk/id/local-authority/12UE,Huntingdonshire District Council,200550.00,MORGAN HUNT PUBLIC UK LTD MORGAN HUNT PUBLIC UK LTD,38931,06/09/2020,1192872,REDACTED,17/09/2020,162.84,814.2,977.04,Covid-19,Salary Cost Outside Payroll,60010
http://statistics.data.gov.uk/id/local-authority/12UE,Huntingdonshire District Council,200743.00,STAFFLINE GROUP STAFFLINE GROUP,36293,01/07/2020,73880,RECYCLING W/C 21/06/20,16/07/2020,133.54,667.68,801.22,Covid-19,Salary Cost Outside Payroll,60010
http://statistics.data.gov.uk/id/local-authority/12UE,Huntingdonshire District Council,200743.00,STAFFLINE GROUP STAFFLINE GROUP,36289,24/06/2020,73117,RECYCLING W/C 14/06/20,16/07/2020,132.01,660.04,792.05,Covid-19,Salary Cost Outside Payroll,60010
http://statistics.data.gov.uk/id/local-authority/12UE,Huntingdonshire District Council,200743.00,STAFFLINE GROUP STAFFLINE GROUP,35563,05/06/2020,71643,GARDEN WASTE W/C 31/05/20,23/07/2020,111.46,557.31,668.77,Covid-19,Salary Cost Outside Payroll,60010
http://statistics.data.gov.uk/id/local-authority/12UE,Huntingdonshire District Council,200918.00,1ST CHOICE RECRUITMENT,36839,11/07/2020,4000008932,REDACTED,06/08/2020,62.64,313.2,375.84,Covid-19,Salary Cost Outside Payroll,60010
http://statistics.data.gov.uk/id/local-authority/12UE,Huntingdonshire District Council,200694.00,ROGER WILSON ELECTRONICS ROGER WILSON ELECTRONICS,38592,31/08/2020,10471,OL ST NEOTS,10/09/2020,167.2,836,1003.2,Covid-19,Facilities Management,60200
http://statistics.data.gov.uk/id/local-authority/12UE,Huntingdonshire District Council,200694.00,ROGER WILSON ELECTRONICS ROGER WILSON ELECTRONICS,38570,31/08/2020,10472,OL HUNTINGDON,10/09/2020,86,430,516,Covid-19,Facilities Management,60200
http://statistics.data.gov.uk/id/local-authority/12UE,Huntingdonshire District Council,200542.00,MIRAMAR ENGINEERING LTD MIRAMAR ENGINEERING LTD,36797,12/05/2020,004036,EASTFIELD HOUSE,23/07/2020,96.47,482.37,578.84,Covid-19,Facilities Management,60200
http://statistics.data.gov.uk/id/local-authority/12UE,Huntingdonshire District Council,200542.00,MIRAMAR ENGINEERING LTD MIRAMAR ENGINEERING LTD,36297,26/06/2020,004219,OL ST NEOTS,16/07/2020,83.4,417,500.4,Covid-19,Facilities Management,60200
http://statistics.data.gov.uk/id/local-authority/12UE,Huntingdonshire District Council,200694.00,ROGER WILSON ELECTRONICS ROGER WILSON ELECTRONICS,38425,31/08/2020,10473,OL RAMSEY,10/09/2020,78,390,468,Covid-19,Facilities Management,60200
http://statistics.data.gov.uk/id/local-authority/12UE,Huntingdonshire District Council,200542.00,MIRAMAR ENGINEERING LTD MIRAMAR ENGINEERING LTD,38938,11/08/2020,004352,PRIORY PARK PAVILION,17/09/2020,77.4,387,464.4,Covid-19,Facilities Management,60200
http://statistics.data.gov.uk/id/local-authority/12UE,Huntingdonshire District Council,201138.00,BORNEY UK LTD,38188,25/08/2020,51781,SIGNS,17/09/2020,109.8,549,658.8,Covid-19,Signs,60299
http://statistics.data.gov.uk/id/local-authority/12UE,Huntingdonshire District Council,201138.00,BORNEY UK LTD,35796,11/06/2020,51366,SIGNS,09/07/2020,53.5,267.5,321,Covid-19,Signs,60299
http://statistics.data.gov.uk/id/local-authority/12UE,Huntingdonshire District Council,201138.00,BORNEY UK LTD,36244,01/07/2020,51472,SIGNS,16/07/2020,53.5,267.5,321,Covid-19,Signs,60299
http://statistics.data.gov.uk/id/local-authority/12UE,Huntingdonshire District Council,202256.00,EASY CLEAN CONTRACTORS LTD,37058,30/06/2020,16602,ADDITIONAL CLEANING,30/07/2020,362.47,1812.33,2174.8,Covid-19,Refuse Collection /Skips,60500
http://statistics.data.gov.uk/id/local-authority/12UE,Huntingdonshire District Council,202256.00,EASY CLEAN CONTRACTORS LTD,36565,31/05/2020,16381A,ops cleaning may,16/07/2020,167.29,836.46,1003.75,Covid-19,Refuse Collection /Skips,60500
http://statistics.data.gov.uk/id/local-authority/12UE,Huntingdonshire District Council,202251.00,REDACTED,36903,20/07/2020,1015,VEHICLE CLEANING,23/07/2020,0,600,600,Covid-19,Vehicle Inspection,60920
http://statistics.data.gov.uk/id/local-authority/12UE,Huntingdonshire District Council,202251.00,REDACTED,36903,20/07/2020,1015,VEHICLE CLEANING,23/07/2020,0,15,15,Covid-19,Vehicle Inspection,60920
http://statistics.data.gov.uk/id/local-authority/12UE,Huntingdonshire District Council,202251.00,REDACTED,36903,20/07/2020,1015,VEHICLE CLEANING,23/07/2020,0,150,150,Covid-19,Vehicle Inspection,60920
http://statistics.data.gov.uk/id/local-authority/12UE,Huntingdonshire District Council,202251.00,REDACTED,36903,20/07/2020,1015,VEHICLE CLEANING,23/07/2020,0,135,135,Covid-19,Vehicle Inspection,60920
http://statistics.data.gov.uk/id/local-authority/12UE,Huntingdonshire District Council,202251.00,REDACTED,37608,27/07/2020,1016,VEHICLE CLEANING,13/08/2020,0,600,600,Covid-19,Vehicle Inspection,60920
http://statistics.data.gov.uk/id/local-authority/12UE,Huntingdonshire District Council,202251.00,REDACTED,37608,27/07/2020,1016,VEHICLE CLEANING,13/08/2020,0,15,15,Covid-19,Vehicle Inspection,60920
http://statistics.data.gov.uk/id/local-authority/12UE,Huntingdonshire District Council,202251.00,REDACTED,37608,27/07/2020,1016,VEHICLE CLEANING,13/08/2020,0,150,150,Covid-19,Vehicle Inspection,60920
http://statistics.data.gov.uk/id/local-authority/12UE,Huntingdonshire District Council,202251.00,REDACTED,37608,27/07/2020,1016,VEHICLE CLEANING,13/08/2020,0,135,135,Covid-19,Vehicle Inspection,60920
http://statistics.data.gov.uk/id/local-authority/12UE,Huntingdonshire District Council,202251.00,REDACTED,37609,03/08/2020,1017,VEHICLE CLEANING,13/08/2020,0,600,600,Covid-19,Vehicle Inspection,60920
http://statistics.data.gov.uk/id/local-authority/12UE,Huntingdonshire District Council,202251.00,REDACTED,37609,03/08/2020,1017,VEHICLE CLEANING,13/08/2020,0,15,15,Covid-19,Vehicle Inspection,60920
http://statistics.data.gov.uk/id/local-authority/12UE,Huntingdonshire District Council,202251.00,REDACTED,37609,03/08/2020,1017,VEHICLE CLEANING,13/08/2020,0,150,150,Covid-19,Vehicle Inspection,60920
http://statistics.data.gov.uk/id/local-authority/12UE,Huntingdonshire District Council,202251.00,REDACTED,37609,03/08/2020,1017,VEHICLE CLEANING,13/08/2020,0,135,135,Covid-19,Vehicle Inspection,60920
http://statistics.data.gov.uk/id/local-authority/12UE,Huntingdonshire District Council,202251.00,REDACTED,37679,10/08/2020,1018,VEHICLE CLEANING,13/08/2020,0,580,580,Covid-19,Vehicle Inspection,60920
http://statistics.data.gov.uk/id/local-authority/12UE,Huntingdonshire District Council,202251.00,REDACTED,37679,10/08/2020,1018,VEHICLE CLEANING,13/08/2020,0,30,30,Covid-19,Vehicle Inspection,60920
http://statistics.data.gov.uk/id/local-authority/12UE,Huntingdonshire District Council,202251.00,REDACTED,37679,10/08/2020,1018,VEHICLE CLEANING,13/08/2020,0,150,150,Covid-19,Vehicle Inspection,60920
http://statistics.data.gov.uk/id/local-authority/12UE,Huntingdonshire District Council,202251.00,REDACTED,37679,10/08/2020,1018,VEHICLE CLEANING,13/08/2020,0,135,135,Covid-19,Vehicle Inspection,60920
http://statistics.data.gov.uk/id/local-authority/12UE,Huntingdonshire District Council,202251.00,REDACTED,38429,17/08/2020,1019,VEHICLE CLEANING,03/09/2020,0,580,580,Covid-19,Vehicle Inspection,60920
http://statistics.data.gov.uk/id/local-authority/12UE,Huntingdonshire District Council,202251.00,REDACTED,38429,17/08/2020,1019,VEHICLE CLEANING,03/09/2020,0,30,30,Covid-19,Vehicle Inspection,60920
http://statistics.data.gov.uk/id/local-authority/12UE,Huntingdonshire District Council,202251.00,REDACTED,38429,17/08/2020,1019,VEHICLE CLEANING,03/09/2020,0,150,150,Covid-19,Vehicle Inspection,60920
http://statistics.data.gov.uk/id/local-authority/12UE,Huntingdonshire District Council,202251.00,REDACTED,38429,17/08/2020,1019,VEHICLE CLEANING,03/09/2020,0,135,135,Covid-19,Vehicle Inspection,60920
http://statistics.data.gov.uk/id/local-authority/12UE,Huntingdonshire District Council,202251.00,REDACTED,39155,31/08/2020,1021,VEHICLE CLEANING,24/09/2020,0,580,580,Covid-19,Vehicle Inspection,60920
http://statistics.data.gov.uk/id/local-authority/12UE,Huntingdonshire District Council,202251.00,REDACTED,39155,31/08/2020,1021,VEHICLE CLEANING,24/09/2020,0,30,30,Covid-19,Vehicle Inspection,60920
http://statistics.data.gov.uk/id/local-authority/12UE,Huntingdonshire District Council,202251.00,REDACTED,39155,31/08/2020,1021,VEHICLE CLEANING,24/09/2020,0,135,135,Covid-19,Vehicle Inspection,60920
http://statistics.data.gov.uk/id/local-authority/12UE,Huntingdonshire District Council,202251.00,REDACTED,39155,31/08/2020,1021,VEHICLE CLEANING,24/09/2020,0,150,150,Covid-19,Vehicle Inspection,60920
http://statistics.data.gov.uk/id/local-authority/12UE,Huntingdonshire District Council,202251.00,REDACTED,39156,07/09/2020,1022,VEHICLE CLEANING,24/09/2020,0,580,580,Covid-19,Vehicle Inspection,60920
http://statistics.data.gov.uk/id/local-authority/12UE,Huntingdonshire District Council,202251.00,REDACTED,39156,07/09/2020,1022,VEHICLE CLEANING,24/09/2020,0,30,30,Covid-19,Vehicle Inspection,60920
http://statistics.data.gov.uk/id/local-authority/12UE,Huntingdonshire District Council,202251.00,REDACTED,39156,07/09/2020,1022,VEHICLE CLEANING,24/09/2020,0,135,135,Covid-19,Vehicle Inspection,60920
http://statistics.data.gov.uk/id/local-authority/12UE,Huntingdonshire District Council,202251.00,REDACTED,39156,07/09/2020,1022,VEHICLE CLEANING,24/09/2020,0,135,135,Covid-19,Vehicle Inspection,60920
http://statistics.data.gov.uk/id/local-authority/12UE,Huntingdonshire District Council,202251.00,REDACTED,36250,29/06/2020,1012,VEHICLE CLEANING,09/07/2020,0,560,560,Covid-19,Vehicle Inspection,60920
http://statistics.data.gov.uk/id/local-authority/12UE,Huntingdonshire District Council,202251.00,REDACTED,36250,29/06/2020,1012,VEHICLE CLEANING,09/07/2020,0,30,30,Covid-19,Vehicle Inspection,60920
http://statistics.data.gov.uk/id/local-authority/12UE,Huntingdonshire District Council,202251.00,REDACTED,36250,29/06/2020,1012,VEHICLE CLEANING,09/07/2020,0,150,150,Covid-19,Vehicle Inspection,60920
http://statistics.data.gov.uk/id/local-authority/12UE,Huntingdonshire District Council,202251.00,REDACTED,36250,29/06/2020,1012,VEHICLE CLEANING,09/07/2020,0,135,135,Covid-19,Vehicle Inspection,60920
http://statistics.data.gov.uk/id/local-authority/12UE,Huntingdonshire District Council,202251.00,REDACTED,36887,13/07/2020,1014,VEHICLE CLEANING,23/07/2020,0,560,560,Covid-19,Vehicle Inspection,60920
http://statistics.data.gov.uk/id/local-authority/12UE,Huntingdonshire District Council,202251.00,REDACTED,36887,13/07/2020,1014,VEHICLE CLEANING,23/07/2020,0,30,30,Covid-19,Vehicle Inspection,60920
http://statistics.data.gov.uk/id/local-authority/12UE,Huntingdonshire District Council,202251.00,REDACTED,36887,13/07/2020,1014,VEHICLE CLEANING,23/07/2020,0,150,150,Covid-19,Vehicle Inspection,60920
http://statistics.data.gov.uk/id/local-authority/12UE,Huntingdonshire District Council,202251.00,REDACTED,36887,13/07/2020,1014,VEHICLE CLEANING,23/07/2020,0,135,135,Covid-19,Vehicle Inspection,60920
http://statistics.data.gov.uk/id/local-authority/12UE,Huntingdonshire District Council,202251.00,REDACTED,38430,24/08/2020,1020,VEHICLE CLEANING,03/09/2020,0,560,560,Covid-19,Vehicle Inspection,60920
http://statistics.data.gov.uk/id/local-authority/12UE,Huntingdonshire District Council,202251.00,REDACTED,38430,24/08/2020,1020,VEHICLE CLEANING,03/09/2020,0,30,30,Covid-19,Vehicle Inspection,60920
http://statistics.data.gov.uk/id/local-authority/12UE,Huntingdonshire District Council,202251.00,REDACTED,38430,24/08/2020,1020,VEHICLE CLEANING,03/09/2020,0,135,135,Covid-19,Vehicle Inspection,60920
http://statistics.data.gov.uk/id/local-authority/12UE,Huntingdonshire District Council,202251.00,REDACTED,38430,24/08/2020,1020,VEHICLE CLEANING,03/09/2020,0,135,135,Covid-19,Vehicle Inspection,60920
http://statistics.data.gov.uk/id/local-authority/12UE,Huntingdonshire District Council,202251.00,REDACTED,36555,06/07/2020,1013,OPS STREET CLEANING,16/07/2020,0,540,540,Covid-19,Vehicle Inspection,60920
http://statistics.data.gov.uk/id/local-authority/12UE,Huntingdonshire District Council,202251.00,REDACTED,36555,06/07/2020,1013,OPS STREET CLEANING,16/07/2020,0,30,30,Covid-19,Vehicle Inspection,60920
http://statistics.data.gov.uk/id/local-authority/12UE,Huntingdonshire District Council,202251.00,REDACTED,36555,06/07/2020,1013,OPS STREET CLEANING,16/07/2020,0,150,150,Covid-19,Vehicle Inspection,60920
http://statistics.data.gov.uk/id/local-authority/12UE,Huntingdonshire District Council,202251.00,REDACTED,36555,06/07/2020,1013,OPS STREET CLEANING,16/07/2020,0,135,135,Covid-19,Vehicle Inspection,60920
http://statistics.data.gov.uk/id/local-authority/12UE,Huntingdonshire District Council,200526.00,MASKEARAID LTD MASKEARAID LTD,36092,25/06/2020,71789,HAND SANITISER,16/07/2020,378.8,1894,2272.8,Covid-19,Cleaning Materials,61300
http://statistics.data.gov.uk/id/local-authority/12UE,Huntingdonshire District Council,202360.00,GAFFEY TECHNICAL SERVICES LTD,37672,06/08/2020,48594,OL HUNTINGDON,13/08/2020,313.23,1566.17,1879.4,Covid-19,Cleaning Materials,61300
http://statistics.data.gov.uk/id/local-authority/12UE,Huntingdonshire District Council,200526.00,MASKEARAID LTD MASKEARAID LTD,36089,25/06/2020,71787,WIPES,16/07/2020,300,1500,1800,Covid-19,Cleaning Materials,61300
http://statistics.data.gov.uk/id/local-authority/12UE,Huntingdonshire District Council,200526.00,MASKEARAID LTD MASKEARAID LTD,35669,15/06/2020,71673,CLEANING PRODUCTS,09/07/2020,75,375,450,Covid-19,Cleaning Materials,61300
http://statistics.data.gov.uk/id/local-authority/12UE,Huntingdonshire District Council,200526.00,MASKEARAID LTD MASKEARAID LTD,35669,15/06/2020,71673,CLEANING PRODUCTS,09/07/2020,21,105,126,Covid-19,Cleaning Materials,61300
http://statistics.data.gov.uk/id/local-authority/12UE,Huntingdonshire District Council,200526.00,MASKEARAID LTD MASKEARAID LTD,35669,15/06/2020,71673,CLEANING PRODUCTS,09/07/2020,151.09,755.44,906.53,Covid-19,Cleaning Materials,61300
http://statistics.data.gov.uk/id/local-authority/12UE,Huntingdonshire District Council,200526.00,MASKEARAID LTD MASKEARAID LTD,35668,10/06/2020,71624,CLEANING PRODUCTS,02/07/2020,60.9,304.5,365.4,Covid-19,Cleaning Materials,61300
http://statistics.data.gov.uk/id/local-authority/12UE,Huntingdonshire District Council,200526.00,MASKEARAID LTD MASKEARAID LTD,35668,10/06/2020,71624,CLEANING PRODUCTS,02/07/2020,107.92,539.6,647.52,Covid-19,Cleaning Materials,61300
http://statistics.data.gov.uk/id/local-authority/12UE,Huntingdonshire District Council,200526.00,MASKEARAID LTD MASKEARAID LTD,35668,10/06/2020,71624,CLEANING PRODUCTS,02/07/2020,44.76,223.8,268.56,Covid-19,Cleaning Materials,61300
http://statistics.data.gov.uk/id/local-authority/12UE,Huntingdonshire District Council,200526.00,MASKEARAID LTD MASKEARAID LTD,37838,14/08/2020,72258,OL ST IVES,10/09/2020,198,990,1188,Covid-19,Cleaning Materials,61300
http://statistics.data.gov.uk/id/local-authority/12UE,Huntingdonshire District Council,200526.00,MASKEARAID LTD MASKEARAID LTD,37017,17/07/2020,72002,OL ST IVES,13/08/2020,161.25,806.26,967.51,Covid-19,Cleaning Materials,61300
http://statistics.data.gov.uk/id/local-authority/12UE,Huntingdonshire District Council,200526.00,MASKEARAID LTD MASKEARAID LTD,36309,01/07/2020,71838,HAND SANITISER,16/07/2020,159.41,797.05,956.46,Covid-19,Cleaning Materials,61300
http://statistics.data.gov.uk/id/local-authority/12UE,Huntingdonshire District Council,201113.00,GRANGE EUROPE LTD,38662,29/07/2020,30805,OL ST IVES,10/09/2020,152.4,762,914.4,Covid-19,Cleaning Materials,61300
http://statistics.data.gov.uk/id/local-authority/12UE,Huntingdonshire District Council,200526.00,MASKEARAID LTD MASKEARAID LTD,38036,07/08/2020,72205,DISINFECTANT/HAND SANITISER,03/09/2020,22.38,111.9,134.28,Covid-19,Cleaning Materials,61300
http://statistics.data.gov.uk/id/local-authority/12UE,Huntingdonshire District Council,200526.00,MASKEARAID LTD MASKEARAID LTD,38036,07/08/2020,72205,DISINFECTANT/HAND SANITISER,03/09/2020,114.6,573,687.6,Covid-19,Cleaning Materials,61300
http://statistics.data.gov.uk/id/local-authority/12UE,Huntingdonshire District Council,200526.00,MASKEARAID LTD MASKEARAID LTD,38036,07/08/2020,72205,DISINFECTANT/HAND SANITISER,03/09/2020,14.35,71.76,86.11,Covid-19,Cleaning Materials,61300
http://statistics.data.gov.uk/id/local-authority/12UE,Huntingdonshire District Council,200526.00,MASKEARAID LTD MASKEARAID LTD,35935,18/06/2020,71709,HAND SANITISER/DISPENSERS,16/07/2020,98,490,588,Covid-19,Cleaning Materials,61300
http://statistics.data.gov.uk/id/local-authority/12UE,Huntingdonshire District Council,200526.00,MASKEARAID LTD MASKEARAID LTD,35935,18/06/2020,71709,HAND SANITISER/DISPENSERS,16/07/2020,41.94,209.7,251.64,Covid-19,Cleaning Materials,61300
http://statistics.data.gov.uk/id/local-authority/12UE,Huntingdonshire District Council,200113.00,BOOKER CASH AND CARRY BOOKER CASH AND CARRY,36545,08/07/2020,2111143920,HCP DRINKS,16/07/2020,2.7,13.49,16.19,Covid-19,Cleaning Materials,61300
http://statistics.data.gov.uk/id/local-authority/12UE,Huntingdonshire District Council,200526.00,MASKEARAID LTD MASKEARAID LTD,38296,27/08/2020,72365,OL ST IVES,24/09/2020,99,495,594,Covid-19,Cleaning Materials,61300
http://statistics.data.gov.uk/id/local-authority/12UE,Huntingdonshire District Council,200526.00,MASKEARAID LTD MASKEARAID LTD,35942,22/06/2020,71752,HAND SANITISER,16/07/2020,83.88,419.4,503.28,Covid-19,Cleaning Materials,61300
http://statistics.data.gov.uk/id/local-authority/12UE,Huntingdonshire District Council,200526.00,MASKEARAID LTD MASKEARAID LTD,35670,11/06/2020,71633,WIPES,09/07/2020,75,375,450,Covid-19,Cleaning Materials,61300
http://statistics.data.gov.uk/id/local-authority/12UE,Huntingdonshire District Council,200526.00,MASKEARAID LTD MASKEARAID LTD,36404,06/07/2020,71885,DISINFECTANT,16/07/2020,71.62,358.08,429.7,Covid-19,Cleaning Materials,61300
http://statistics.data.gov.uk/id/local-authority/12UE,Huntingdonshire District Council,200526.00,MASKEARAID LTD MASKEARAID LTD,38267,26/08/2020,72352,OL ST NEOTS,17/09/2020,70.38,351.9,422.28,Covid-19,Cleaning Materials,61300
http://statistics.data.gov.uk/id/local-authority/12UE,Huntingdonshire District Council,200526.00,MASKEARAID LTD MASKEARAID LTD,37901,14/08/2020,72266,OL HUNTINGDON,10/09/2020,62.26,311.28,373.54,Covid-19,Cleaning Materials,61300
http://statistics.data.gov.uk/id/local-authority/12UE,Huntingdonshire District Council,200526.00,MASKEARAID LTD MASKEARAID LTD,37612,06/08/2020,72194,DISINFECTANT,14/08/2020,53.71,268.56,322.27,Covid-19,Cleaning Materials,61300
http://statistics.data.gov.uk/id/local-authority/12UE,Huntingdonshire District Council,200526.00,MASKEARAID LTD MASKEARAID LTD,37837,14/08/2020,72254,OL ST IVES,10/09/2020,53.71,268.56,322.27,Covid-19,Cleaning Materials,61300
http://statistics.data.gov.uk/id/local-authority/12UE,Huntingdonshire District Council,200526.00,MASKEARAID LTD MASKEARAID LTD,35936,18/06/2020,71716,WIPES,16/07/2020,50,250,300,Covid-19,Cleaning Materials,61300
http://statistics.data.gov.uk/id/local-authority/12UE,Huntingdonshire District Council,200455.00,KEN BOOTH & CO KEN BOOTH & CO,36986,21/07/2020,343593,OL ST IVES,13/08/2020,0,989.1,989.1,Covid-19,Hire - Equipment Furniture And Materials,61700
http://statistics.data.gov.uk/id/local-authority/12UE,Huntingdonshire District Council,202333.00,CMYK BURNLEY LTD,38656,07/07/2020,2873,FLOOR STICKERS,10/09/2020,126.7,633.5,760.2,Covid-19,Hire - Equipment Furniture And Materials,61700
http://statistics.data.gov.uk/id/local-authority/12UE,Huntingdonshire District Council,201884.00,APERTUS PLAY & SPORT INSPECTIONS/A J LOADES,36756,01/07/2020,1147,PLAYGROUND INSPECTIONS,23/07/2020,0,308,308,Covid-19,Hire - Equipment Furniture And Materials,61700
http://statistics.data.gov.uk/id/local-authority/12UE,Huntingdonshire District Council,200250.00,DTS SOLUTIONS (UK) LTD DTS SOLUTIONS (UK) LTD,37087,21/07/2020,S006007,HEADSETS,13/08/2020,168,840,1008,Covid-19,First Aid & Medical Supplies,61710
http://statistics.data.gov.uk/id/local-authority/12UE,Huntingdonshire District Council,200250.00,DTS SOLUTIONS (UK) LTD DTS SOLUTIONS (UK) LTD,37087,21/07/2020,S006007,HEADSETS,13/08/2020,24,120,144,Covid-19,First Aid & Medical Supplies,61710
http://statistics.data.gov.uk/id/local-authority/12UE,Huntingdonshire District Council,200060.00,ARTHUR IBBETT LTD ARTHUR IBBETT LTD,36135,30/06/2020,175865,20 X PADLOCK,06/08/2020,127.92,639.6,767.52,Covid-19,First Aid & Medical Supplies,61710
http://statistics.data.gov.uk/id/local-authority/12UE,Huntingdonshire District Council,200060.00,ARTHUR IBBETT LTD ARTHUR IBBETT LTD,38881,31/03/2020,169875,PADLOCKS,17/09/2020,46.65,233.24,279.89,Covid-19,First Aid & Medical Supplies,61710
http://statistics.data.gov.uk/id/local-authority/12UE,Huntingdonshire District Council,200060.00,ARTHUR IBBETT LTD ARTHUR IBBETT LTD,38881,31/03/2020,169875,PADLOCKS,17/09/2020,18.78,93.9,112.68,Covid-19,First Aid & Medical Supplies,61710
http://statistics.data.gov.uk/id/local-authority/12UE,Huntingdonshire District Council,200060.00,ARTHUR IBBETT LTD ARTHUR IBBETT LTD,38881,31/03/2020,169875,PADLOCKS,17/09/2020,14.36,71.82,86.18,Covid-19,First Aid & Medical Supplies,61710
http://statistics.data.gov.uk/id/local-authority/12UE,Huntingdonshire District Council,200060.00,ARTHUR IBBETT LTD ARTHUR IBBETT LTD,38885,31/07/2020,178299,LITTLE PAXTON NATURE RESERVE,17/09/2020,66.38,331.89,398.27,Covid-19,First Aid & Medical Supplies,61710
http://statistics.data.gov.uk/id/local-authority/12UE,Huntingdonshire District Council,200526.00,MASKEARAID LTD MASKEARAID LTD,35822,17/06/2020,71705,DISINFECTANT,09/07/2020,200,1000,1200,Covid-19,"Clothes, Uniform And Laundry",62000
http://statistics.data.gov.uk/id/local-authority/12UE,Huntingdonshire District Council,200526.00,MASKEARAID LTD MASKEARAID LTD,35822,17/06/2020,71705,DISINFECTANT,09/07/2020,121.8,609,730.8,Covid-19,"Clothes, Uniform And Laundry",62000
http://statistics.data.gov.uk/id/local-authority/12UE,Huntingdonshire District Council,202333.00,CMYK BURNLEY LTD,36513,08/07/2020,2876,FLOOR GRAPHICS,16/07/2020,127.5,637.5,765,Covid-19,"Clothes, Uniform And Laundry",62000
http://statistics.data.gov.uk/id/local-authority/12UE,Huntingdonshire District Council,202333.00,CMYK BURNLEY LTD,36513,08/07/2020,2876,FLOOR GRAPHICS,16/07/2020,57.2,286,343.2,Covid-19,"Clothes, Uniform And Laundry",62000
http://statistics.data.gov.uk/id/local-authority/12UE,Huntingdonshire District Council,202333.00,CMYK BURNLEY LTD,36513,08/07/2020,2876,FLOOR GRAPHICS,16/07/2020,19.6,98,117.6,Covid-19,"Clothes, Uniform And Laundry",62000
http://statistics.data.gov.uk/id/local-authority/12UE,Huntingdonshire District Council,202338.00,PRINTED CLOTHING LTD,37605,26/06/2020,INV-0780,T-SHIRTS,13/08/2020,174.43,872.15,1046.58,Covid-19,"Clothes, Uniform And Laundry",62000
http://statistics.data.gov.uk/id/local-authority/12UE,Huntingdonshire District Council,202338.00,PRINTED CLOTHING LTD,38922,07/08/2020,INV-0829,OL ST IVES,17/09/2020,104.5,522.48,626.98,Covid-19,"Clothes, Uniform And Laundry",62000
http://statistics.data.gov.uk/id/local-authority/12UE,Huntingdonshire District Council,201932.00,PROFILE DIGITAL AGENCY LTD,37124,02/07/2020,INV-2985,FILMING,30/07/2020,100,500,600,Covid-19,"Clothes, Uniform And Laundry",62000
http://statistics.data.gov.uk/id/local-authority/12UE,Huntingdonshire District Council,200103.00,BIGPRINTING BIGPRINTING,38599,01/07/2020,1713223,OL ST IVES,10/09/2020,86.92,434.6,521.52,Covid-19,"Clothes, Uniform And Laundry",62000
http://statistics.data.gov.uk/id/local-authority/12UE,Huntingdonshire District Council,200103.00,BIGPRINTING BIGPRINTING,37934,20/07/2020,1713155,OL ST IVES,20/08/2020,86.4,432,518.4,Covid-19,"Clothes, Uniform And Laundry",62000
http://statistics.data.gov.uk/id/local-authority/12UE,Huntingdonshire District Council,200103.00,BIGPRINTING BIGPRINTING,37932,22/07/2020,1713167,OL ST IVES,20/08/2020,69.2,346,415.2,Covid-19,"Clothes, Uniform And Laundry",62000
http://statistics.data.gov.uk/id/local-authority/12UE,Huntingdonshire District Council,200103.00,BIGPRINTING BIGPRINTING,37933,24/07/2020,1713168,OL ST IVES,20/08/2020,64.4,322,386.4,Covid-19,"Clothes, Uniform And Laundry",62000
http://statistics.data.gov.uk/id/local-authority/12UE,Huntingdonshire District Council,200103.00,BIGPRINTING BIGPRINTING,38946,24/07/2020,1713181,OL ST IVES,17/09/2020,60.48,302.4,362.88,Covid-19,"Clothes, Uniform And Laundry",62000
http://statistics.data.gov.uk/id/local-authority/12UE,Huntingdonshire District Council,202333.00,CMYK BURNLEY LTD,37034,22/07/2020,2899,FLOOR GRAPHICS,13/08/2020,58.2,291,349.2,Covid-19,"Clothes, Uniform And Laundry",62000
http://statistics.data.gov.uk/id/local-authority/12UE,Huntingdonshire District Council,201932.00,PROFILE DIGITAL AGENCY LTD,37446,02/07/2020,INV-2986,VIDEO EDITING,06/08/2020,11.54,288.46,300,Covid-19,"Clothes, Uniform And Laundry",62000
http://statistics.data.gov.uk/id/local-authority/12UE,Huntingdonshire District Council,200381.00,HOWSAFE LTD HOWSAFE LTD,36464,02/06/2020,SIN0701812,WIPES,09/07/2020,57.5,287.52,345.02,Covid-19,"Clothes, Uniform And Laundry",62000
http://statistics.data.gov.uk/id/local-authority/12UE,Huntingdonshire District Council,200393.00,HUNTS FORUM OF VOLUNTARY ORGANISATIONS HUNTS FORUM OF VOLUNTARY ORGANISATIONS,39282,21/07/2020,7121,CONSULTANCY,24/09/2020,0,1000,1000,Covid-19,Consultancy Fees,62400
http://statistics.data.gov.uk/id/local-authority/12UE,Huntingdonshire District Council,200190.00,CHIPSIDE CHIPSIDE,36751,15/07/2020,S203570,CASHLESS MOBILE PARKING,06/08/2020,500,2500,3000,Covid-19,Ict Hardware,64070
http://statistics.data.gov.uk/id/local-authority/12UE,Huntingdonshire District Council,200190.00,CHIPSIDE CHIPSIDE,38635,31/08/2020,S204202,KEY WORKER PERMIT,24/09/2020,100,500,600,Covid-19,Ict Hardware,64070
http://statistics.data.gov.uk/id/local-authority/12UE,Huntingdonshire District Council,200968.00,NORTHGATE PUBLIC SERVICES UK LTD,35355,04/06/2020,91435068,DWP LEGISLATION  JUNE 2020,02/07/2020,65.53,327.64,393.17,Covid-19,Ict Hardware,64070
http://statistics.data.gov.uk/id/local-authority/12UE,Huntingdonshire District Council,200341.00,GLADSTONE MRM GLADSTONE MRM,38489,31/08/2020,04015319,DATA UNFREEZE,24/09/2020,60,300,360,Covid-19,Ict Hardware,64070
http://statistics.data.gov.uk/id/local-authority/12UE,Huntingdonshire District Council,202333.00,CMYK BURNLEY LTD,36513,08/07/2020,2876,FLOOR GRAPHICS,16/07/2020,2.6,13,15.6,Covid-19,Postage And Courier Services,64100
http://statistics.data.gov.uk/id/local-authority/12UE,Huntingdonshire District Council,200614.00,PHOENIX SOFTWARE LTD PHOENIX SOFTWARE LTD,37357,30/07/2020,OP/I872891,THINKPADS,14/08/2020,394.49,1972.44,2366.93,CPCA Recharge,Ict Hardware,64070
http://statistics.data.gov.uk/id/local-authority/12UE,Huntingdonshire District Council,200770.00,TELEFONICA UK LTD TELEFONICA UK LTD,36066,20/06/2020,64873698,LINE RENTAL,16/07/2020,158.85,794.23,953.08,CPCA Recharge,Ict Hardware,64070
http://statistics.data.gov.uk/id/local-authority/12UE,Huntingdonshire District Council,200770.00,TELEFONICA UK LTD TELEFONICA UK LTD,37658,20/07/2020,67270192,LINE RENTAL,13/08/2020,42.42,212.09,254.51,CPCA Recharge,Ict Hardware,64070
http://statistics.data.gov.uk/id/local-authority/12UE,Huntingdonshire District Council,200614.00,PHOENIX SOFTWARE LTD PHOENIX SOFTWARE LTD,37530,30/06/2020,OP/I870259,SUBSCRIPTIONS,06/08/2020,343.04,1715.22,2058.26,CPCA Recharge,Ict Hardware,64070
http://statistics.data.gov.uk/id/local-authority/12UE,Huntingdonshire District Council,200614.00,PHOENIX SOFTWARE LTD PHOENIX SOFTWARE LTD,37529,01/06/2020,OP/I868383,SUBSCRIPTIONS,06/08/2020,308.71,1543.55,1852.26,CPCA Recharge,Ict Hardware,64070
http://statistics.data.gov.uk/id/local-authority/12UE,Huntingdonshire District Council,200614.00,PHOENIX SOFTWARE LTD PHOENIX SOFTWARE LTD,38213,30/07/2020,OP/I872888,SUBSCRIPTION,27/08/2020,303.67,1518.34,1822.01,CPCA Recharge,Ict Hardware,64070
http://statistics.data.gov.uk/id/local-authority/12UE,Huntingdonshire District Council,202187.00,CYCLESCHEME LTD,35363,03/06/2020,W494463,CYCLESCHEME,02/07/2020,740.83,3704.17,4445,Cycle to Work,Vehicles Plant Furniture & Equipment Cost,11300
http://statistics.data.gov.uk/id/local-authority/12UE,Huntingdonshire District Council,202187.00,CYCLESCHEME LTD,35363,03/06/2020,W494463,CYCLESCHEME,02/07/2020,0,35,35,Cycle to Work,Vehicles Plant Furniture & Equipment Cost,11300
http://statistics.data.gov.uk/id/local-authority/12UE,Huntingdonshire District Council,202187.00,CYCLESCHEME LTD,36160,01/07/2020,W504621,CYCLESCHEME,02/07/2020,233.33,1166.67,1400,Cycle to Work,Vehicles Plant Furniture & Equipment Cost,11300
http://statistics.data.gov.uk/id/local-authority/12UE,Huntingdonshire District Council,202187.00,CYCLESCHEME LTD,36160,01/07/2020,W504621,CYCLESCHEME,02/07/2020,0,50,50,Cycle to Work,Vehicles Plant Furniture & Equipment Cost,11300
http://statistics.data.gov.uk/id/local-authority/12UE,Huntingdonshire District Council,202187.00,CYCLESCHEME LTD,35989,24/06/2020,W502377,CYCLESCHEME,02/07/2020,150,750,900,Cycle to Work,Vehicles Plant Furniture & Equipment Cost,11300
http://statistics.data.gov.uk/id/local-authority/12UE,Huntingdonshire District Council,202187.00,CYCLESCHEME LTD,38137,25/08/2020,W519180,CYCLESCHEME,27/08/2020,126.5,632.5,759,Cycle to Work,Vehicles Plant Furniture & Equipment Cost,11300
http://statistics.data.gov.uk/id/local-authority/12UE,Huntingdonshire District Council,202187.00,CYCLESCHEME LTD,36592,14/07/2020,W508484,BIKES,16/07/2020,124.17,620.83,745,Cycle to Work,Vehicles Plant Furniture & Equipment Cost,11300
http://statistics.data.gov.uk/id/local-authority/12UE,Huntingdonshire District Council,202187.00,CYCLESCHEME LTD,36395,02/07/2020,W505065,CYCLESCHEME,09/07/2020,85,425,510,Cycle to Work,Vehicles Plant Furniture & Equipment Cost,11300
http://statistics.data.gov.uk/id/local-authority/12UE,Huntingdonshire District Council,202187.00,CYCLESCHEME LTD,36395,02/07/2020,W505065,CYCLESCHEME,09/07/2020,0,140,140,Cycle to Work,Vehicles Plant Furniture & Equipment Cost,11300
http://statistics.data.gov.uk/id/local-authority/12UE,Huntingdonshire District Council,202187.00,CYCLESCHEME LTD,35437,04/06/2020,W495005,CYCLESCHEME,27/08/2020,60,300,360,Cycle to Work,Vehicles Plant Furniture & Equipment Cost,11300
http://statistics.data.gov.uk/id/local-authority/12UE,Huntingdonshire District Council,202187.00,CYCLESCHEME LTD,35437,04/06/2020,W495005,CYCLESCHEME,27/08/2020,0,50,50,Cycle to Work,Vehicles Plant Furniture & Equipment Cost,11300
http://statistics.data.gov.uk/id/local-authority/12UE,Huntingdonshire District Council,202200.00,MATCHTECH GROUP UK LTD,36121,22/06/2020,3432418,REDACTED,16/07/2020,1000,5000,6000,Development Management,Interest Payable - Long Term Borrowing - Other,23000
http://statistics.data.gov.uk/id/local-authority/12UE,Huntingdonshire District Council,200827.00,VIVID RESOURCING LIMITED VIVID RESOURCING LIMITED,35599,10/06/2020,47449,REDACTED,02/07/2020,340.4,1702,2042.4,Development Management,Salary Cost Outside Payroll,60010
http://statistics.data.gov.uk/id/local-authority/12UE,Huntingdonshire District Council,200827.00,VIVID RESOURCING LIMITED VIVID RESOURCING LIMITED,35941,17/06/2020,47603,REDACTED,09/07/2020,340.4,1702,2042.4,Development Management,Salary Cost Outside Payroll,60010
http://statistics.data.gov.uk/id/local-authority/12UE,Huntingdonshire District Council,200827.00,VIVID RESOURCING LIMITED VIVID RESOURCING LIMITED,36426,24/06/2020,47761,REDACTED,16/07/2020,340.4,1702,2042.4,Development Management,Salary Cost Outside Payroll,60010
http://statistics.data.gov.uk/id/local-authority/12UE,Huntingdonshire District Council,200827.00,VIVID RESOURCING LIMITED VIVID RESOURCING LIMITED,36427,02/07/2020,47953,REDACTED,16/07/2020,340.4,1702,2042.4,Development Management,Salary Cost Outside Payroll,60010
http://statistics.data.gov.uk/id/local-authority/12UE,Huntingdonshire District Council,200827.00,VIVID RESOURCING LIMITED VIVID RESOURCING LIMITED,36572,08/07/2020,48206,OPS STAFF,16/07/2020,316.66,1583.32,1899.98,Development Management,Salary Cost Outside Payroll,60010
http://statistics.data.gov.uk/id/local-authority/12UE,Huntingdonshire District Council,200827.00,VIVID RESOURCING LIMITED VIVID RESOURCING LIMITED,36854,15/07/2020,48398,REDACTED,06/08/2020,299.55,1497.76,1797.31,Development Management,Salary Cost Outside Payroll,60010
http://statistics.data.gov.uk/id/local-authority/12UE,Huntingdonshire District Council,200827.00,VIVID RESOURCING LIMITED VIVID RESOURCING LIMITED,37075,22/07/2020,48569,REDACTED,13/08/2020,299.55,1497.76,1797.31,Development Management,Salary Cost Outside Payroll,60010
http://statistics.data.gov.uk/id/local-authority/12UE,Huntingdonshire District Council,200827.00,VIVID RESOURCING LIMITED VIVID RESOURCING LIMITED,37646,29/07/2020,48728,REDACTED,14/08/2020,299.55,1497.76,1797.31,Development Management,Salary Cost Outside Payroll,60010
http://statistics.data.gov.uk/id/local-authority/12UE,Huntingdonshire District Council,200827.00,VIVID RESOURCING LIMITED VIVID RESOURCING LIMITED,37647,05/08/2020,48991,REDACTED,14/08/2020,299.55,1497.76,1797.31,Development Management,Salary Cost Outside Payroll,60010
http://statistics.data.gov.uk/id/local-authority/12UE,Huntingdonshire District Council,200827.00,VIVID RESOURCING LIMITED VIVID RESOURCING LIMITED,37821,12/08/2020,49219,REDACTED,03/09/2020,299.55,1497.76,1797.31,Development Management,Salary Cost Outside Payroll,60010
http://statistics.data.gov.uk/id/local-authority/12UE,Huntingdonshire District Council,200827.00,VIVID RESOURCING LIMITED VIVID RESOURCING LIMITED,38045,19/08/2020,49398,REDACTED,10/09/2020,299.55,1497.76,1797.31,Development Management,Salary Cost Outside Payroll,60010
http://statistics.data.gov.uk/id/local-authority/12UE,Huntingdonshire District Council,200827.00,VIVID RESOURCING LIMITED VIVID RESOURCING LIMITED,38248,26/08/2020,49576,REDACTED,17/09/2020,299.55,1497.76,1797.31,Development Management,Salary Cost Outside Payroll,60010
http://statistics.data.gov.uk/id/local-authority/12UE,Huntingdonshire District Council,202200.00,MATCHTECH GROUP UK LTD,35647,12/06/2020,3429859,REDACTED,09/07/2020,276,1380,1656,Development Management,Salary Cost Outside Payroll,60010
http://statistics.data.gov.uk/id/local-authority/12UE,Huntingdonshire District Council,200827.00,VIVID RESOURCING LIMITED VIVID RESOURCING LIMITED,38484,02/09/2020,49806,REDACTED,24/09/2020,250.98,1254.88,1505.86,Development Management,Salary Cost Outside Payroll,60010
http://statistics.data.gov.uk/id/local-authority/12UE,Huntingdonshire District Council,201298.01,WARD GETHIN ARCHER LTD (CLIENT ACCOUNT),38960,16/09/2020,APPEAL COSTS 18/02151/FUL,Appeal Costs relating to 18/02151/FUL,24/09/2020,0,4600,4600,Development Management,Consultancy Fees,62400
http://statistics.data.gov.uk/id/local-authority/12UE,Huntingdonshire District Council,201100.00,THE WILDLIFE TRUST BCN,38017,19/08/2020,10453,WILDLIFE TRUST,10/09/2020,882,4410,5292,Development Management,Consultancy Fees,62400
http://statistics.data.gov.uk/id/local-authority/12UE,Huntingdonshire District Council,201100.00,THE WILDLIFE TRUST BCN,38016,17/08/2020,10437,WILDLIFE TRUST,10/09/2020,600,3000,3600,Development Management,Consultancy Fees,62400
http://statistics.data.gov.uk/id/local-authority/12UE,Huntingdonshire District Council,200013.00,REDACTED,37178,20/07/2020,256328 20/07/20,PROFESSIONAL FEES,13/08/2020,240,1200,1440,Development Management,Consultancy Fees,62400
http://statistics.data.gov.uk/id/local-authority/12UE,Huntingdonshire District Council,200215.00,CORNERSTONE BARRISTERS CORNERSTONE BARRISTERS,35801,12/06/2020,148513 12/06/20,CONSULTANCY,09/07/2020,130,650,780,Development Management,Consultancy Fees,62400
http://statistics.data.gov.uk/id/local-authority/12UE,Huntingdonshire District Council,201004.00,EXACOM SYSTEMS LTD,37623,06/08/2020,2020077,TRAINING,14/08/2020,120,600,720,Development Management,Other Services,69150
http://statistics.data.gov.uk/id/local-authority/12UE,Huntingdonshire District Council,200133.00,BSG PROPERTY SERVICES LTD BSG PROPERTY SERVICES LTD,38647,24/08/2020,S45424,190839,17/09/2020,0,18779,18779,Disables Facilities Grants,Mandatory Grants,64601
http://statistics.data.gov.uk/id/local-authority/12UE,Huntingdonshire District Council,201411.00,ERMINE CONSTRUCTION SERVICES LTD,36657,10/07/2020,160019,200004,06/08/2020,0,16799.99,16799.99,Disables Facilities Grants,Mandatory Grants,64601
http://statistics.data.gov.uk/id/local-authority/12UE,Huntingdonshire District Council,201411.00,ERMINE CONSTRUCTION SERVICES LTD,38978,24/07/2020,160021,191079,17/09/2020,0,13504.08,13504.08,Disables Facilities Grants,Mandatory Grants,64601
http://statistics.data.gov.uk/id/local-authority/12UE,Huntingdonshire District Council,201411.00,ERMINE CONSTRUCTION SERVICES LTD,35699,12/06/2020,160018,200022,02/07/2020,0,11732.36,11732.36,Disables Facilities Grants,Mandatory Grants,64601
http://statistics.data.gov.uk/id/local-authority/12UE,Huntingdonshire District Council,201411.00,ERMINE CONSTRUCTION SERVICES LTD,35701,11/06/2020,160017,190898,02/07/2020,0,10547.99,10547.99,Disables Facilities Grants,Mandatory Grants,64601
http://statistics.data.gov.uk/id/local-authority/12UE,Huntingdonshire District Council,200512.00,LYNCH HEALTHCARE LIMITED LYNCH HEALTHCARE LIMITED,37402,22/06/2020,INV-6248,200013,06/08/2020,0,10287.72,10287.72,Disables Facilities Grants,Mandatory Grants,64601
http://statistics.data.gov.uk/id/local-authority/12UE,Huntingdonshire District Council,200307.00,FOSTER PROPERTY MAINTENANCE LTD FOSTER PROPERTY MAINTENANCE LTD,37427,21/07/2020,3167,190913,13/08/2020,0,10192.12,10192.12,Disables Facilities Grants,Mandatory Grants,64601
http://statistics.data.gov.uk/id/local-authority/12UE,Huntingdonshire District Council,202394.00,FOSTER BUILDING SERVICES LTD,39012,21/07/2020,3167,190913,17/09/2020,0,10192.12,10192.12,Disables Facilities Grants,Mandatory Grants,64601
http://statistics.data.gov.uk/id/local-authority/12UE,Huntingdonshire District Council,200512.00,LYNCH HEALTHCARE LIMITED LYNCH HEALTHCARE LIMITED,36185,17/03/2020,INV-6069,190729,02/07/2020,0,9319.55,9319.55,Disables Facilities Grants,Mandatory Grants,64601
http://statistics.data.gov.uk/id/local-authority/12UE,Huntingdonshire District Council,200133.00,BSG PROPERTY SERVICES LTD BSG PROPERTY SERVICES LTD,37842,17/12/2019,S44793,190108,20/08/2020,0,3188.5,3188.5,Disables Facilities Grants,Mandatory Grants,64601
http://statistics.data.gov.uk/id/local-authority/12UE,Huntingdonshire District Council,200133.00,BSG PROPERTY SERVICES LTD BSG PROPERTY SERVICES LTD,37842,17/12/2019,S44793,190108,20/08/2020,0,2285,2285,Disables Facilities Grants,Mandatory Grants,64601
http://statistics.data.gov.uk/id/local-authority/12UE,Huntingdonshire District Council,200133.00,BSG PROPERTY SERVICES LTD BSG PROPERTY SERVICES LTD,37842,17/12/2019,S44793,190108,20/08/2020,0,3000,3000,Disables Facilities Grants,Mandatory Grants,64601
http://statistics.data.gov.uk/id/local-authority/12UE,Huntingdonshire District Council,201006.00,ASHCO BUILDING & MAINTENANCE SERVICES LTD,36423,30/06/2020,AC0215070,190519,16/07/2020,0,6780.51,6780.51,Disables Facilities Grants,Mandatory Grants,64601
http://statistics.data.gov.uk/id/local-authority/12UE,Huntingdonshire District Council,201573.00,CLC CONTRACTORS LTD,36595,26/03/2020,AP87744-001,,16/07/2020,0,6232,6232,Disables Facilities Grants,Mandatory Grants,64601
http://statistics.data.gov.uk/id/local-authority/12UE,Huntingdonshire District Council,200133.00,BSG PROPERTY SERVICES LTD BSG PROPERTY SERVICES LTD,37648,28/07/2020,S4234,191080,14/08/2020,0,6051,6051,Disables Facilities Grants,Mandatory Grants,64601
http://statistics.data.gov.uk/id/local-authority/12UE,Huntingdonshire District Council,200133.00,BSG PROPERTY SERVICES LTD BSG PROPERTY SERVICES LTD,38977,08/08/2020,S45345,200047,17/09/2020,0,5401,5401,Disables Facilities Grants,Mandatory Grants,64601
http://statistics.data.gov.uk/id/local-authority/12UE,Huntingdonshire District Council,200133.00,BSG PROPERTY SERVICES LTD BSG PROPERTY SERVICES LTD,37949,10/07/2020,S45230,190777,20/08/2020,0,5324.5,5324.5,Disables Facilities Grants,Mandatory Grants,64601
http://statistics.data.gov.uk/id/local-authority/12UE,Huntingdonshire District Council,200017.00,ACCESS & AUTOMATION LTD ACCESS & AUTOMATION LTD,37844,31/07/2020,5972,200022,27/08/2020,0,5268,5268,Disables Facilities Grants,Mandatory Grants,64601
http://statistics.data.gov.uk/id/local-authority/12UE,Huntingdonshire District Council,201014.01,NORSE COMMERCIAL SERVICES LTD,37670,02/08/2020,05IN-1024733,200040,13/08/2020,0,4828.25,4828.25,Disables Facilities Grants,Mandatory Grants,64601
http://statistics.data.gov.uk/id/local-authority/12UE,Huntingdonshire District Council,201511.00,ASTOR BANNERMAN (MEDICAL) LTD,37535,20/11/2019,20545,190293,06/08/2020,0,3782,3782,Disables Facilities Grants,Mandatory Grants,64601
http://statistics.data.gov.uk/id/local-authority/12UE,Huntingdonshire District Council,201511.00,ASTOR BANNERMAN (MEDICAL) LTD,37535,20/11/2019,20545,190293,06/08/2020,0,978,978,Disables Facilities Grants,Mandatory Grants,64601
http://statistics.data.gov.uk/id/local-authority/12UE,Huntingdonshire District Council,200133.00,BSG PROPERTY SERVICES LTD BSG PROPERTY SERVICES LTD,38648,29/07/2020,S45243,191012,10/09/2020,0,4707,4707,Disables Facilities Grants,Mandatory Grants,64601
http://statistics.data.gov.uk/id/local-authority/12UE,Huntingdonshire District Council,201014.01,NORSE COMMERCIAL SERVICES LTD,37655,02/08/2020,05IN-1024732,191090,13/08/2020,0,4688.25,4688.25,Disables Facilities Grants,Mandatory Grants,64601
http://statistics.data.gov.uk/id/local-authority/12UE,Huntingdonshire District Council,201014.01,NORSE COMMERCIAL SERVICES LTD,37668,02/08/2020,05IN-1024730,191073,13/08/2020,0,4483.25,4483.25,Disables Facilities Grants,Mandatory Grants,64601
http://statistics.data.gov.uk/id/local-authority/12UE,Huntingdonshire District Council,200133.00,BSG PROPERTY SERVICES LTD BSG PROPERTY SERVICES LTD,37739,21/07/2020,S45204,191090,13/08/2020,0,4478.69,4478.69,Disables Facilities Grants,Mandatory Grants,64601
http://statistics.data.gov.uk/id/local-authority/12UE,Huntingdonshire District Council,200512.00,LYNCH HEALTHCARE LIMITED LYNCH HEALTHCARE LIMITED,38637,31/07/2020,INV-6323,190998,10/09/2020,0,4368,4368,Disables Facilities Grants,Mandatory Grants,64601
http://statistics.data.gov.uk/id/local-authority/12UE,Huntingdonshire District Council,201014.01,NORSE COMMERCIAL SERVICES LTD,36393,03/05/2020,05IN-1023209,190792,09/07/2020,0,4248,4248,Disables Facilities Grants,Mandatory Grants,64601
http://statistics.data.gov.uk/id/local-authority/12UE,Huntingdonshire District Council,200017.00,ACCESS & AUTOMATION LTD ACCESS & AUTOMATION LTD,37123,16/06/2020,5924,191069,30/07/2020,0,4104,4104,Disables Facilities Grants,Mandatory Grants,64601
http://statistics.data.gov.uk/id/local-authority/12UE,Huntingdonshire District Council,200133.00,BSG PROPERTY SERVICES LTD BSG PROPERTY SERVICES LTD,37170,21/07/2020,S45200,190962,13/08/2020,0,4062,4062,Disables Facilities Grants,Mandatory Grants,64601
http://statistics.data.gov.uk/id/local-authority/12UE,Huntingdonshire District Council,201014.01,NORSE COMMERCIAL SERVICES LTD,38087,02/08/2020,05IN-1024731,190519,27/08/2020,0,4017,4017,Disables Facilities Grants,Mandatory Grants,64601
http://statistics.data.gov.uk/id/local-authority/12UE,Huntingdonshire District Council,201014.01,NORSE COMMERCIAL SERVICES LTD,38085,02/08/2020,05IN-1024734,190293,27/08/2020,0,3867,3867,Disables Facilities Grants,Mandatory Grants,64601
http://statistics.data.gov.uk/id/local-authority/12UE,Huntingdonshire District Council,200516.00,M WATSON CONSTRUCTION LTD M WATSON CONSTRUCTION LTD,36575,09/07/2020,24471,CHIA RAMP,16/07/2020,0,3850.97,3850.97,Disables Facilities Grants,Mandatory Grants,64601
http://statistics.data.gov.uk/id/local-authority/12UE,Huntingdonshire District Council,200512.00,LYNCH HEALTHCARE LIMITED LYNCH HEALTHCARE LIMITED,37862,30/06/2020,INV-6261,200023,20/08/2020,0,3610.93,3610.93,Disables Facilities Grants,Mandatory Grants,64601
http://statistics.data.gov.uk/id/local-authority/12UE,Huntingdonshire District Council,200017.00,ACCESS & AUTOMATION LTD ACCESS & AUTOMATION LTD,36333,16/06/2020,5921,190987,09/07/2020,0,3520,3520,Disables Facilities Grants,Mandatory Grants,64601
http://statistics.data.gov.uk/id/local-authority/12UE,Huntingdonshire District Council,200133.00,BSG PROPERTY SERVICES LTD BSG PROPERTY SERVICES LTD,38877,20/07/2020,S45195,191101,17/09/2020,0,3414,3414,Disables Facilities Grants,Mandatory Grants,64601
http://statistics.data.gov.uk/id/local-authority/12UE,Huntingdonshire District Council,200307.00,FOSTER PROPERTY MAINTENANCE LTD FOSTER PROPERTY MAINTENANCE LTD,36979,10/07/2020,SI15807,190468,06/08/2020,0,3014.38,3014.38,Disables Facilities Grants,Mandatory Grants,64601
http://statistics.data.gov.uk/id/local-authority/12UE,Huntingdonshire District Council,200516.00,M WATSON CONSTRUCTION LTD M WATSON CONSTRUCTION LTD,38413,08/06/2020,24441,190949,03/09/2020,0,2844.7,2844.7,Disables Facilities Grants,Mandatory Grants,64601
http://statistics.data.gov.uk/id/local-authority/12UE,Huntingdonshire District Council,200133.00,BSG PROPERTY SERVICES LTD BSG PROPERTY SERVICES LTD,36865,19/06/2020,S45082,190498,23/07/2020,0,2716,2716,Disables Facilities Grants,Mandatory Grants,64601
http://statistics.data.gov.uk/id/local-authority/12UE,Huntingdonshire District Council,200133.00,BSG PROPERTY SERVICES LTD BSG PROPERTY SERVICES LTD,37749,22/05/2020,S44977,190607,13/08/2020,0,2472,2472,Disables Facilities Grants,Mandatory Grants,64601
http://statistics.data.gov.uk/id/local-authority/12UE,Huntingdonshire District Council,200512.00,LYNCH HEALTHCARE LIMITED LYNCH HEALTHCARE LIMITED,39291,28/08/2020,INV-6389,191043,24/09/2020,0,2446.13,2446.13,Disables Facilities Grants,Mandatory Grants,64601
http://statistics.data.gov.uk/id/local-authority/12UE,Huntingdonshire District Council,200745.00,STANNAH LTD Ref(20HU025) STANNAH LTD Ref(20HU025),38704,20/08/2020,1085220013,200139,17/09/2020,0,2393,2393,Disables Facilities Grants,Mandatory Grants,64601
http://statistics.data.gov.uk/id/local-authority/12UE,Huntingdonshire District Council,200133.00,BSG PROPERTY SERVICES LTD BSG PROPERTY SERVICES LTD,38394,22/08/2020,S45422,200022,17/09/2020,0,2260,2260,Disables Facilities Grants,Mandatory Grants,64601
http://statistics.data.gov.uk/id/local-authority/12UE,Huntingdonshire District Council,200133.00,BSG PROPERTY SERVICES LTD BSG PROPERTY SERVICES LTD,38707,10/06/2020,S45053,190945,10/09/2020,0,1863,1863,Disables Facilities Grants,Mandatory Grants,64601
http://statistics.data.gov.uk/id/local-authority/12UE,Huntingdonshire District Council,200133.00,BSG PROPERTY SERVICES LTD BSG PROPERTY SERVICES LTD,36429,03/07/2020,S45125,2000013,16/07/2020,0,1379,1379,Disables Facilities Grants,Mandatory Grants,64601
http://statistics.data.gov.uk/id/local-authority/12UE,Huntingdonshire District Council,201006.00,ASHCO BUILDING & MAINTENANCE SERVICES LTD,37435,26/05/2020,AC0215039,170610,06/08/2020,0,1174.8,1174.8,Disables Facilities Grants,Mandatory Grants,64601
http://statistics.data.gov.uk/id/local-authority/12UE,Huntingdonshire District Council,200512.00,LYNCH HEALTHCARE LIMITED LYNCH HEALTHCARE LIMITED,38661,31/07/2020,INV-6324,190998,10/09/2020,0,825,825,Disables Facilities Grants,Mandatory Grants,64601
http://statistics.data.gov.uk/id/local-authority/12UE,Huntingdonshire District Council,200133.00,BSG PROPERTY SERVICES LTD BSG PROPERTY SERVICES LTD,37950,13/08/2020,S45361,190941,10/09/2020,0,690,690,Disables Facilities Grants,Mandatory Grants,64601
http://statistics.data.gov.uk/id/local-authority/12UE,Huntingdonshire District Council,202233.00,WADES GROUP LTD TRADING AS WADES,38086,29/07/2020,15749,191053,27/08/2020,0,643.99,643.99,Disables Facilities Grants,Mandatory Grants,64601
http://statistics.data.gov.uk/id/local-authority/12UE,Huntingdonshire District Council,200516.00,M WATSON CONSTRUCTION LTD M WATSON CONSTRUCTION LTD,38414,08/06/2020,24442,190949,03/09/2020,0,575.4,575.4,Disables Facilities Grants,Mandatory Grants,64601
http://statistics.data.gov.uk/id/local-authority/12UE,Huntingdonshire District Council,200512.00,LYNCH HEALTHCARE LIMITED LYNCH HEALTHCARE LIMITED,37400,22/06/2020,INV-6249,200013,06/08/2020,0,550,550,Disables Facilities Grants,Mandatory Grants,64601
http://statistics.data.gov.uk/id/local-authority/12UE,Huntingdonshire District Council,200133.00,BSG PROPERTY SERVICES LTD BSG PROPERTY SERVICES LTD,36987,06/07/2020,S45130,190998,30/07/2020,0,402,402,Disables Facilities Grants,Mandatory Grants,64601
http://statistics.data.gov.uk/id/local-authority/12UE,Huntingdonshire District Council,200745.00,STANNAH LTD Ref(20HU025) STANNAH LTD Ref(20HU025),36130,20/03/2020,1085178090,200049,02/07/2020,0,281.14,281.14,Disables Facilities Grants,Mandatory Grants,64601
http://statistics.data.gov.uk/id/local-authority/12UE,Huntingdonshire District Council,200516.00,M WATSON CONSTRUCTION LTD M WATSON CONSTRUCTION LTD,38774,18/11/2019,23913,190108,10/09/2020,0,280,280,Disables Facilities Grants,Mandatory Grants,64601
http://statistics.data.gov.uk/id/local-authority/12UE,Huntingdonshire District Council,200149.00,CAMBRIDGE CITY COUNCIL CAMBRIDGE CITY COUNCIL,38392,25/08/2020,12048645,Q2 FEES TO CHIA,17/09/2020,0,72898.8,72898.8,Disables Facilities Grants,Home Improvement Agency Fees,67200
http://statistics.data.gov.uk/id/local-authority/12UE,Huntingdonshire District Council,201002.01,REDACTED,37287,26/06/2020,20/00428/REM,20/00428/REM- Overpaid,06/08/2020,0,27503,27503,Dm Application Processing,Planning Applications Income,54100
http://statistics.data.gov.uk/id/local-authority/12UE,Huntingdonshire District Council,202389.00,REDACTED,38739,09/09/2020,20/00229/FUL,20/00229/FUL � customer request,10/09/2020,0,1386,1386,Dm Application Processing,Planning Applications Income,54100
http://statistics.data.gov.uk/id/local-authority/12UE,Huntingdonshire District Council,202369.00,REDACTED,37900,19/08/2020,19/01722/REM,19/01722/REM � Non determination,20/08/2020,0,924,924,Dm Application Processing,Planning Applications Income,54100
http://statistics.data.gov.uk/id/local-authority/12UE,Huntingdonshire District Council,201477.00,PLANNING PORTAL,36014,26/06/2020,PP-08765500,PP-08765500- withdrawn,02/07/2020,0,462,462,Dm Application Processing,Planning Applications Income,54100
http://statistics.data.gov.uk/id/local-authority/12UE,Huntingdonshire District Council,200058.00,ARCHANT HERTS AND CAMBS ARCHANT HERTS AND CAMBS,38247,22/08/2020,56751697,HUNTS POST 19/08/20,17/09/2020,52.8,264,316.8,Dm Application Processing,"Clothes, Uniform And Laundry",62000
http://statistics.data.gov.uk/id/local-authority/12UE,Huntingdonshire District Council,200420.00,INTERACTION RECRUITMENT PLC INTERACTION RECRUITMENT PLC,37817,09/08/2020,INV2051289,REDACTED,03/09/2020,103.64,518.19,621.83,Document Centre,Salary Cost Outside Payroll,60010
http://statistics.data.gov.uk/id/local-authority/12UE,Huntingdonshire District Council,200420.00,INTERACTION RECRUITMENT PLC INTERACTION RECRUITMENT PLC,38253,23/08/2020,INV2054005,REDACTED,17/09/2020,103.64,518.19,621.83,Document Centre,Salary Cost Outside Payroll,60010
http://statistics.data.gov.uk/id/local-authority/12UE,Huntingdonshire District Council,200420.00,INTERACTION RECRUITMENT PLC INTERACTION RECRUITMENT PLC,38503,30/08/2020,INV2055323,REDACTED,24/09/2020,103.64,518.19,621.83,Document Centre,Salary Cost Outside Payroll,60010
http://statistics.data.gov.uk/id/local-authority/12UE,Huntingdonshire District Council,200420.00,INTERACTION RECRUITMENT PLC INTERACTION RECRUITMENT PLC,35559,07/06/2020,INV2041195,REDACTED,02/07/2020,102.21,511.03,613.24,Document Centre,Salary Cost Outside Payroll,60010
http://statistics.data.gov.uk/id/local-authority/12UE,Huntingdonshire District Council,200420.00,INTERACTION RECRUITMENT PLC INTERACTION RECRUITMENT PLC,36295,28/06/2020,INV2044220,REDACTED,16/07/2020,101.92,509.59,611.51,Document Centre,Salary Cost Outside Payroll,60010
http://statistics.data.gov.uk/id/local-authority/12UE,Huntingdonshire District Council,200420.00,INTERACTION RECRUITMENT PLC INTERACTION RECRUITMENT PLC,36541,05/07/2020,INV2045309,DOC CENTRE STAFF,16/07/2020,101.92,509.59,611.51,Document Centre,Salary Cost Outside Payroll,60010
http://statistics.data.gov.uk/id/local-authority/12UE,Huntingdonshire District Council,200420.00,INTERACTION RECRUITMENT PLC INTERACTION RECRUITMENT PLC,36542,21/06/2020,INV2043176,DOC CENTRE STAFF,16/07/2020,101.92,509.59,611.51,Document Centre,Salary Cost Outside Payroll,60010
http://statistics.data.gov.uk/id/local-authority/12UE,Huntingdonshire District Council,200420.00,INTERACTION RECRUITMENT PLC INTERACTION RECRUITMENT PLC,36709,12/07/2020,INV2046417,REDACTED,06/08/2020,101.92,509.59,611.51,Document Centre,Salary Cost Outside Payroll,60010
http://statistics.data.gov.uk/id/local-authority/12UE,Huntingdonshire District Council,200420.00,INTERACTION RECRUITMENT PLC INTERACTION RECRUITMENT PLC,37033,19/07/2020,INV2047592,REDACTED,13/08/2020,101.92,509.59,611.51,Document Centre,Salary Cost Outside Payroll,60010
http://statistics.data.gov.uk/id/local-authority/12UE,Huntingdonshire District Council,200420.00,INTERACTION RECRUITMENT PLC INTERACTION RECRUITMENT PLC,37255,27/07/2020,INV2048788,REDACTED,14/08/2020,101.92,509.59,611.51,Document Centre,Salary Cost Outside Payroll,60010
http://statistics.data.gov.uk/id/local-authority/12UE,Huntingdonshire District Council,200420.00,INTERACTION RECRUITMENT PLC INTERACTION RECRUITMENT PLC,37577,02/08/2020,INV2050047,REDACTED,14/08/2020,101.92,509.59,611.51,Document Centre,Salary Cost Outside Payroll,60010
http://statistics.data.gov.uk/id/local-authority/12UE,Huntingdonshire District Council,200420.00,INTERACTION RECRUITMENT PLC INTERACTION RECRUITMENT PLC,38038,16/08/2020,INV2052611,REDACTED,10/09/2020,84.03,420.16,504.19,Document Centre,Salary Cost Outside Payroll,60010
http://statistics.data.gov.uk/id/local-authority/12UE,Huntingdonshire District Council,200420.00,INTERACTION RECRUITMENT PLC INTERACTION RECRUITMENT PLC,35756,14/06/2020,INV2042183,REDACTED,09/07/2020,81.26,406.3,487.56,Document Centre,Salary Cost Outside Payroll,60010
http://statistics.data.gov.uk/id/local-authority/12UE,Huntingdonshire District Council,200854.00,WOOD GREEN ANIMAL SHELTERS WOOD GREEN ANIMAL SHELTERS,37963,30/06/2020,0000001467,STRAYS JUNE 2020,20/08/2020,375,1875,2250,Dog Control,Grants And Contributions,64600
http://statistics.data.gov.uk/id/local-authority/12UE,Huntingdonshire District Council,200854.00,WOOD GREEN ANIMAL SHELTERS WOOD GREEN ANIMAL SHELTERS,37980,31/07/2020,0000001478,STRAYS JULY 20,27/08/2020,375,1875,2250,Dog Control,Grants And Contributions,64600
http://statistics.data.gov.uk/id/local-authority/12UE,Huntingdonshire District Council,201114.00,XP RECRUITMENT LTD,38563,26/08/2020,9805,WAREHOUSE W/E 22/08/20,17/09/2020,945.2,4726,5671.2,Domestic Waste Collection,Salary Cost Outside Payroll,60010
http://statistics.data.gov.uk/id/local-authority/12UE,Huntingdonshire District Council,201114.00,XP RECRUITMENT LTD,36288,24/06/2020,9592,WAREHOUSE W/E 20/06/20,16/07/2020,834.33,4171.65,5005.98,Domestic Waste Collection,Salary Cost Outside Payroll,60010
http://statistics.data.gov.uk/id/local-authority/12UE,Huntingdonshire District Council,200743.00,STAFFLINE GROUP STAFFLINE GROUP,38834,05/08/2020,77708,GARDEN WASTE W/C 26/07/20,17/09/2020,267.07,1335.36,1602.43,Domestic Waste Collection,Salary Cost Outside Payroll,60010
http://statistics.data.gov.uk/id/local-authority/12UE,Huntingdonshire District Council,200743.00,STAFFLINE GROUP STAFFLINE GROUP,38834,05/08/2020,77708,GARDEN WASTE W/C 26/07/20,17/09/2020,17.98,89.88,107.86,Domestic Waste Collection,Salary Cost Outside Payroll,60010
http://statistics.data.gov.uk/id/local-authority/12UE,Huntingdonshire District Council,200743.00,STAFFLINE GROUP STAFFLINE GROUP,38756,05/08/2020,77710,REFUSE W/C 26/07/20,10/09/2020,267.07,1335.36,1602.43,Domestic Waste Collection,Salary Cost Outside Payroll,60010
http://statistics.data.gov.uk/id/local-authority/12UE,Huntingdonshire District Council,200743.00,STAFFLINE GROUP STAFFLINE GROUP,38792,29/07/2020,76963,REFUSE W/C 19/07/20,10/09/2020,226.26,1131.29,1357.55,Domestic Waste Collection,Salary Cost Outside Payroll,60010
http://statistics.data.gov.uk/id/local-authority/12UE,Huntingdonshire District Council,200743.00,STAFFLINE GROUP STAFFLINE GROUP,38789,22/07/2020,76188,REFUSE W/C 12/07/20,10/09/2020,169.49,847.44,1016.93,Domestic Waste Collection,Salary Cost Outside Payroll,60010
http://statistics.data.gov.uk/id/local-authority/12UE,Huntingdonshire District Council,200743.00,STAFFLINE GROUP STAFFLINE GROUP,37875,24/06/2020,73118,REFUSE W/C 14/06/20,20/08/2020,148.04,740.18,888.22,Domestic Waste Collection,Salary Cost Outside Payroll,60010
http://statistics.data.gov.uk/id/local-authority/12UE,Huntingdonshire District Council,200743.00,STAFFLINE GROUP STAFFLINE GROUP,38764,02/09/2020,80858,REFUSE W/C 23/08/20,24/09/2020,133.54,667.68,801.22,Domestic Waste Collection,Salary Cost Outside Payroll,60010
http://statistics.data.gov.uk/id/local-authority/12UE,Huntingdonshire District Council,200743.00,STAFFLINE GROUP STAFFLINE GROUP,37209,05/06/2020,71645,REFUSE W/C 30/05/20,30/07/2020,114.28,571.38,685.66,Domestic Waste Collection,Salary Cost Outside Payroll,60010
http://statistics.data.gov.uk/id/local-authority/12UE,Huntingdonshire District Council,200743.00,STAFFLINE GROUP STAFFLINE GROUP,37208,17/06/2020,72377,REFUSE W/C 07/06/20,30/07/2020,95.02,475.08,570.1,Domestic Waste Collection,Salary Cost Outside Payroll,60010
http://statistics.data.gov.uk/id/local-authority/12UE,Huntingdonshire District Council,200743.00,STAFFLINE GROUP STAFFLINE GROUP,37877,01/07/2020,73881,REFUSE W/C 21/06/20,20/08/2020,56.5,282.48,338.98,Domestic Waste Collection,Salary Cost Outside Payroll,60010
http://statistics.data.gov.uk/id/local-authority/12UE,Huntingdonshire District Council,200000.00,A C COMMERCIALS A C COMMERCIALS,37784,05/08/2020,INV0007148,ops - bulk,14/08/2020,103.85,519.25,623.1,Domestic Waste Collection,Contract Charges (Transport),60900
http://statistics.data.gov.uk/id/local-authority/12UE,Huntingdonshire District Council,200220.00,D & H SIGN & DISPLAY SERVICE D & H SIGN & DISPLAY SERVICE,35953,18/06/2020,6980,STICKERS,16/07/2020,18.87,94.32,113.19,Domestic Waste Collection,Contract Charges (Transport),60900
http://statistics.data.gov.uk/id/local-authority/12UE,Huntingdonshire District Council,200403.00,MOTUS GROUP UK LTD T/A MOTUS COMMERCIALS IMPERIAL COMMERCIALS LTD,36375,08/04/2020,80394716,VEHICLE,09/07/2020,191.69,958.46,1150.15,Domestic Waste Collection,Vehicle Repairs And Maintenance,60904
http://statistics.data.gov.uk/id/local-authority/12UE,Huntingdonshire District Council,200328.00,GARWOOD EUROPE LTD GARWOOD EUROPE LTD,36287,19/06/2020,0442,VEHICLE,16/07/2020,184.2,921,1105.2,Domestic Waste Collection,Vehicle Repairs And Maintenance,60904
http://statistics.data.gov.uk/id/local-authority/12UE,Huntingdonshire District Council,200220.00,D & H SIGN & DISPLAY SERVICE D & H SIGN & DISPLAY SERVICE,36368,30/06/2020,6987,VEHICLE,16/07/2020,108.6,543,651.6,Domestic Waste Collection,Vehicle Repairs And Maintenance,60904
http://statistics.data.gov.uk/id/local-authority/12UE,Huntingdonshire District Council,201445.00,CMS SUPATRAK LTD,36873,10/07/2020,85492,ORDER 1838,06/08/2020,29,145,174,Domestic Waste Collection,Vehicle Repairs And Maintenance,60904
http://statistics.data.gov.uk/id/local-authority/12UE,Huntingdonshire District Council,200236.00,DENNIS EAGLE LTD DENNIS EAGLE LTD,38910,02/09/2020,DE11339484,ORDER 2066,24/09/2020,115.65,578.26,693.91,Domestic Waste Collection,Vehicle Repairs And Maintenance,60904
http://statistics.data.gov.uk/id/local-authority/12UE,Huntingdonshire District Council,200236.00,DENNIS EAGLE LTD DENNIS EAGLE LTD,37321,20/07/2020,DE11327992,ORDER 1893,13/08/2020,182.48,912.4,1094.88,Domestic Waste Collection,Vehicle Repairs And Maintenance,60904
http://statistics.data.gov.uk/id/local-authority/12UE,Huntingdonshire District Council,200774.00,TERBERG MATEC UK LTD TERBERG MATEC UK LTD,38161,30/07/2020,69392813,ORDER 1929,27/08/2020,125.65,628.23,753.88,Domestic Waste Collection,Vehicle Repairs And Maintenance,60904
http://statistics.data.gov.uk/id/local-authority/12UE,Huntingdonshire District Council,200236.00,DENNIS EAGLE LTD DENNIS EAGLE LTD,37232,23/07/2020,DE11329195,ORDER 1905,14/08/2020,53.42,267.09,320.51,Domestic Waste Collection,Vehicle Repairs And Maintenance,60904
http://statistics.data.gov.uk/id/local-authority/12UE,Huntingdonshire District Council,200236.00,DENNIS EAGLE LTD DENNIS EAGLE LTD,37320,20/07/2020,DE11327993,ORDER 1893,13/08/2020,51.87,259.35,311.22,Domestic Waste Collection,Vehicle Repairs And Maintenance,60904
http://statistics.data.gov.uk/id/local-authority/12UE,Huntingdonshire District Council,200236.00,DENNIS EAGLE LTD DENNIS EAGLE LTD,38908,01/09/2020,DE11339001,ORDER 2065,24/09/2020,154.65,773.26,927.91,Domestic Waste Collection,Vehicle Repairs And Maintenance,60904
http://statistics.data.gov.uk/id/local-authority/12UE,Huntingdonshire District Council,200236.00,DENNIS EAGLE LTD DENNIS EAGLE LTD,36388,26/06/2020,DE11321958,ORDER 1778,16/07/2020,128.26,641.31,769.57,Domestic Waste Collection,Vehicle Repairs And Maintenance,60904
http://statistics.data.gov.uk/id/local-authority/12UE,Huntingdonshire District Council,200236.00,DENNIS EAGLE LTD DENNIS EAGLE LTD,39092,31/08/2020,DE11336867,ORDER 2023,24/09/2020,56.99,284.94,341.93,Domestic Waste Collection,Vehicle Repairs And Maintenance,60904
http://statistics.data.gov.uk/id/local-authority/12UE,Huntingdonshire District Council,200236.00,DENNIS EAGLE LTD DENNIS EAGLE LTD,36935,07/07/2020,DE11324646,ORDER 1827,30/07/2020,341.35,1706.74,2048.09,Domestic Waste Collection,Vehicle Repairs And Maintenance,60904
http://statistics.data.gov.uk/id/local-authority/12UE,Huntingdonshire District Council,200774.00,TERBERG MATEC UK LTD TERBERG MATEC UK LTD,36880,09/07/2020,96391941,ORDER 1832,06/08/2020,243.76,1218.78,1462.54,Domestic Waste Collection,Vehicle Repairs And Maintenance,60904
http://statistics.data.gov.uk/id/local-authority/12UE,Huntingdonshire District Council,200236.00,DENNIS EAGLE LTD DENNIS EAGLE LTD,38149,04/08/2020,DE11332139,ORDER 1949,27/08/2020,167.04,835.21,1002.25,Domestic Waste Collection,Vehicle Repairs And Maintenance,60904
http://statistics.data.gov.uk/id/local-authority/12UE,Huntingdonshire District Council,200774.00,TERBERG MATEC UK LTD TERBERG MATEC UK LTD,38148,04/08/2020,96392941,ORDER 1943,27/08/2020,53.1,265.48,318.58,Domestic Waste Collection,Vehicle Repairs And Maintenance,60904
http://statistics.data.gov.uk/id/local-authority/12UE,Huntingdonshire District Council,200236.00,DENNIS EAGLE LTD DENNIS EAGLE LTD,36936,09/07/2020,DE11325361,ORDER 1827,06/08/2020,52.97,264.87,317.84,Domestic Waste Collection,Vehicle Repairs And Maintenance,60904
http://statistics.data.gov.uk/id/local-authority/12UE,Huntingdonshire District Council,200721.00,SILVER SHIELD WINDSCREENS SILVER SHIELD WINDSCREENS,37870,05/08/2020,SSA38398,ORDER 1957,27/08/2020,58,290,348,Domestic Waste Collection,Vehicle Maintenance - External,60921
http://statistics.data.gov.uk/id/local-authority/12UE,Huntingdonshire District Council,200250.00,DTS SOLUTIONS (UK) LTD DTS SOLUTIONS (UK) LTD,36380,29/06/2020,S005916,ORDER 1650,16/07/2020,68.8,344,412.8,Domestic Waste Collection,Vehicle Maintenance - External,60921
http://statistics.data.gov.uk/id/local-authority/12UE,Huntingdonshire District Council,200250.00,DTS SOLUTIONS (UK) LTD DTS SOLUTIONS (UK) LTD,36968,23/06/2020,S005893,ORDER1650,23/07/2020,68.8,344,412.8,Domestic Waste Collection,Vehicle Maintenance - External,60921
http://statistics.data.gov.uk/id/local-authority/12UE,Huntingdonshire District Council,200220.00,D & H SIGN & DISPLAY SERVICE D & H SIGN & DISPLAY SERVICE,36374,25/06/2020,6984,VEHICLE,16/07/2020,108.6,543,651.6,Domestic Waste Collection,Vehicle Maintenance - External,60921
http://statistics.data.gov.uk/id/local-authority/12UE,Huntingdonshire District Council,200221.00,D B TRANSPORT SERVICES D B TRANSPORT SERVICES,36957,11/06/2020,12674,ORDER 1866,23/07/2020,69.27,346.37,415.64,Domestic Waste Collection,Vehicle Maintenance - External,60921
http://statistics.data.gov.uk/id/local-authority/12UE,Huntingdonshire District Council,200721.00,SILVER SHIELD WINDSCREENS SILVER SHIELD WINDSCREENS,37289,22/07/2020,SSA37966,ORDER 1903,13/08/2020,58,290,348,Domestic Waste Collection,Vehicle Maintenance - External,60921
http://statistics.data.gov.uk/id/local-authority/12UE,Huntingdonshire District Council,200389.00,HUNTINGDON PLANT HIRE HUNTINGDON PLANT HIRE,37206,17/07/2020,109972,ORDER 1891,13/08/2020,51,255,306,Domestic Waste Collection,Vehicle Maintenance - External,60921
http://statistics.data.gov.uk/id/local-authority/12UE,Huntingdonshire District Council,200774.00,TERBERG MATEC UK LTD TERBERG MATEC UK LTD,38853,24/08/2020,96393779,ORDER 2015,17/09/2020,54.75,273.75,328.5,Domestic Waste Collection,Vehicle Maintenance - External,60921
http://statistics.data.gov.uk/id/local-authority/12UE,Huntingdonshire District Council,200236.00,DENNIS EAGLE LTD DENNIS EAGLE LTD,36878,14/07/2020,382897,ORDER 1851,06/08/2020,392.53,1962.64,2355.17,Domestic Waste Collection,Vehicle Maintenance - External,60921
http://statistics.data.gov.uk/id/local-authority/12UE,Huntingdonshire District Council,200236.00,DENNIS EAGLE LTD DENNIS EAGLE LTD,37216,14/07/2020,382901,ORDER 1841,06/08/2020,172.38,861.9,1034.28,Domestic Waste Collection,Vehicle Maintenance - External,60921
http://statistics.data.gov.uk/id/local-authority/12UE,Huntingdonshire District Council,200721.00,SILVER SHIELD WINDSCREENS SILVER SHIELD WINDSCREENS,36879,13/07/2020,SSA37660,ORDER 1856,06/08/2020,58,290,348,Domestic Waste Collection,Vehicle Maintenance - External,60921
http://statistics.data.gov.uk/id/local-authority/12UE,Huntingdonshire District Council,200389.00,HUNTINGDON PLANT HIRE HUNTINGDON PLANT HIRE,36717,03/07/2020,109932,ORDER 1807,30/07/2020,51,255,306,Domestic Waste Collection,Vehicle Maintenance - External,60921
http://statistics.data.gov.uk/id/local-authority/12UE,Huntingdonshire District Council,200515.00,M & N VEHICLE SERVICES M & N VEHICLE SERVICES,37298,17/07/2020,039733,VEHICLE,13/08/2020,117.02,585.1,702.12,Domestic Waste Collection,Vehicle MOT,60924
http://statistics.data.gov.uk/id/local-authority/12UE,Huntingdonshire District Council,200515.00,M & N VEHICLE SERVICES M & N VEHICLE SERVICES,37298,17/07/2020,039733,VEHICLE,13/08/2020,0,91,91,Domestic Waste Collection,Vehicle MOT,60924
http://statistics.data.gov.uk/id/local-authority/12UE,Huntingdonshire District Council,201933.00,MR WHIPPY ICES,36877,22/07/2020,PRF220720,ICE CREAM,23/07/2020,0,330,330,Domestic Waste Collection,Catering Supplies,61900
http://statistics.data.gov.uk/id/local-authority/12UE,Huntingdonshire District Council,200725.00,SMI INT GROUP LTD SMI GROUP,38133,24/08/2020,INV778960,WORK WEAR,17/09/2020,102.87,514.36,617.23,Domestic Waste Collection,"Clothes, Uniform And Laundry",62000
http://statistics.data.gov.uk/id/local-authority/12UE,Huntingdonshire District Council,200725.00,SMI INT GROUP LTD SMI GROUP,38133,24/08/2020,INV778960,WORK WEAR,17/09/2020,42.4,212,254.4,Domestic Waste Collection,"Clothes, Uniform And Laundry",62000
http://statistics.data.gov.uk/id/local-authority/12UE,Huntingdonshire District Council,200725.00,SMI INT GROUP LTD SMI GROUP,38133,24/08/2020,INV778960,WORK WEAR,17/09/2020,38,190,228,Domestic Waste Collection,"Clothes, Uniform And Laundry",62000
http://statistics.data.gov.uk/id/local-authority/12UE,Huntingdonshire District Council,200725.00,SMI INT GROUP LTD SMI GROUP,38133,24/08/2020,INV778960,WORK WEAR,17/09/2020,51,255,306,Domestic Waste Collection,"Clothes, Uniform And Laundry",62000
http://statistics.data.gov.uk/id/local-authority/12UE,Huntingdonshire District Council,200725.00,SMI INT GROUP LTD SMI GROUP,35732,16/06/2020,INV755016,WORK WEAR,09/07/2020,59.92,299.6,359.52,Domestic Waste Collection,"Clothes, Uniform And Laundry",62000
http://statistics.data.gov.uk/id/local-authority/12UE,Huntingdonshire District Council,200725.00,SMI INT GROUP LTD SMI GROUP,35732,16/06/2020,INV755016,WORK WEAR,09/07/2020,130.42,652.12,782.54,Domestic Waste Collection,"Clothes, Uniform And Laundry",62000
http://statistics.data.gov.uk/id/local-authority/12UE,Huntingdonshire District Council,200725.00,SMI INT GROUP LTD SMI GROUP,35901,19/06/2020,INV756140,WORK WEAR,16/07/2020,43.5,217.5,261,Domestic Waste Collection,"Clothes, Uniform And Laundry",62000
http://statistics.data.gov.uk/id/local-authority/12UE,Huntingdonshire District Council,200725.00,SMI INT GROUP LTD SMI GROUP,35901,19/06/2020,INV756140,WORK WEAR,16/07/2020,60.45,302.25,362.7,Domestic Waste Collection,"Clothes, Uniform And Laundry",62000
http://statistics.data.gov.uk/id/local-authority/12UE,Huntingdonshire District Council,200725.00,SMI INT GROUP LTD SMI GROUP,38325,27/08/2020,INV780351,TRAINERS,24/09/2020,53,265,318,Domestic Waste Collection,"Clothes, Uniform And Laundry",62000
http://statistics.data.gov.uk/id/local-authority/12UE,Huntingdonshire District Council,200079.00,BANDVULC TRUCK TYRES BANDVULC TRUCK TYRES,37519,30/07/2020,147668,PERIOD 7 WEEK 0,14/08/2020,34.75,173.76,208.51,Domestic Waste Collection,Tyres,62926
http://statistics.data.gov.uk/id/local-authority/12UE,Huntingdonshire District Council,200079.00,BANDVULC TRUCK TYRES BANDVULC TRUCK TYRES,37519,30/07/2020,147668,PERIOD 7 WEEK 0,14/08/2020,79.29,396.43,475.72,Domestic Waste Collection,Tyres,62926
http://statistics.data.gov.uk/id/local-authority/12UE,Huntingdonshire District Council,200079.00,BANDVULC TRUCK TYRES BANDVULC TRUCK TYRES,37505,29/06/2020,146402,PERIOD 6 WEEK 0,06/08/2020,52.98,264.88,317.86,Domestic Waste Collection,Tyres,62926
http://statistics.data.gov.uk/id/local-authority/12UE,Huntingdonshire District Council,200079.00,BANDVULC TRUCK TYRES BANDVULC TRUCK TYRES,37505,29/06/2020,146402,PERIOD 6 WEEK 0,06/08/2020,7.24,36.17,43.41,Domestic Waste Collection,Tyres,62926
http://statistics.data.gov.uk/id/local-authority/12UE,Huntingdonshire District Council,200079.00,BANDVULC TRUCK TYRES BANDVULC TRUCK TYRES,37505,29/06/2020,146402,PERIOD 6 WEEK 0,06/08/2020,118.88,594.37,713.25,Domestic Waste Collection,Tyres,62926
http://statistics.data.gov.uk/id/local-authority/12UE,Huntingdonshire District Council,200079.00,BANDVULC TRUCK TYRES BANDVULC TRUCK TYRES,37505,29/06/2020,146402,PERIOD 6 WEEK 0,06/08/2020,5.21,26.05,31.26,Domestic Waste Collection,Tyres,62926
http://statistics.data.gov.uk/id/local-authority/12UE,Huntingdonshire District Council,200079.00,BANDVULC TRUCK TYRES BANDVULC TRUCK TYRES,37519,30/07/2020,147668,PERIOD 7 WEEK 0,14/08/2020,133.85,669.22,803.07,Domestic Waste Collection,Tyres,62926
http://statistics.data.gov.uk/id/local-authority/12UE,Huntingdonshire District Council,200079.00,BANDVULC TRUCK TYRES BANDVULC TRUCK TYRES,37505,29/06/2020,146402,PERIOD 6 WEEK 0,06/08/2020,7.8,38.97,46.77,Domestic Waste Collection,Tyres,62926
http://statistics.data.gov.uk/id/local-authority/12UE,Huntingdonshire District Council,202267.00,ALPHADRUGS LTD,36945,03/07/2020,HDC001,CLINICAL WASTE DISPOSAL,30/07/2020,0,600,600,Domestic Waste Collection,Waste Disposal Costs,64050
http://statistics.data.gov.uk/id/local-authority/12UE,Huntingdonshire District Council,202287.00,MINITAB LTD,36358,29/06/2020,STDINV0067222,LICENCE,16/07/2020,163.2,816,979.2,Domestic Waste Collection,Ict Hardware,64070
http://statistics.data.gov.uk/id/local-authority/12UE,Huntingdonshire District Council,200156.00,CAMBRIDGE VENDING LTD T/A THE VENDING PEOPLE CAMBRIDGE VENDING,36563,26/06/2020,210108,OPS VENDING MACHINE,16/07/2020,38.72,193.59,232.31,Eastfield House,Memorial Sales Income,51200
http://statistics.data.gov.uk/id/local-authority/12UE,Huntingdonshire District Council,200156.00,CAMBRIDGE VENDING LTD T/A THE VENDING PEOPLE CAMBRIDGE VENDING,36563,26/06/2020,210108,OPS VENDING MACHINE,16/07/2020,73.82,369.11,442.93,Eastfield House,Memorial Sales Income,51200
http://statistics.data.gov.uk/id/local-authority/12UE,Huntingdonshire District Council,201080.00,SAFETY SURVEY DIV OF BIRCHMOOR ASSOCIATES,36013,22/06/2020,9421,RACKING REPAIRS,16/07/2020,273.4,1367,1640.4,Eastfield House,Facilities Management,60200
http://statistics.data.gov.uk/id/local-authority/12UE,Huntingdonshire District Council,200891.00,RAFFERTY LIGHTNING PROTECTION LTD,36791,16/07/2020,1357,TEST & INSPECTION OF LIGHTNING,13/08/2020,24,120,144,Eastfield House,Facilities Management,60200
http://statistics.data.gov.uk/id/local-authority/12UE,Huntingdonshire District Council,200580.00,NOVUS COMPLIANCE SERVICES LTD NOVUS COMPLIANCE SERVICES LTD,37227,23/07/2020,11646,PAT EASTFIELD HOUSE,14/08/2020,184.86,924.31,1109.17,Eastfield House,Facilities Management,60200
http://statistics.data.gov.uk/id/local-authority/12UE,Huntingdonshire District Council,201080.00,SAFETY SURVEY DIV OF BIRCHMOOR ASSOCIATES,38020,19/08/2020,9461,SAFETY INSPECTION,10/09/2020,138,690,828,Eastfield House,Facilities Management,60200
http://statistics.data.gov.uk/id/local-authority/12UE,Huntingdonshire District Council,200542.00,MIRAMAR ENGINEERING LTD MIRAMAR ENGINEERING LTD,37914,29/07/2020,004326,CCTV SERVER ROOM,20/08/2020,81.45,407.25,488.7,Eastfield House,Facilities Management,60200
http://statistics.data.gov.uk/id/local-authority/12UE,Huntingdonshire District Council,200542.00,MIRAMAR ENGINEERING LTD MIRAMAR ENGINEERING LTD,36795,28/05/2020,004080,EASTFIELD HOUSE,23/07/2020,67.3,336.48,403.78,Eastfield House,Facilities Management,60200
http://statistics.data.gov.uk/id/local-authority/12UE,Huntingdonshire District Council,200999.00,"HARRISONS ELECTRICAL, MECHANICAL AND PROPERTY SERVICES",37988,12/08/2020,35716,EASTFIELD HOUSE FIRE ALARM,03/09/2020,56.4,282,338.4,Eastfield House,Facilities Management,60200
http://statistics.data.gov.uk/id/local-authority/12UE,Huntingdonshire District Council,200678.00,RICHARD HERRMANN ASSOC LTD RICHARD HERRMANN ASSOC LTD,37115,27/07/2020,4911,CONSULTANCY,14/08/2020,140,700,840,Eastfield House,Asbestos Investingation/Surveys,60260
http://statistics.data.gov.uk/id/local-authority/12UE,Huntingdonshire District Council,200363.00,HAVEN POWER LTD HAVEN POWER LTD,37752,10/08/2020,IN1104589090,EASTFIELD HOUSE,14/08/2020,1132.08,5660.38,6792.46,Eastfield House,Signs Erecting & Removal,60300
http://statistics.data.gov.uk/id/local-authority/12UE,Huntingdonshire District Council,200363.00,HAVEN POWER LTD HAVEN POWER LTD,34822,07/05/2020,IN1104378200,EASTFIELD HOUSE,14/08/2020,1129.03,5645.14,6774.17,Eastfield House,Signs Erecting & Removal,60300
http://statistics.data.gov.uk/id/local-authority/12UE,Huntingdonshire District Council,200363.00,HAVEN POWER LTD HAVEN POWER LTD,38956,09/09/2020,IN1104652439,EASTFIELD HOUSE,17/09/2020,533.39,2666.96,3200.35,Eastfield House,Signs Erecting & Removal,60300
http://statistics.data.gov.uk/id/local-authority/12UE,Huntingdonshire District Council,200363.00,HAVEN POWER LTD HAVEN POWER LTD,37751,10/08/2020,IN1104589091,EASTFIELD HOUSE,14/08/2020,492.65,2463.24,2955.89,Eastfield House,Signs Erecting & Removal,60300
http://statistics.data.gov.uk/id/local-authority/12UE,Huntingdonshire District Council,200363.00,HAVEN POWER LTD HAVEN POWER LTD,36450,06/07/2020,IN1104500981,EASTFIELD HOUSE,16/07/2020,404.68,2023.41,2428.09,Eastfield House,Signs Erecting & Removal,60300
http://statistics.data.gov.uk/id/local-authority/12UE,Huntingdonshire District Council,200126.00,BRITISH GAS BUSINESS BRITISH GAS BUSINESS,37610,06/08/2020,989379889,EASTFIELD HOUSE,13/08/2020,169.16,845.82,1014.98,Eastfield House,Signs Erecting & Removal,60300
http://statistics.data.gov.uk/id/local-authority/12UE,Huntingdonshire District Council,200913.00,WAVE  ANGLIAN WATER BUSINESS,36449,05/07/2020,7487323,EASTFIELD HOUSE,16/07/2020,0,708.5,708.5,Eastfield House,Signs Erecting & Removal,60300
http://statistics.data.gov.uk/id/local-authority/12UE,Huntingdonshire District Council,200258.00,EDF ENERGY CUSTOMER FIELD SERVICES EDF ENERGY CUSTOMER FIELD SERVICES,37541,08/07/2020,600006685,COMMS LINE RENTAL - EFH,06/08/2020,86.4,432,518.4,Eastfield House,Signs Erecting & Removal,60300
http://statistics.data.gov.uk/id/local-authority/12UE,Huntingdonshire District Council,200373.00,HI-SPEC FACILITIES SERVICES PLC HI-SPEC FACILITIES SERVICES PLC,37906,31/01/2020,40522,CLEANING JAN 2020,20/08/2020,234.34,1171.71,1406.05,Eastfield House,Refuse Collection /Skips,60500
http://statistics.data.gov.uk/id/local-authority/12UE,Huntingdonshire District Council,202256.00,EASY CLEAN CONTRACTORS LTD,36984,30/06/2020,16543,CLEANING JUNE 2020,30/07/2020,276.05,1380.24,1656.29,Eastfield House,Refuse Collection /Skips,60500
http://statistics.data.gov.uk/id/local-authority/12UE,Huntingdonshire District Council,202256.00,EASY CLEAN CONTRACTORS LTD,36324,31/05/2020,16492,CLEANING APRIL 2020,09/07/2020,276.05,1380.24,1656.29,Eastfield House,Refuse Collection /Skips,60500
http://statistics.data.gov.uk/id/local-authority/12UE,Huntingdonshire District Council,202256.00,EASY CLEAN CONTRACTORS LTD,36437,31/05/2020,16381,CLEANING MAY 2020,09/07/2020,263.5,1317.5,1581,Eastfield House,Refuse Collection /Skips,60500
http://statistics.data.gov.uk/id/local-authority/12UE,Huntingdonshire District Council,200526.00,MASKEARAID LTD MASKEARAID LTD,37157,27/07/2020,72092,TOILET ROLLS/HAND TOWELS,14/08/2020,51.88,259.4,311.28,Eastfield House,Refuse Collection /Skips,60500
http://statistics.data.gov.uk/id/local-authority/12UE,Huntingdonshire District Council,200811.00,ATOS IT SERVICES UK LTD UNIFY,36922,19/06/2020,5584339122,MLL MIGRATION,23/07/2020,438,2190,2628,Eastnet CPSN ,Consultancy Fees,62400
http://statistics.data.gov.uk/id/local-authority/12UE,Huntingdonshire District Council,201980.00,MLL TELECOM LTD,36642,27/05/2020,SI11617,PROFESSIONAL SERVICES,23/07/2020,52.47,262.34,314.81,Eastnet CPSN ,Consultancy Fees,62400
http://statistics.data.gov.uk/id/local-authority/12UE,Huntingdonshire District Council,201980.00,MLL TELECOM LTD,38439,24/07/2020,SI12462,INSTALLATION FEES,03/09/2020,671.5,3357.5,4029,Eastnet CPSN ,Ict Hardware,64070
http://statistics.data.gov.uk/id/local-authority/12UE,Huntingdonshire District Council,201980.00,MLL TELECOM LTD,38441,31/07/2020,SI2541,INSTALLATION FEES,03/09/2020,630,3150,3780,Eastnet CPSN ,Ict Hardware,64070
http://statistics.data.gov.uk/id/local-authority/12UE,Huntingdonshire District Council,201980.00,MLL TELECOM LTD,38440,31/07/2020,SI12540,INSTALLATION FEES,03/09/2020,179.9,899.5,1079.4,Eastnet CPSN ,Ict Hardware,64070
http://statistics.data.gov.uk/id/local-authority/12UE,Huntingdonshire District Council,201980.00,MLL TELECOM LTD,36604,09/07/2020,SI12257,3C IT,16/07/2020,3481.36,17406.8,20888.16,Eastnet CPSN ,Broadband Line Rental,64080
http://statistics.data.gov.uk/id/local-authority/12UE,Huntingdonshire District Council,201980.00,MLL TELECOM LTD,36658,30/06/2020,SI12097,BROADBAND LINE RENTAL,23/07/2020,681.35,3406.75,4088.1,Eastnet CPSN ,Broadband Line Rental,64080
http://statistics.data.gov.uk/id/local-authority/12UE,Huntingdonshire District Council,201980.00,MLL TELECOM LTD,36658,30/06/2020,SI12097,BROADBAND LINE RENTAL,23/07/2020,1693.75,8468.75,10162.5,Eastnet CPSN ,Broadband Line Rental,64080
http://statistics.data.gov.uk/id/local-authority/12UE,Huntingdonshire District Council,201980.00,MLL TELECOM LTD,36659,07/07/2020,SI12183,BROADBAND LINE RENTAL,30/07/2020,496.9,2484.5,2981.4,Eastnet CPSN ,Broadband Line Rental,64080
http://statistics.data.gov.uk/id/local-authority/12UE,Huntingdonshire District Council,201980.00,MLL TELECOM LTD,38962,31/07/2020,SI12546,BROADBAND LINE RENTAL,17/09/2020,164.95,824.75,989.7,Eastnet CPSN ,Broadband Line Rental,64080
http://statistics.data.gov.uk/id/local-authority/12UE,Huntingdonshire District Council,200565.01,NEOPOST LIMITED,37556,17/12/2019,92636502,AIMS-100 DATASTATION,06/08/2020,1317.01,6585.07,7902.08,EFH Fire Damage Oct 2017,First Aid & Medical Supplies,61710
http://statistics.data.gov.uk/id/local-authority/12UE,Huntingdonshire District Council,200709.00,SCI PRINT LIMITED SCI PRINT LIMITED,37114,26/03/2020,4145,POLL CARDS,30/07/2020,797.05,3985.25,4782.3,Elections Police & Crime Cmmr,"Clothes, Uniform And Laundry",62000
http://statistics.data.gov.uk/id/local-authority/12UE,Huntingdonshire District Council,200709.00,SCI PRINT LIMITED SCI PRINT LIMITED,37929,31/07/2020,4200,PRINTING,27/08/2020,2050.43,10252.12,12302.55,Electoral Registration,"Clothes, Uniform And Laundry",62000
http://statistics.data.gov.uk/id/local-authority/12UE,Huntingdonshire District Council,200709.00,SCI PRINT LIMITED SCI PRINT LIMITED,39290,02/09/2020,4229,PRINTING,24/09/2020,450.65,2253.25,2703.9,Electoral Registration,"Clothes, Uniform And Laundry",62000
http://statistics.data.gov.uk/id/local-authority/12UE,Huntingdonshire District Council,200709.00,SCI PRINT LIMITED SCI PRINT LIMITED,37929,31/07/2020,4200,PRINTING,27/08/2020,4966.79,24833.97,29800.76,Electoral Registration,Postage And Courier Services,64100
http://statistics.data.gov.uk/id/local-authority/12UE,Huntingdonshire District Council,200709.00,SCI PRINT LIMITED SCI PRINT LIMITED,39290,02/09/2020,4229,PRINTING,24/09/2020,487.78,2438.88,2926.66,Electoral Registration,Postage And Courier Services,64100
http://statistics.data.gov.uk/id/local-authority/12UE,Huntingdonshire District Council,200698.00,ROYAL MAIL GROUP LTD ROYAL MAIL GROUP LTD,36495,22/06/2020,9061085072,POSTAGE,16/07/2020,14.29,71.44,85.73,Electoral Registration,Postage And Courier Services,64100
http://statistics.data.gov.uk/id/local-authority/12UE,Huntingdonshire District Council,200698.00,ROYAL MAIL GROUP LTD ROYAL MAIL GROUP LTD,38304,17/08/2020,9061384629,POSTAGE,10/09/2020,58.52,292.61,351.13,Electoral Registration,Postage And Courier Services,64100
http://statistics.data.gov.uk/id/local-authority/12UE,Huntingdonshire District Council,200698.00,ROYAL MAIL GROUP LTD ROYAL MAIL GROUP LTD,38245,10/08/2020,9061350006,POSTAGE,03/09/2020,191.61,958.04,1149.65,Electoral Registration,Postage And Courier Services,64100
http://statistics.data.gov.uk/id/local-authority/12UE,Huntingdonshire District Council,200698.00,ROYAL MAIL GROUP LTD ROYAL MAIL GROUP LTD,37171,13/07/2020,9061195063,POSTAGE,06/08/2020,22.45,112.25,134.7,Electoral Registration,Postage And Courier Services,64100
http://statistics.data.gov.uk/id/local-authority/12UE,Huntingdonshire District Council,200698.00,ROYAL MAIL GROUP LTD ROYAL MAIL GROUP LTD,37709,27/07/2020,9061267628,POSTAGE,14/08/2020,50.15,250.73,300.88,Electoral Registration,Postage And Courier Services,64100
http://statistics.data.gov.uk/id/local-authority/12UE,Huntingdonshire District Council,200698.00,ROYAL MAIL GROUP LTD ROYAL MAIL GROUP LTD,37865,03/08/2020,9061299705,POSTAGE,27/08/2020,83.8,418.99,502.79,Electoral Registration,Postage And Courier Services,64100
http://statistics.data.gov.uk/id/local-authority/12UE,Huntingdonshire District Council,200698.00,ROYAL MAIL GROUP LTD ROYAL MAIL GROUP LTD,36496,29/06/2020,9061113103,postage june,16/07/2020,53.88,269.38,323.26,Electoral Registration,Postage And Courier Services,64100
http://statistics.data.gov.uk/id/local-authority/12UE,Huntingdonshire District Council,200698.00,ROYAL MAIL GROUP LTD ROYAL MAIL GROUP LTD,35926,15/06/2020,9061052652,POSTAGE,09/07/2020,12.83,64.15,76.98,Electoral Registration,Postage And Courier Services,64100
http://statistics.data.gov.uk/id/local-authority/12UE,Huntingdonshire District Council,200698.00,ROYAL MAIL GROUP LTD ROYAL MAIL GROUP LTD,35576,08/06/2020,9061017208,POSTAGE,02/07/2020,21.7,108.5,130.2,Electoral Registration,Postage And Courier Services,64100
http://statistics.data.gov.uk/id/local-authority/12UE,Huntingdonshire District Council,200698.00,ROYAL MAIL GROUP LTD ROYAL MAIL GROUP LTD,37524,20/07/2020,9061227964,POSTAGE,13/08/2020,6.93,34.66,41.59,Electoral Registration,Postage And Courier Services,64100
http://statistics.data.gov.uk/id/local-authority/12UE,Huntingdonshire District Council,200698.00,ROYAL MAIL GROUP LTD ROYAL MAIL GROUP LTD,36907,06/07/2020,9061159099,POSTAGE,30/07/2020,13.13,65.67,78.8,Electoral Registration,Postage And Courier Services,64100
http://statistics.data.gov.uk/id/local-authority/12UE,Huntingdonshire District Council,200698.00,ROYAL MAIL GROUP LTD ROYAL MAIL GROUP LTD,38505,17/08/2020,9061381264,POSTAGE,10/09/2020,133.23,666.14,799.37,Electoral Registration,Postage And Courier Services,64100
http://statistics.data.gov.uk/id/local-authority/12UE,Huntingdonshire District Council,200429.00,J BREHENY CIVIL ENGINEERING LTD J BREHENY CIVIL ENGINEERING LTD,38102,26/03/2020,HMG/5106/32783,MINOR WORKS FRAMEWORK,27/08/2020,96,480,576,Emergency Planning,Other Services,69150
http://statistics.data.gov.uk/id/local-authority/12UE,Huntingdonshire District Council,200132.00,BRYAN LECOCHE LTD BRYAN LECOCHE LTD,36465,07/07/2020,4934,EVICTION OF TRAVELLERS,16/07/2020,135.6,678,813.6,Env Protection,Consultancy Fees,62400
http://statistics.data.gov.uk/id/local-authority/12UE,Huntingdonshire District Council,200132.00,BRYAN LECOCHE LTD BRYAN LECOCHE LTD,38088,20/08/2020,5081,EVICTION OF TRAVELLERS,17/09/2020,87.8,439,526.8,Env Protection,Consultancy Fees,62400
http://statistics.data.gov.uk/id/local-authority/12UE,Huntingdonshire District Council,200816.00,VENN GROUP RECRUITMENT VENN GROUP RECRUITMENT,38094,19/08/2020,3682922,REDACTED,10/09/2020,259.2,1296,1555.2,Environmental Policy Mu,Salary Cost Outside Payroll,60010
http://statistics.data.gov.uk/id/local-authority/12UE,Huntingdonshire District Council,200816.00,VENN GROUP RECRUITMENT VENN GROUP RECRUITMENT,38355,26/08/2020,3684843,REDACTED,17/09/2020,255.96,1279.8,1535.76,Environmental Policy Mu,Salary Cost Outside Payroll,60010
http://statistics.data.gov.uk/id/local-authority/12UE,Huntingdonshire District Council,200816.00,VENN GROUP RECRUITMENT VENN GROUP RECRUITMENT,38616,02/09/2020,3686739,REDACTED,24/09/2020,196.02,980.1,1176.12,Environmental Policy Mu,Salary Cost Outside Payroll,60010
http://statistics.data.gov.uk/id/local-authority/12UE,Huntingdonshire District Council,200816.00,VENN GROUP RECRUITMENT VENN GROUP RECRUITMENT,38616,02/09/2020,3686739,REDACTED,24/09/2020,58.32,291.6,349.92,Environmental Policy Mu,Salary Cost Outside Payroll,60010
http://statistics.data.gov.uk/id/local-authority/12UE,Huntingdonshire District Council,200816.00,VENN GROUP RECRUITMENT VENN GROUP RECRUITMENT,37771,05/08/2020,3679246,REDACTED,14/08/2020,252.72,1263.6,1516.32,Environmental Policy Mu,Salary Cost Outside Payroll,60010
http://statistics.data.gov.uk/id/local-authority/12UE,Huntingdonshire District Council,200816.00,VENN GROUP RECRUITMENT VENN GROUP RECRUITMENT,37338,29/07/2020,3677363,REDACTED,14/08/2020,251.1,1255.5,1506.6,Environmental Policy Mu,Salary Cost Outside Payroll,60010
http://statistics.data.gov.uk/id/local-authority/12UE,Huntingdonshire District Council,200816.00,VENN GROUP RECRUITMENT VENN GROUP RECRUITMENT,37826,12/08/2020,3681060,REDACTED,03/09/2020,247.86,1239.3,1487.16,Environmental Policy Mu,Salary Cost Outside Payroll,60010
http://statistics.data.gov.uk/id/local-authority/12UE,Huntingdonshire District Council,200816.00,VENN GROUP RECRUITMENT VENN GROUP RECRUITMENT,35602,10/06/2020,3665025,REDACTED,02/07/2020,243,1215,1458,Environmental Policy Mu,Salary Cost Outside Payroll,60010
http://statistics.data.gov.uk/id/local-authority/12UE,Huntingdonshire District Council,200816.00,VENN GROUP RECRUITMENT VENN GROUP RECRUITMENT,35860,17/06/2020,3666737,REDACTED,09/07/2020,243,1215,1458,Environmental Policy Mu,Salary Cost Outside Payroll,60010
http://statistics.data.gov.uk/id/local-authority/12UE,Huntingdonshire District Council,200816.00,VENN GROUP RECRUITMENT VENN GROUP RECRUITMENT,36012,24/06/2020,3668501,REDACTED,16/07/2020,243,1215,1458,Environmental Policy Mu,Salary Cost Outside Payroll,60010
http://statistics.data.gov.uk/id/local-authority/12UE,Huntingdonshire District Council,200816.00,VENN GROUP RECRUITMENT VENN GROUP RECRUITMENT,36265,01/07/2020,3670277,REDACTED,16/07/2020,243,1215,1458,Environmental Policy Mu,Salary Cost Outside Payroll,60010
http://statistics.data.gov.uk/id/local-authority/12UE,Huntingdonshire District Council,200816.00,VENN GROUP RECRUITMENT VENN GROUP RECRUITMENT,38624,15/07/2020,3673947,REDACTED,10/09/2020,168.48,842.4,1010.88,Environmental Policy Mu,Salary Cost Outside Payroll,60010
http://statistics.data.gov.uk/id/local-authority/12UE,Huntingdonshire District Council,200816.00,VENN GROUP RECRUITMENT VENN GROUP RECRUITMENT,38624,15/07/2020,3673947,REDACTED,10/09/2020,1.62,8.1,9.72,Environmental Policy Mu,Salary Cost Outside Payroll,60010
http://statistics.data.gov.uk/id/local-authority/12UE,Huntingdonshire District Council,200816.00,VENN GROUP RECRUITMENT VENN GROUP RECRUITMENT,38624,15/07/2020,3673947,REDACTED,10/09/2020,71.28,356.4,427.68,Environmental Policy Mu,Salary Cost Outside Payroll,60010
http://statistics.data.gov.uk/id/local-authority/12UE,Huntingdonshire District Council,200816.00,VENN GROUP RECRUITMENT VENN GROUP RECRUITMENT,36501,08/07/2020,3672172,STAFF OPS,16/07/2020,239.76,1198.8,1438.56,Environmental Policy Mu,Salary Cost Outside Payroll,60010
http://statistics.data.gov.uk/id/local-authority/12UE,Huntingdonshire District Council,200816.00,VENN GROUP RECRUITMENT VENN GROUP RECRUITMENT,37063,22/07/2020,3675686,REDACTED,13/08/2020,226.8,1134,1360.8,Environmental Policy Mu,Salary Cost Outside Payroll,60010
http://statistics.data.gov.uk/id/local-authority/12UE,Huntingdonshire District Council,201054.00,CAMBRIDGESHIRE PENSION FUND,38659,28/08/2020,423300012160,HDC MARCH 20,24/09/2020,60,300,360,Finance,Consultancy Fees,62400
http://statistics.data.gov.uk/id/local-authority/12UE,Huntingdonshire District Council,201054.00,CAMBRIDGESHIRE PENSION FUND,38659,28/08/2020,423300012160,HDC MARCH 20,24/09/2020,50,250,300,Finance,Consultancy Fees,62400
http://statistics.data.gov.uk/id/local-authority/12UE,Huntingdonshire District Council,201054.00,CAMBRIDGESHIRE PENSION FUND,38659,28/08/2020,423300012160,HDC MARCH 20,24/09/2020,50,250,300,Finance,Consultancy Fees,62400
http://statistics.data.gov.uk/id/local-authority/12UE,Huntingdonshire District Council,201054.00,CAMBRIDGESHIRE PENSION FUND,38659,28/08/2020,423300012160,HDC MARCH 20,24/09/2020,35,175,210,Finance,Consultancy Fees,62400
http://statistics.data.gov.uk/id/local-authority/12UE,Huntingdonshire District Council,201054.00,CAMBRIDGESHIRE PENSION FUND,38659,28/08/2020,423300012160,HDC MARCH 20,24/09/2020,50,250,300,Finance,Consultancy Fees,62400
http://statistics.data.gov.uk/id/local-authority/12UE,Huntingdonshire District Council,201054.00,CAMBRIDGESHIRE PENSION FUND,38659,28/08/2020,423300012160,HDC MARCH 20,24/09/2020,60,300,360,Finance,Consultancy Fees,62400
http://statistics.data.gov.uk/id/local-authority/12UE,Huntingdonshire District Council,200709.00,SCI PRINT LIMITED SCI PRINT LIMITED,37929,31/07/2020,4200,PRINTING,27/08/2020,-0.01,0,-0.01,Finance,Over/Under VAT Rounding,68350
http://statistics.data.gov.uk/id/local-authority/12UE,Huntingdonshire District Council,200356.00,WATSON FUELS WATSON FUELS,38062,17/08/2020,I12054912,DIESEL,10/09/2020,-0.01,0,-0.01,Finance,Over/Under VAT Rounding,68350
http://statistics.data.gov.uk/id/local-authority/12UE,Huntingdonshire District Council,200356.00,WATSON FUELS WATSON FUELS,36497,03/07/2020,I111985354,DIESEL,30/07/2020,0.02,0,0.02,Finance,Over/Under VAT Rounding,68350
http://statistics.data.gov.uk/id/local-authority/12UE,Huntingdonshire District Council,200166.00,CAPITA CAPITA,38942,15/05/2020,6003986319,MAINTENANCE APRIL 20-MARCH 21,17/09/2020,0.01,0,0.01,Finance,Over/Under VAT Rounding,68350
http://statistics.data.gov.uk/id/local-authority/12UE,Huntingdonshire District Council,200166.00,CAPITA CAPITA,38941,15/05/2020,6003986318,MAINTENANCE APRIL 20-MARCH 21,17/09/2020,-0.01,0,-0.01,Finance,Over/Under VAT Rounding,68350
http://statistics.data.gov.uk/id/local-authority/12UE,Huntingdonshire District Council,200363.00,HAVEN POWER LTD HAVEN POWER LTD,37753,10/08/2020,IN1104589092,PFH,14/08/2020,-0.03,0,-0.03,Finance,Over/Under VAT Rounding,68350
http://statistics.data.gov.uk/id/local-authority/12UE,Huntingdonshire District Council,200363.00,HAVEN POWER LTD HAVEN POWER LTD,34824,07/05/2020,IN1104378202,PFH,14/08/2020,-0.02,0,-0.02,Finance,Over/Under VAT Rounding,68350
http://statistics.data.gov.uk/id/local-authority/12UE,Huntingdonshire District Council,200363.00,HAVEN POWER LTD HAVEN POWER LTD,37688,10/08/2020,IN1104589080,OL ST NEOTS,14/08/2020,-0.01,0,-0.01,Finance,Over/Under VAT Rounding,68350
http://statistics.data.gov.uk/id/local-authority/12UE,Huntingdonshire District Council,200363.00,HAVEN POWER LTD HAVEN POWER LTD,37750,10/08/2020,IN1104589093,PFH,14/08/2020,-0.01,0,-0.01,Finance,Over/Under VAT Rounding,68350
http://statistics.data.gov.uk/id/local-authority/12UE,Huntingdonshire District Council,200149.00,CAMBRIDGE CITY COUNCIL CAMBRIDGE CITY COUNCIL,37582,06/08/2020,12048089,CENTRAL IT COSTS,14/08/2020,-0.01,0,-0.01,Finance,Over/Under VAT Rounding,68350
http://statistics.data.gov.uk/id/local-authority/12UE,Huntingdonshire District Council,200363.00,HAVEN POWER LTD HAVEN POWER LTD,37690,10/08/2020,IN1104589086,OL ST IVES,14/08/2020,-0.01,0,-0.01,Finance,Over/Under VAT Rounding,68350
http://statistics.data.gov.uk/id/local-authority/12UE,Huntingdonshire District Council,200770.00,TELEFONICA UK LTD TELEFONICA UK LTD,36065,20/06/2020,64873721,LINE RENTAL,16/07/2020,0.01,0,0.01,Finance,Over/Under VAT Rounding,68350
http://statistics.data.gov.uk/id/local-authority/12UE,Huntingdonshire District Council,200770.00,TELEFONICA UK LTD TELEFONICA UK LTD,37659,20/07/2020,67270358,RENTAL & LEASE,13/08/2020,0.01,0,0.01,Finance,Over/Under VAT Rounding,68350
http://statistics.data.gov.uk/id/local-authority/12UE,Huntingdonshire District Council,200363.00,HAVEN POWER LTD HAVEN POWER LTD,37752,10/08/2020,IN1104589090,EASTFIELD HOUSE,14/08/2020,-0.03,0,-0.03,Finance,Over/Under VAT Rounding,68350
http://statistics.data.gov.uk/id/local-authority/12UE,Huntingdonshire District Council,200363.00,HAVEN POWER LTD HAVEN POWER LTD,37691,10/08/2020,IN1104589082,OL HUNTINGDON,14/08/2020,-0.02,0,-0.02,Finance,Over/Under VAT Rounding,68350
http://statistics.data.gov.uk/id/local-authority/12UE,Huntingdonshire District Council,200363.00,HAVEN POWER LTD HAVEN POWER LTD,34396,07/05/2020,IN1104378194,OL HUNTINGDON,14/08/2020,-0.01,0,-0.01,Finance,Over/Under VAT Rounding,68350
http://statistics.data.gov.uk/id/local-authority/12UE,Huntingdonshire District Council,200363.00,HAVEN POWER LTD HAVEN POWER LTD,37689,10/08/2020,IN1104589084,OL ST IVES,14/08/2020,0.02,0,0.02,Finance,Over/Under VAT Rounding,68350
http://statistics.data.gov.uk/id/local-authority/12UE,Huntingdonshire District Council,200363.00,HAVEN POWER LTD HAVEN POWER LTD,34395,07/05/2020,IN1104378196,OL ST IVES,14/08/2020,0.05,0,0.05,Finance,Over/Under VAT Rounding,68350
http://statistics.data.gov.uk/id/local-authority/12UE,Huntingdonshire District Council,200770.00,TELEFONICA UK LTD TELEFONICA UK LTD,37658,20/07/2020,67270192,LINE RENTAL,13/08/2020,-0.01,0,-0.01,Finance,Over/Under VAT Rounding,68350
http://statistics.data.gov.uk/id/local-authority/12UE,Huntingdonshire District Council,200363.00,HAVEN POWER LTD HAVEN POWER LTD,38925,09/09/2020,IN1104652437,OL ST IVES,17/09/2020,-0.02,0,-0.02,Finance,Over/Under VAT Rounding,68350
http://statistics.data.gov.uk/id/local-authority/12UE,Huntingdonshire District Council,200363.00,HAVEN POWER LTD HAVEN POWER LTD,36411,06/07/2020,IN1104500980,OL ST IVES,16/07/2020,0.02,0,0.02,Finance,Over/Under VAT Rounding,68350
http://statistics.data.gov.uk/id/local-authority/12UE,Huntingdonshire District Council,200363.00,HAVEN POWER LTD HAVEN POWER LTD,37713,10/08/2020,IN1104589087,OL ST IVES,14/08/2020,-0.02,0,-0.02,Finance,Over/Under VAT Rounding,68350
http://statistics.data.gov.uk/id/local-authority/12UE,Huntingdonshire District Council,200126.00,BRITISH GAS BUSINESS BRITISH GAS BUSINESS,36069,23/06/2020,976471260,OL ST IVES,02/07/2020,-0.01,0,-0.01,Finance,Over/Under VAT Rounding,68350
http://statistics.data.gov.uk/id/local-authority/12UE,Huntingdonshire District Council,200126.00,BRITISH GAS BUSINESS BRITISH GAS BUSINESS,38605,02/09/2020,997326296,OL ST IVES,10/09/2020,-0.01,0,-0.01,Finance,Over/Under VAT Rounding,68350
http://statistics.data.gov.uk/id/local-authority/12UE,Huntingdonshire District Council,200363.00,HAVEN POWER LTD HAVEN POWER LTD,38956,09/09/2020,IN1104652439,EASTFIELD HOUSE,17/09/2020,-0.01,0,-0.01,Finance,Over/Under VAT Rounding,68350
http://statistics.data.gov.uk/id/local-authority/12UE,Huntingdonshire District Council,200614.00,PHOENIX SOFTWARE LTD PHOENIX SOFTWARE LTD,35693,15/06/2020,OP/I869209,THINKPADS,09/07/2020,0.01,0,0.01,Finance,Over/Under VAT Rounding,68350
http://statistics.data.gov.uk/id/local-authority/12UE,Huntingdonshire District Council,200126.00,BRITISH GAS BUSINESS BRITISH GAS BUSINESS,36071,23/06/2020,976471262,OL ST IVES,02/07/2020,-0.01,0,-0.01,Finance,Over/Under VAT Rounding,68350
http://statistics.data.gov.uk/id/local-authority/12UE,Huntingdonshire District Council,200363.00,HAVEN POWER LTD HAVEN POWER LTD,36412,06/07/2020,IN1104500977,OL ST NEOTS,16/07/2020,0.01,0,0.01,Finance,Over/Under VAT Rounding,68350
http://statistics.data.gov.uk/id/local-authority/12UE,Huntingdonshire District Council,200363.00,HAVEN POWER LTD HAVEN POWER LTD,38927,09/09/2020,IN1104652435,OL HUNTINGDON,17/09/2020,-0.01,0,-0.01,Finance,Over/Under VAT Rounding,68350
http://statistics.data.gov.uk/id/local-authority/12UE,Huntingdonshire District Council,200698.00,ROYAL MAIL GROUP LTD ROYAL MAIL GROUP LTD,38245,10/08/2020,9061350006,POSTAGE,03/09/2020,-0.01,0,-0.01,Finance,Over/Under VAT Rounding,68350
http://statistics.data.gov.uk/id/local-authority/12UE,Huntingdonshire District Council,200363.00,HAVEN POWER LTD HAVEN POWER LTD,36450,06/07/2020,IN1104500981,EASTFIELD HOUSE,16/07/2020,0.01,0,0.01,Finance,Over/Under VAT Rounding,68350
http://statistics.data.gov.uk/id/local-authority/12UE,Huntingdonshire District Council,200825.00,VIRGIN MEDIA BUSINESS VIRGIN MEDIA BUSINESS,36809,03/04/2020,742878104/001/0420,LAND LINE RENTAL,23/07/2020,0.01,0,0.01,Finance,Over/Under VAT Rounding,68350
http://statistics.data.gov.uk/id/local-authority/12UE,Huntingdonshire District Council,200825.00,VIRGIN MEDIA BUSINESS VIRGIN MEDIA BUSINESS,36808,03/03/2020,742878104/001/0320,LAND LINE RENTAL,23/07/2020,0.01,0,0.01,Finance,Over/Under VAT Rounding,68350
http://statistics.data.gov.uk/id/local-authority/12UE,Huntingdonshire District Council,200825.00,VIRGIN MEDIA BUSINESS VIRGIN MEDIA BUSINESS,36812,03/07/2020,742878104/001/0720,LAND LINE RENTAL,30/07/2020,0.01,0,0.01,Finance,Over/Under VAT Rounding,68350
http://statistics.data.gov.uk/id/local-authority/12UE,Huntingdonshire District Council,200614.00,PHOENIX SOFTWARE LTD PHOENIX SOFTWARE LTD,38213,30/07/2020,OP/I872888,SUBSCRIPTION,27/08/2020,-0.01,0,-0.01,Finance,Over/Under VAT Rounding,68350
http://statistics.data.gov.uk/id/local-authority/12UE,Huntingdonshire District Council,200825.00,VIRGIN MEDIA BUSINESS VIRGIN MEDIA BUSINESS,36810,04/05/2020,742878104/001/0520,LAND LINE RENTAL,23/07/2020,0.01,0,0.01,Finance,Over/Under VAT Rounding,68350
http://statistics.data.gov.uk/id/local-authority/12UE,Huntingdonshire District Council,200614.00,PHOENIX SOFTWARE LTD PHOENIX SOFTWARE LTD,37373,13/07/2020,OP/I871344,LICENCES,06/08/2020,-0.01,0,-0.01,Finance,Over/Under VAT Rounding,68350
http://statistics.data.gov.uk/id/local-authority/12UE,Huntingdonshire District Council,200825.00,VIRGIN MEDIA BUSINESS VIRGIN MEDIA BUSINESS,36811,03/06/2020,742878104/001/0620,LAND LINE RENTAL,23/07/2020,0.01,0,0.01,Finance,Over/Under VAT Rounding,68350
http://statistics.data.gov.uk/id/local-authority/12UE,Huntingdonshire District Council,200126.00,BRITISH GAS BUSINESS BRITISH GAS BUSINESS,37394,04/08/2020,975491882,OL RAMSEY,13/08/2020,-0.01,0,-0.01,Finance,Over/Under VAT Rounding,68350
http://statistics.data.gov.uk/id/local-authority/12UE,Huntingdonshire District Council,200363.00,HAVEN POWER LTD HAVEN POWER LTD,37712,10/08/2020,IN1104589083,OL HUNTINGDON,14/08/2020,-0.03,0,-0.03,Finance,Over/Under VAT Rounding,68350
http://statistics.data.gov.uk/id/local-authority/12UE,Huntingdonshire District Council,200774.00,TERBERG MATEC UK LTD TERBERG MATEC UK LTD,36880,09/07/2020,96391941,ORDER 1832,06/08/2020,-0.01,0,-0.01,Finance,Over/Under VAT Rounding,68350
http://statistics.data.gov.uk/id/local-authority/12UE,Huntingdonshire District Council,200725.00,SMI INT GROUP LTD SMI GROUP,38133,24/08/2020,INV778960,WORK WEAR,17/09/2020,-0.01,0,-0.01,Finance,Over/Under VAT Rounding,68350
http://statistics.data.gov.uk/id/local-authority/12UE,Huntingdonshire District Council,200126.00,BRITISH GAS BUSINESS BRITISH GAS BUSINESS,37387,04/08/2020,975491875,OL HUNTINGDON,13/08/2020,-0.01,0,-0.01,Finance,Over/Under VAT Rounding,68350
http://statistics.data.gov.uk/id/local-authority/12UE,Huntingdonshire District Council,200363.00,HAVEN POWER LTD HAVEN POWER LTD,37715,10/08/2020,IN1104589085,OL ST IVES,14/08/2020,0.01,0,0.01,Finance,Over/Under VAT Rounding,68350
http://statistics.data.gov.uk/id/local-authority/12UE,Huntingdonshire District Council,200328.00,GARWOOD EUROPE LTD GARWOOD EUROPE LTD,36271,19/06/2020,0442A,VEHICLE,16/07/2020,-0.01,0,-0.01,Finance,Over/Under VAT Rounding,68350
http://statistics.data.gov.uk/id/local-authority/12UE,Huntingdonshire District Council,200126.00,BRITISH GAS BUSINESS BRITISH GAS BUSINESS,38603,02/09/2020,997326294,OL ST NEOTS,10/09/2020,-0.01,0,-0.01,Finance,Over/Under VAT Rounding,68350
http://statistics.data.gov.uk/id/local-authority/12UE,Huntingdonshire District Council,200462.00,KING BROS KING BROS,37498,23/07/2020,150658,COUNTRY PARK,14/08/2020,-0.01,0,-0.01,Finance,Over/Under VAT Rounding,68350
http://statistics.data.gov.uk/id/local-authority/12UE,Huntingdonshire District Council,200725.00,SMI INT GROUP LTD SMI GROUP,35732,16/06/2020,INV755016,WORK WEAR,09/07/2020,-0.02,0,-0.02,Finance,Over/Under VAT Rounding,68350
http://statistics.data.gov.uk/id/local-authority/12UE,Huntingdonshire District Council,200328.00,GARWOOD EUROPE LTD GARWOOD EUROPE LTD,36287,19/06/2020,0442,VEHICLE,16/07/2020,-0.01,0,-0.01,Finance,Over/Under VAT Rounding,68350
http://statistics.data.gov.uk/id/local-authority/12UE,Huntingdonshire District Council,200363.00,HAVEN POWER LTD HAVEN POWER LTD,36413,06/07/2020,IN1104500979,OL ST IVES,16/07/2020,-0.01,0,-0.01,Finance,Over/Under VAT Rounding,68350
http://statistics.data.gov.uk/id/local-authority/12UE,Huntingdonshire District Council,200363.00,HAVEN POWER LTD HAVEN POWER LTD,36414,06/07/2020,IN1104500978,OL HUNTINGDON,16/07/2020,0.01,0,0.01,Finance,Over/Under VAT Rounding,68350
http://statistics.data.gov.uk/id/local-authority/12UE,Huntingdonshire District Council,200462.00,KING BROS KING BROS,36772,13/07/2020,149818,COUNTRY PARK,06/08/2020,-0.01,0,-0.01,Finance,Over/Under VAT Rounding,68350
http://statistics.data.gov.uk/id/local-authority/12UE,Huntingdonshire District Council,200625.00,PORTAKABIN LTD PORTAKABIN LTD,36329,01/07/2020,900888002,PACEMAKER HIRE JULY 20,16/07/2020,-0.01,0,-0.01,Finance,Over/Under VAT Rounding,68350
http://statistics.data.gov.uk/id/local-authority/12UE,Huntingdonshire District Council,200625.00,PORTAKABIN LTD PORTAKABIN LTD,37148,01/08/2020,900891134,PACEMAKER HIRE AUG 20,14/08/2020,-0.01,0,-0.01,Finance,Over/Under VAT Rounding,68350
http://statistics.data.gov.uk/id/local-authority/12UE,Huntingdonshire District Council,200625.00,PORTAKABIN LTD PORTAKABIN LTD,38541,01/09/2020,900894167,PACEMAKER HIRE SEPT 20,24/09/2020,-0.01,0,-0.01,Finance,Over/Under VAT Rounding,68350
http://statistics.data.gov.uk/id/local-authority/12UE,Huntingdonshire District Council,200126.00,BRITISH GAS BUSINESS BRITISH GAS BUSINESS,38608,02/09/2020,997326301,OL RAMSEY,10/09/2020,-0.01,0,-0.01,Finance,Over/Under VAT Rounding,68350
http://statistics.data.gov.uk/id/local-authority/12UE,Huntingdonshire District Council,200126.00,BRITISH GAS BUSINESS BRITISH GAS BUSINESS,37395,04/08/2020,975491881,OL ST IVES,13/08/2020,-0.01,0,-0.01,Finance,Over/Under VAT Rounding,68350
http://statistics.data.gov.uk/id/local-authority/12UE,Huntingdonshire District Council,200774.00,TERBERG MATEC UK LTD TERBERG MATEC UK LTD,37205,17/07/2020,96392306,ORDER 1882,13/08/2020,0.01,0,0.01,Finance,Over/Under VAT Rounding,68350
http://statistics.data.gov.uk/id/local-authority/12UE,Huntingdonshire District Council,202101.00,TRAINING SHED FAMILY LTD,37673,01/08/2020,INV-0049,OL ST IVES,13/08/2020,-0.02,0,-0.02,Finance,Over/Under VAT Rounding,68350
http://statistics.data.gov.uk/id/local-authority/12UE,Huntingdonshire District Council,202101.00,TRAINING SHED FAMILY LTD,38423,01/09/2020,INV-0050,OL ST IVES,03/09/2020,-0.02,0,-0.02,Finance,Over/Under VAT Rounding,68350
http://statistics.data.gov.uk/id/local-authority/12UE,Huntingdonshire District Council,200774.00,TERBERG MATEC UK LTD TERBERG MATEC UK LTD,36724,03/07/2020,96391679,ORDER 1802,30/07/2020,0.01,0,0.01,Finance,Over/Under VAT Rounding,68350
http://statistics.data.gov.uk/id/local-authority/12UE,Huntingdonshire District Council,200126.00,BRITISH GAS BUSINESS BRITISH GAS BUSINESS,38602,02/09/2020,997326293,OL HUNTINGDON,10/09/2020,-0.01,0,-0.01,Finance,Over/Under VAT Rounding,68350
http://statistics.data.gov.uk/id/local-authority/12UE,Huntingdonshire District Council,200462.00,KING BROS KING BROS,36254,26/06/2020,148799,COUNTRY PARK,16/07/2020,-0.01,0,-0.01,Finance,Over/Under VAT Rounding,68350
http://statistics.data.gov.uk/id/local-authority/12UE,Huntingdonshire District Council,200462.00,KING BROS KING BROS,36547,06/07/2020,149439,HCP CAFE,16/07/2020,-0.01,0,-0.01,Finance,Over/Under VAT Rounding,68350
http://statistics.data.gov.uk/id/local-authority/12UE,Huntingdonshire District Council,200669.00,REESINK  UK LTD REESINK  UK LTD,37874,29/07/2020,PSI2019380,ORDER 1927,20/08/2020,-0.01,0,-0.01,Finance,Over/Under VAT Rounding,68350
http://statistics.data.gov.uk/id/local-authority/12UE,Huntingdonshire District Council,200462.00,KING BROS KING BROS,38650,24/08/2020,153329,COUNTRY PARK,17/09/2020,-0.01,0,-0.01,Finance,Over/Under VAT Rounding,68350
http://statistics.data.gov.uk/id/local-authority/12UE,Huntingdonshire District Council,200126.00,BRITISH GAS BUSINESS BRITISH GAS BUSINESS,38919,02/09/2020,997326298,PFH,17/09/2020,-0.01,0,-0.01,Finance,Over/Under VAT Rounding,68350
http://statistics.data.gov.uk/id/local-authority/12UE,Huntingdonshire District Council,200060.00,ARTHUR IBBETT LTD ARTHUR IBBETT LTD,38885,31/07/2020,178299,LITTLE PAXTON NATURE RESERVE,17/09/2020,-0.01,0,-0.01,Finance,Over/Under VAT Rounding,68350
http://statistics.data.gov.uk/id/local-authority/12UE,Huntingdonshire District Council,200126.00,BRITISH GAS BUSINESS BRITISH GAS BUSINESS,38702,02/09/2020,997326297.,OL ST NEOTS,10/09/2020,-0.01,0.01,0,Finance,Over/Under VAT Rounding,68350
http://statistics.data.gov.uk/id/local-authority/12UE,Huntingdonshire District Council,200774.00,TERBERG MATEC UK LTD TERBERG MATEC UK LTD,37190,17/07/2020,96392305,ORDER 1881,13/08/2020,-0.01,0,-0.01,Finance,Over/Under VAT Rounding,68350
http://statistics.data.gov.uk/id/local-authority/12UE,Huntingdonshire District Council,200774.00,TERBERG MATEC UK LTD TERBERG MATEC UK LTD,38882,26/08/2020,96393901,ORDER 2032,17/09/2020,-0.01,0,-0.01,Finance,Over/Under VAT Rounding,68350
http://statistics.data.gov.uk/id/local-authority/12UE,Huntingdonshire District Council,200462.00,KING BROS KING BROS,38663,26/08/2020,153478,COUNTRY PARK,17/09/2020,-0.01,0,-0.01,Finance,Over/Under VAT Rounding,68350
http://statistics.data.gov.uk/id/local-authority/12UE,Huntingdonshire District Council,200060.00,ARTHUR IBBETT LTD ARTHUR IBBETT LTD,38888,30/04/2020,171399,LITTLE PAXTON NATURE RESERVE,17/09/2020,0.01,0,0.01,Finance,Over/Under VAT Rounding,68350
http://statistics.data.gov.uk/id/local-authority/12UE,Huntingdonshire District Council,200126.00,BRITISH GAS BUSINESS BRITISH GAS BUSINESS,38703,02/09/2020,997326299.,OL ST IVES,10/09/2020,-0.01,0.01,0,Finance,Over/Under VAT Rounding,68350
http://statistics.data.gov.uk/id/local-authority/12UE,Huntingdonshire District Council,200774.00,TERBERG MATEC UK LTD TERBERG MATEC UK LTD,38148,04/08/2020,96392941,ORDER 1943,27/08/2020,-0.01,0,-0.01,Finance,Over/Under VAT Rounding,68350
http://statistics.data.gov.uk/id/local-authority/12UE,Huntingdonshire District Council,200725.00,SMI INT GROUP LTD SMI GROUP,38303,27/08/2020,INV780352,WORK WEAR,24/09/2020,0.01,0,0.01,Finance,Over/Under VAT Rounding,68350
http://statistics.data.gov.uk/id/local-authority/12UE,Huntingdonshire District Council,201114.00,XP RECRUITMENT LTD,37627,05/08/2020,9731,WAREHOUSE W/E 01/08/20,14/08/2020,928.43,4642.15,5570.58,Green Waste Collection,Salary Cost Outside Payroll,60010
http://statistics.data.gov.uk/id/local-authority/12UE,Huntingdonshire District Council,201114.00,XP RECRUITMENT LTD,37507,29/07/2020,9696,WAREHOUSE W/E 25/07/20,14/08/2020,891.02,4455.1,5346.12,Green Waste Collection,Salary Cost Outside Payroll,60010
http://statistics.data.gov.uk/id/local-authority/12UE,Huntingdonshire District Council,201114.00,XP RECRUITMENT LTD,37867,12/08/2020,9760,WAREHOUSE W/E 08/08/20,03/09/2020,887.45,4437.25,5324.7,Green Waste Collection,Salary Cost Outside Payroll,60010
http://statistics.data.gov.uk/id/local-authority/12UE,Huntingdonshire District Council,200743.00,STAFFLINE GROUP STAFFLINE GROUP,38174,19/08/2020,79276,GARDEN WASTE W/C 09/08/20,10/09/2020,452.81,2264.06,2716.87,Green Waste Collection,Salary Cost Outside Payroll,60010
http://statistics.data.gov.uk/id/local-authority/12UE,Huntingdonshire District Council,200743.00,STAFFLINE GROUP STAFFLINE GROUP,38560,26/08/2020,80065,GARDEN WASTE W/C 16/08/20,17/09/2020,395.55,1977.75,2373.3,Green Waste Collection,Salary Cost Outside Payroll,60010
http://statistics.data.gov.uk/id/local-authority/12UE,Huntingdonshire District Council,200743.00,STAFFLINE GROUP STAFFLINE GROUP,38766,02/09/2020,80855,GARDEN WASTE W/C 23/08/20,24/09/2020,375.01,1875.03,2250.04,Green Waste Collection,Salary Cost Outside Payroll,60010
http://statistics.data.gov.uk/id/local-authority/12UE,Huntingdonshire District Council,200743.00,STAFFLINE GROUP STAFFLINE GROUP,38791,29/07/2020,76961,GARDEN WASTE W/C 19/07/20,10/09/2020,322.28,1611.42,1933.7,Green Waste Collection,Salary Cost Outside Payroll,60010
http://statistics.data.gov.uk/id/local-authority/12UE,Huntingdonshire District Council,200743.00,STAFFLINE GROUP STAFFLINE GROUP,38788,15/07/2020,75422,GARDEN WASTE W/C 05/07/20,10/09/2020,285.05,1425.24,1710.29,Green Waste Collection,Salary Cost Outside Payroll,60010
http://statistics.data.gov.uk/id/local-authority/12UE,Huntingdonshire District Council,200743.00,STAFFLINE GROUP STAFFLINE GROUP,37876,24/06/2020,73116,GARDEN WASTE W/C 14/06/20,20/08/2020,207.24,1036.22,1243.46,Green Waste Collection,Salary Cost Outside Payroll,60010
http://statistics.data.gov.uk/id/local-authority/12UE,Huntingdonshire District Council,200000.00,A C COMMERCIALS A C COMMERCIALS,37784,05/08/2020,INV0007148,ops - bulk,14/08/2020,103.85,519.25,623.1,Green Waste Collection,Contract Charges (Transport),60900
http://statistics.data.gov.uk/id/local-authority/12UE,Huntingdonshire District Council,200220.00,D & H SIGN & DISPLAY SERVICE D & H SIGN & DISPLAY SERVICE,35953,18/06/2020,6980,STICKERS,16/07/2020,18.87,94.34,113.21,Green Waste Collection,Contract Charges (Transport),60900
http://statistics.data.gov.uk/id/local-authority/12UE,Huntingdonshire District Council,200236.00,DENNIS EAGLE LTD DENNIS EAGLE LTD,36932,24/06/2020,DE11321183,ORDER 1765,23/07/2020,109.49,547.45,656.94,Green Waste Collection,Vehicle Repairs And Maintenance,60904
http://statistics.data.gov.uk/id/local-authority/12UE,Huntingdonshire District Council,200236.00,DENNIS EAGLE LTD DENNIS EAGLE LTD,38909,27/08/2020,DE11338346,ORDER 2022,24/09/2020,61.65,308.24,369.89,Green Waste Collection,Vehicle Repairs And Maintenance,60904
http://statistics.data.gov.uk/id/local-authority/12UE,Huntingdonshire District Council,200236.00,DENNIS EAGLE LTD DENNIS EAGLE LTD,39141,17/08/2020,DE11335431,ORDER 1999,24/09/2020,294.67,1473.34,1768.01,Green Waste Collection,Vehicle Repairs And Maintenance,60904
http://statistics.data.gov.uk/id/local-authority/12UE,Huntingdonshire District Council,200774.00,TERBERG MATEC UK LTD TERBERG MATEC UK LTD,38554,30/07/2020,96392815,ORDER 1931,10/09/2020,165.76,828.78,994.54,Green Waste Collection,Vehicle Repairs And Maintenance,60904
http://statistics.data.gov.uk/id/local-authority/12UE,Huntingdonshire District Council,200236.00,DENNIS EAGLE LTD DENNIS EAGLE LTD,37235,16/07/2020,DE11327289,ORDER 1876,13/08/2020,51.87,259.35,311.22,Green Waste Collection,Vehicle Repairs And Maintenance,60904
